Workbook

Sheet Application
A1: 2019-01-02 | B1: Yeezy Boost 350 | C1: 1 | D1: 200
G5: Small Business Bookkeeping
J9: Choose a form below
R20: EXIT

Sheet Sales
A1: Sales | J1: Monthly Sales - 2018 | M1: Monthly Sales - 2019 | P1: Monthly Sales - 2020 | S1: Monthly Sales - 2021
A2: Date Sold | B2: Item Name | C2: Shoe Size | D2: Quantity | E2: Price Sold | F2: Total | J2: Month | K2: Total Sales | M2: Month | N2: Total Sales | P2: Month | Q2: Total Sales | S2: Month | T2: Total Sales
A3: 2018-03-12 | B3: adidas-Yeezy-Boost-350-V2-Static | C3: 5 | D3: 2 | E3: 300 | F3: =D3*E3 -> 600 | J3: 2018-01-01 | K3: =SUMIFS($F$3:$F$1048576,$A$3:$A$1048576,">="&J3,$A$3:$A$1048576,"<="&EOMONTH(J3,0)) -> 0 | M3: 2019-01-01 | N3: =SUMIFS($F$3:$F$1048576,$A$3:$A$1048576,">="&M3,$A$3:$A$1048576,"<="&EOMONTH(M3,0)) -> 0 | P3: 2020-01-01 | Q3: =SUMIFS($F$3:$F$1048576,$A$3:$A$1048576,">="&P3,$A$3:$A$1048576,"<="&EOMONTH(P3,0)) -> 0 | S3: 2021-01-01 | T3: =SUMIFS($F$3:$F$1048576,$A$3:$A$1048576,">="&S3,$A$3:$A$1048576,"<="&EOMONTH(S3,0)) -> 0
A4: 2018-04-06 | B4: Adidas-Yeezy-Boost-350-V2-Blue-Tint | C4: 9 | D4: 2 | E4: 240 | F4: 480 | J4: 2018-02-01 | K4: 0 | M4: 2019-02-01 | N4: 400 | P4: 2020-02-01 | Q4: 0 | S4: 2021-02-01 | T4: 0
A5: 2019-02-12 | B5: Nike-Air-Force-1-Low-Off-White-Volt | C5: 10 | D5: 1 | E5: 400 | F5: 400 | J5: 2018-03-01 | K5: 600 | M5: 2019-03-01 | N5: 200 | P5: 2020-03-01 | Q5: 900 | S5: 2021-03-01 | T5: 700
A6: 2019-03-12 | B6: Nike-Air-Presto-Off-White-White-2018 | C6: 11 | D6: 1 | E6: 200 | F6: 200 | J6: 2018-04-01 | K6: 480 | M6: 2019-04-01 | N6: 0 | P6: 2020-04-01 | Q6: 0 | S6: 2021-04-01 | T6: 0
A7: 2019-12-14 | B7: Adidas-Yeezy-Boost-350-V2-Zebra | C7: 6 | D7: 1 | E7: 120 | F7: 120 | J7: 2018-05-01 | K7: 0 | M7: 2019-05-01 | N7: 0 | P7: 2020-05-01 | Q7: 0 | S7: 2021-05-01 | T7: 0
A8: 2020-03-12 | B8: Adidas-Yeezy-Boost-350-Low-Pirate-Black-2015 | C8: 7 | D8: 2 | E8: 450 | F8: 900 | J8: 2018-06-01 | K8: 0 | M8: 2019-06-01 | N8: 0 | P8: 2020-06-01 | Q8: 0 | S8: 2021-06-01 | T8: 0
A9: 2020-09-21 | B9: Nike-Blazer-Mid-Off-White-Wolf-Grey | C9: 9 | D9: 1 | E9: 800 | F9: 800 | J9: 2018-07-01 | K9: 0 | M9: 2019-07-01 | N9: 0 | P9: 2020-07-01 | Q9: 0 | S9: 2021-07-01 | T9: 0
A10: 2021-03-12 | B10: Nike-Air-Presto-Off-White-White-2018 | C10: 8.5 | D10: 1 | E10: 400 | F10: 400 | J10: 2018-08-01 | K10: 0 | M10: 2019-08-01 | N10: 0 | P10: 2020-08-01 | Q10: 0 | S10: 2021-08-01 | T10: 0
A11: 2021-03-15 | B11: Adidas-Yeezy-Boost-350-Low-Pirate-Black-2015 | C11: 10 | D11: 1 | E11: 300 | F11: 300 | J11: 2018-09-01 | K11: 0 | M11: 2019-09-01 | N11: 0 | P11: 2020-09-01 | Q11: 800 | S11: 2021-09-01 | T11: 0
F12: 0 | J12: 2018-10-01 | K12: 0 | M12: 2019-10-01 | N12: 0 | P12: 2020-10-01 | Q12: 0 | S12: 2021-10-01 | T12: 0
F13: 0 | J13: 2018-11-01 | K13: 0 | M13: 2019-11-01 | N13: 0 | P13: 2020-11-01 | Q13: 0 | S13: 2021-11-01 | T13: 0
F14: 0 | J14: 2018-12-01 | K14: 0 | M14: 2019-12-01 | N14: 120 | P14: 2020-12-01 | Q14: 0 | S14: 2021-12-01 | T14: 0
F15: 0
F16: 0 | J16: Yearly Sales | K16: =SUM(K3:K14) -> 1080 | M16: Yearly Sales | N16: =SUM(N3:N14) -> 720 | P16: Yearly Sales | Q16: =SUM(Q3:Q14) -> 1700 | S16: Yearly Sales | T16: =SUM(T3:T14) -> 700
F17: 0 | J17: Yearly Goal | K17: 750 | M17: Yearly Goal | N17: =K17*1.1 -> 825 | P17: Yearly Goal | Q17: =N17*1.1 -> 907.5 | S17: Yearly Goal | T17: =Q17*1.1 -> 998.25
F18: 0 | J18: Goal Met | K18: =K16>=K17 -> TRUE | M18: Goal Met? | N18: =N16>=N17 -> FALSE | P18: Goal Met? | Q18: =Q16>=Q17 -> TRUE | S18: Goal Met? | T18: =T16>=T17 -> FALSE
F19: 0
F20: 0
F21: 0
F22: 0
F23: 0
F24: 0
F25: 0
F26: 0
F27: 0
F28: 0
F29: 0
F30: 0
F31: 0
F32: 0
F33: 0
F34: 0
F35: =D35*E35 -> 0
F36: 0
F37: 0
F38: 0
F39: 0
F40: 0
F41: 0
F42: 0
F43: 0
F44: 0
F45: 0
F46: 0
F47: 0
F48: 0
F49: 0
F50: 0
F51: 0
F52: 0
F53: 0
F54: 0
F55: 0
F56: 0
F57: 0
F58: 0
F59: 0
F60: 0
F61: 0
F62: 0
F63: 0
F64: 0
F65: 0
F66: 0
F67: =D67*E67 -> 0
F68: 0
F69: 0
F70: 0
F71: 0
F72: 0
F73: 0
F74: 0
F75: 0
F76: 0
F77: 0
F78: 0
F79: 0
F80: 0
F81: 0
F82: 0
F83: 0
F84: 0
F85: 0
F86: 0
F87: 0
F88: 0
F89: 0
F90: 0
F91: 0
F92: 0
F93: 0
F94: 0
F95: 0
F96: 0
F97: 0
F98: 0
F99: =D99*E99 -> 0
F100: 0
F101: 0
F102: 0
F103: 0
F104: 0
F105: 0
F106: 0
F107: 0
F108: 0
F109: 0
F110: 0
F111: 0
F112: 0

Sheet Expenses
A1: Expenses | I1: Montly Expenses - 2018 | L1: Monthly Expenses - 2019 | O1: Monthly Expenses - 2020 | R1: Monthly Expenses - 2021
A2: Date Purchased | B2: Item Name | C2: Quantity | D2: Price Bought | E2: Total | I2: Month | J2: Total Expenses | L2: Month | M2: Total Expenses | O2: Month | P2: Total Expenses | R2: Month | S2: Total Expenses
A3: 2018-03-12 | B3: adidas-Yeezy-Boost-350-V2-Static | C3: 2 | D3: 200 | E3: =C3*D3 -> 400 | I3: 2018-01-01 | J3: =SUMIFS($E$3:$E$1048576,$A$3:$A$1048576,">="&I3,$A$3:$A$1048576,"<="&EOMONTH(I3,0)) -> 0 | L3: 2019-01-01 | M3: =SUMIFS($E$3:$E$1048576,$A$3:$A$1048576,">="&L3,$A$3:$A$1048576,"<="&EOMONTH(L3,0)) -> 0 | O3: 2020-01-01 | P3: =SUMIFS($E$3:$E$1048576,$A$3:$A$1048576,">="&O3,$A$3:$A$1048576,"<="&EOMONTH(O3,0)) -> 0 | R3: 2021-01-01 | S3: =SUMIFS($E$3:$E$1048576,$A$3:$A$1048576,">="&R3,$A$3:$A$1048576,"<="&EOMONTH(R3,0)) -> 100
A4: 2018-05-13 | B4: Nike-Air-Force-1-Low-Off-White-Volt | C4: 1 | D4: 120 | E4: 120 | I4: 2018-02-01 | J4: 0 | L4: 2019-02-01 | M4: =SUMIFS($E$3:$E$1048576,$A$3:$A$1048576,">="&L4,$A$3:$A$1048576,"<="&EOMONTH(L4,0)) -> 0 | O4: 2020-02-01 | P4: =SUMIFS($E$3:$E$1048576,$A$3:$A$1048576,">="&O4,$A$3:$A$1048576,"<="&EOMONTH(O4,0)) -> 360 | R4: 2021-02-01 | S4: =SUMIFS($E$3:$E$1048576,$A$3:$A$1048576,">="&R4,$A$3:$A$1048576,"<="&EOMONTH(R4,0)) -> 0
A5: 2019-04-12 | B5: Adidas-Yeezy-Boost-350-V2-Blue-Tint | C5: 8 | D5: 280 | E5: 2240 | I5: 2018-03-01 | J5: 400 | L5: 2019-03-01 | M5: 0 | O5: 2020-03-01 | P5: 0 | R5: 2021-03-01 | S5: 2130
A6: 2020-02-20 | B6: Nike-Air-Presto-Off-White-White-2018 | C6: 2 | D6: 180 | E6: 360 | I6: 2018-04-01 | J6: 0 | L6: 2019-04-01 | M6: 2240 | O6: 2020-04-01 | P6: 0 | R6: 2021-04-01 | S6: 0
A7: 2021-01-20 | B7: Adidas-Yeezy-Boost-350-V2-Zebra | C7: 1 | D7: 100 | E7: 100 | I7: 2018-05-01 | J7: 120 | L7: 2019-05-01 | M7: 0 | O7: 2020-05-01 | P7: 0 | R7: 2021-05-01 | S7: 0
A8: 2021-03-12 | B8: Adidas-Yeezy-Boost-350-Low-Pirate-Black-2015 | C8: 9 | D8: 220 | E8: 1980 | I8: 2018-06-01 | J8: 0 | L8: 2019-06-01 | M8: 0 | O8: 2020-06-01 | P8: 0 | R8: 2021-06-01 | S8: 0
A9: 2021-03-23 | B9: Nike-Blazer-Mid-Off-White-Wolf-Grey | C9: 1 | D9: 150 | E9: =C9*D9 -> 150 | I9: 2018-07-01 | J9: 0 | L9: 2019-07-01 | M9: 0 | O9: 2020-07-01 | P9: 0 | R9: 2021-07-01 | S9: 0
E10: 0 | I10: 2018-08-01 | J10: 0 | L10: 2019-08-01 | M10: 0 | O10: 2020-08-01 | P10: 0 | R10: 2021-08-01 | S10: 0
E11: =C11*D11 -> 0 | I11: 2018-09-01 | J11: 0 | L11: 2019-09-01 | M11: 0 | O11: 2020-09-01 | P11: 0 | R11: 2021-09-01 | S11: 0
E12: 0 | I12: 2018-10-01 | J12: 0 | L12: 2019-10-01 | M12: 0 | O12: 2020-10-01 | P12: 0 | R12: 2021-10-01 | S12: 0
E13: 0 | I13: 2018-11-01 | J13: 0 | L13: 2019-11-01 | M13: 0 | O13: 2020-11-01 | P13: 0 | R13: 2021-11-01 | S13: 0
E14: 0 | I14: 2018-12-01 | J14: 0 | L14: 2019-12-01 | M14: 0 | O14: 2020-12-01 | P14: 0 | R14: 2021-12-01 | S14: 0
E15: 0
E16: 0 | I16: Yearly Expenses | J16: =SUM(J3:J14) -> 520 | L16: Yearly Expenses | M16: =SUM(M3:M14) -> 2240 | O16: Yearly Expenses | P16: =SUM(P3:P14) -> 360 | R16: Yearly Expenses | S16: =SUM(S3:S14) -> 2230
E17: 0 | I17: Maximum Expenses | J17: 2000 | L17: Maximum Expenses | M17: =J17*1.1 -> 2200 | O17: Maximum Expenses | P17: =M17*1.1 -> 2420 | R17: Maximum Expenses | S17: =P17*1.1 -> 2662
E18: 0 | I18: Goal Met? | J18: =J16<=J17 -> TRUE | L18: Goal Met? | M18: =M16<=M17 -> FALSE | O18: Goal Met? | P18: =P16<=P17 -> TRUE | R18: Goal Met? | S18: =S16<=S17 -> TRUE
E19: 0
E20: 0
E21: 0
E22: 0
E23: 0
E24: 0
E25: 0
E26: 0
E27: 0
E28: 0
E29: 0
E30: 0
E31: 0
E32: 0
E33: 0
E34: 0
E35: =C35*D35 -> 0
E36: 0
E37: 0
E38: 0
E39: 0
E40: 0
E41: 0
E42: 0
E43: 0
E44: 0
E45: 0
E46: 0
E47: 0
E48: 0
E49: 0
E50: 0
E51: 0
E52: 0
E53: 0
E54: 0
E55: 0
E56: 0
E57: 0
E58: 0
E59: 0
E60: 0
E61: 0
E62: 0
E63: 0
E64: 0
E65: 0
E66: 0
E67: =C67*D67 -> 0
E68: 0
E69: 0
E70: 0
E71: 0
E72: 0
E73: 0
E74: 0
E75: 0
E76: 0
E77: 0
E78: 0
E79: 0
E80: 0
E81: 0
E82: 0
E83: 0
E84: 0
E85: 0
E86: 0
E87: 0
E88: 0
E89: 0
E90: 0
E91: 0
E92: 0
E93: 0
E94: 0
E95: 0
E96: 0
E97: 0
E98: 0
E99: =C99*D99 -> 0
E100: 0

Sheet Inventory
A1: Inventory | I1: Total Current Stock (unit)
A2: Item Name | B2: Quantity Purchased | C2: Quantity Sold | D2: Minimum Quantity Needed | E2: Current Stock | F2: Reorder? | I2: =SUM(E3:E1000) -> 6
A3: adidas-Yeezy-Boost-350-V2-Static | B3: =IF(ISBLANK(A3),"",VLOOKUP(A3,Expenses!B3:E100,2,FALSE)) -> 2 | C3: =IF(ISBLANK(A3),"",SUMIFS(Sales!$D$3:$D$101,Sales!$B$3:$B$101,A3)) -> 2 | D3: 5 | E3: =IF(ISBLANK(A3),"",B3-C3) -> 0 | F3: =_xlfn.IFS(ISBLANK(D3),"",E3<D3,"YES",E3>=D3,"NO") -> YES
A4: Adidas-Yeezy-Boost-350-Low-Pirate-Black-2015 | B4: =IF(ISBLANK(A4),"",VLOOKUP(A4,Expenses!B4:E101,2,FALSE)) -> 9 | C4: =IF(ISBLANK(A4),"",SUMIFS(Sales!$D$3:$D$101,Sales!$B$3:$B$101,A4)) -> 3 | D4: 5 | E4: =IF(ISBLANK(A4),"",B4-C4) -> 6 | F4: =_xlfn.IFS(ISBLANK(D4),"",E4<D4,"YES",E4>=D4,"NO") -> NO
A5: Nike-Blazer-Mid-Off-White-Wolf-Grey | B5: =IF(ISBLANK(A5),"",VLOOKUP(A5,Expenses!B5:E102,2,FALSE)) -> 1 | C5: =IF(ISBLANK(A5),"",SUMIFS(Sales!$D$3:$D$101,Sales!$B$3:$B$101,A5)) -> 1 | D5: 5 | E5: 0 | F5: =_xlfn.IFS(ISBLANK(D5),"",E5<D5,"YES",E5>=D5,"NO") -> YES
A6: Nike-Air-Presto-Off-White-White-2018 | B6: =IF(ISBLANK(A6),"",VLOOKUP(A6,Expenses!B6:E103,2,FALSE)) -> 2 | C6: =IF(ISBLANK(A6),"",SUMIFS(Sales!$D$3:$D$101,Sales!$B$3:$B$101,A6)) -> 2 | D6: 5 | E6: 0 | F6: =_xlfn.IFS(ISBLANK(D6),"",E6<D6,"YES",E6>=D6,"NO") -> YES
A7: Adidas-Yeezy-Boost-350-V2-Zebra | B7: =IF(ISBLANK(A7),"",VLOOKUP(A7,Expenses!B7:E104,2,FALSE)) -> 1 | C7: =IF(ISBLANK(A7),"",SUMIFS(Sales!$D$3:$D$101,Sales!$B$3:$B$101,A7)) -> 1 | D7: 10 | E7: 0 | F7: =_xlfn.IFS(ISBLANK(D7),"",E7<D7,"YES",E7>=D7,"NO") -> YES
B8: =IF(ISBLANK(A8),"",VLOOKUP(A8,Expenses!B8:E105,2,FALSE)) ->  | C8: =IF(ISBLANK(A8),"",SUMIFS(Sales!$D$3:$D$101,Sales!$B$3:$B$101,A8)) ->  | F8: =_xlfn.IFS(ISBLANK(D8),"",E8<D8,"YES",E8>=D8,"NO") -> 
B9: =IF(ISBLANK(A9),"",VLOOKUP(A9,Expenses!B9:E106,2,FALSE)) ->  | C9: =IF(ISBLANK(A9),"",SUMIFS(Sales!$D$3:$D$101,Sales!$B$3:$B$101,A9)) ->  | F9: =_xlfn.IFS(ISBLANK(D9),"",E9<D9,"YES",E9>=D9,"NO") -> 
B10: =IF(ISBLANK(A10),"",VLOOKUP(A10,Expenses!B10:E107,2,FALSE)) ->  | C10: =IF(ISBLANK(A10),"",SUMIFS(Sales!$D$3:$D$101,Sales!$B$3:$B$101,A10)) ->  | F10: =_xlfn.IFS(ISBLANK(D10),"",E10<D10,"YES",E10>=D10,"NO") -> 
B11: =IF(ISBLANK(A11),"",VLOOKUP(A11,Expenses!B11:E108,2,FALSE)) ->  | C11: =IF(ISBLANK(A11),"",SUMIFS(Sales!$D$3:$D$101,Sales!$B$3:$B$101,A11)) ->  | F11: =_xlfn.IFS(ISBLANK(D11),"",E11<D11,"YES",E11>=D11,"NO") -> 
B12: =IF(ISBLANK(A12),"",VLOOKUP(A12,Expenses!B12:E109,2,FALSE)) ->  | C12: =IF(ISBLANK(A12),"",SUMIFS(Sales!$D$3:$D$101,Sales!$B$3:$B$101,A12)) ->  | F12: =_xlfn.IFS(ISBLANK(D12),"",E12<D12,"YES",E12>=D12,"NO") -> 
B13: =IF(ISBLANK(A13),"",VLOOKUP(A13,Expenses!B13:E110,2,FALSE)) ->  | C13: =IF(ISBLANK(A13),"",SUMIFS(Sales!$D$3:$D$101,Sales!$B$3:$B$101,A13)) ->  | F13: =_xlfn.IFS(ISBLANK(D13),"",E13<D13,"YES",E13>=D13,"NO") -> 
B14: =IF(ISBLANK(A14),"",VLOOKUP(A14,Expenses!B14:E111,2,FALSE)) ->  | C14: =IF(ISBLANK(A14),"",SUMIFS(Sales!$D$3:$D$101,Sales!$B$3:$B$101,A14)) ->  | F14: =_xlfn.IFS(ISBLANK(D14),"",E14<D14,"YES",E14>=D14,"NO") -> 
B15: =IF(ISBLANK(A15),"",VLOOKUP(A15,Expenses!B15:E112,2,FALSE)) ->  | C15: =IF(ISBLANK(A15),"",SUMIFS(Sales!$D$3:$D$101,Sales!$B$3:$B$101,A15)) ->  | F15: =_xlfn.IFS(ISBLANK(D15),"",E15<D15,"YES",E15>=D15,"NO") -> 
B16: =IF(ISBLANK(A16),"",VLOOKUP(A16,Expenses!B16:E113,2,FALSE)) ->  | C16: =IF(ISBLANK(A16),"",SUMIFS(Sales!$D$3:$D$101,Sales!$B$3:$B$101,A16)) ->  | F16: =_xlfn.IFS(ISBLANK(D16),"",E16<D16,"YES",E16>=D16,"NO") -> 
B17: =IF(ISBLANK(A17),"",VLOOKUP(A17,Expenses!B17:E114,2,FALSE)) ->  | C17: =IF(ISBLANK(A17),"",SUMIFS(Sales!$D$3:$D$101,Sales!$B$3:$B$101,A17)) ->  | F17: =_xlfn.IFS(ISBLANK(D17),"",E17<D17,"YES",E17>=D17,"NO") -> 
B18: =IF(ISBLANK(A18),"",VLOOKUP(A18,Expenses!B18:E115,2,FALSE)) ->  | C18: =IF(ISBLANK(A18),"",SUMIFS(Sales!$D$3:$D$101,Sales!$B$3:$B$101,A18)) ->  | F18: =_xlfn.IFS(ISBLANK(D18),"",E18<D18,"YES",E18>=D18,"NO") -> 
B19: =IF(ISBLANK(A19),"",VLOOKUP(A19,Expenses!B19:E116,2,FALSE)) ->  | C19: =IF(ISBLANK(A19),"",SUMIFS(Sales!$D$3:$D$101,Sales!$B$3:$B$101,A19)) ->  | F19: =_xlfn.IFS(ISBLANK(D19),"",E19<D19,"YES",E19>=D19,"NO") -> 
B20: =IF(ISBLANK(A20),"",VLOOKUP(A20,Expenses!B20:E117,2,FALSE)) ->  | C20: =IF(ISBLANK(A20),"",SUMIFS(Sales!$D$3:$D$101,Sales!$B$3:$B$101,A20)) ->  | F20: =_xlfn.IFS(ISBLANK(D20),"",E20<D20,"YES",E20>=D20,"NO") -> 
B21: =IF(ISBLANK(A21),"",VLOOKUP(A21,Expenses!B21:E118,2,FALSE)) ->  | C21: =IF(ISBLANK(A21),"",SUMIFS(Sales!$D$3:$D$101,Sales!$B$3:$B$101,A21)) ->  | F21: =_xlfn.IFS(ISBLANK(D21),"",E21<D21,"YES",E21>=D21,"NO") -> 
B22: =IF(ISBLANK(A22),"",VLOOKUP(A22,Expenses!B22:E119,2,FALSE)) ->  | C22: =IF(ISBLANK(A22),"",SUMIFS(Sales!$D$3:$D$101,Sales!$B$3:$B$101,A22)) ->  | F22: =_xlfn.IFS(ISBLANK(D22),"",E22<D22,"YES",E22>=D22,"NO") -> 
B23: =IF(ISBLANK(A23),"",VLOOKUP(A23,Expenses!B23:E120,2,FALSE)) ->  | C23: =IF(ISBLANK(A23),"",SUMIFS(Sales!$D$3:$D$101,Sales!$B$3:$B$101,A23)) ->  | F23: =_xlfn.IFS(ISBLANK(D23),"",E23<D23,"YES",E23>=D23,"NO") -> 
B24: =IF(ISBLANK(A24),"",VLOOKUP(A24,Expenses!B24:E121,2,FALSE)) ->  | C24: =IF(ISBLANK(A24),"",SUMIFS(Sales!$D$3:$D$101,Sales!$B$3:$B$101,A24)) ->  | F24: =_xlfn.IFS(ISBLANK(D24),"",E24<D24,"YES",E24>=D24,"NO") -> 
B25: =IF(ISBLANK(A25),"",VLOOKUP(A25,Expenses!B25:E122,2,FALSE)) ->  | C25: =IF(ISBLANK(A25),"",SUMIFS(Sales!$D$3:$D$101,Sales!$B$3:$B$101,A25)) ->  | F25: =_xlfn.IFS(ISBLANK(D25),"",E25<D25,"YES",E25>=D25,"NO") -> 
B26: =IF(ISBLANK(A26),"",VLOOKUP(A26,Expenses!B26:E123,2,FALSE)) ->  | C26: =IF(ISBLANK(A26),"",SUMIFS(Sales!$D$3:$D$101,Sales!$B$3:$B$101,A26)) ->  | F26: =_xlfn.IFS(ISBLANK(D26),"",E26<D26,"YES",E26>=D26,"NO") -> 
B27: =IF(ISBLANK(A27),"",VLOOKUP(A27,Expenses!B27:E124,2,FALSE)) ->  | C27: =IF(ISBLANK(A27),"",SUMIFS(Sales!$D$3:$D$101,Sales!$B$3:$B$101,A27)) ->  | F27: =_xlfn.IFS(ISBLANK(D27),"",E27<D27,"YES",E27>=D27,"NO") -> 
B28: =IF(ISBLANK(A28),"",VLOOKUP(A28,Expenses!B28:E125,2,FALSE)) ->  | C28: =IF(ISBLANK(A28),"",SUMIFS(Sales!$D$3:$D$101,Sales!$B$3:$B$101,A28)) ->  | F28: =_xlfn.IFS(ISBLANK(D28),"",E28<D28,"YES",E28>=D28,"NO") -> 
B29: =IF(ISBLANK(A29),"",VLOOKUP(A29,Expenses!B29:E126,2,FALSE)) ->  | C29: =IF(ISBLANK(A29),"",SUMIFS(Sales!$D$3:$D$101,Sales!$B$3:$B$101,A29)) ->  | F29: =_xlfn.IFS(ISBLANK(D29),"",E29<D29,"YES",E29>=D29,"NO") -> 
B30: =IF(ISBLANK(A30),"",VLOOKUP(A30,Expenses!B30:E127,2,FALSE)) ->  | C30: =IF(ISBLANK(A30),"",SUMIFS(Sales!$D$3:$D$101,Sales!$B$3:$B$101,A30)) ->  | F30: =_xlfn.IFS(ISBLANK(D30),"",E30<D30,"YES",E30>=D30,"NO") -> 
B31: =IF(ISBLANK(A31),"",VLOOKUP(A31,Expenses!B31:E128,2,FALSE)) ->  | C31: =IF(ISBLANK(A31),"",SUMIFS(Sales!$D$3:$D$101,Sales!$B$3:$B$101,A31)) ->  | F31: =_xlfn.IFS(ISBLANK(D31),"",E31<D31,"YES",E31>=D31,"NO") -> 
B32: =IF(ISBLANK(A32),"",VLOOKUP(A32,Expenses!B32:E129,2,FALSE)) ->  | C32: =IF(ISBLANK(A32),"",SUMIFS(Sales!$D$3:$D$101,Sales!$B$3:$B$101,A32)) ->  | F32: =_xlfn.IFS(ISBLANK(D32),"",E32<D32,"YES",E32>=D32,"NO") -> 
B33: =IF(ISBLANK(A33),"",VLOOKUP(A33,Expenses!B33:E130,2,FALSE)) ->  | C33: =IF(ISBLANK(A33),"",SUMIFS(Sales!$D$3:$D$101,Sales!$B$3:$B$101,A33)) ->  | F33: =_xlfn.IFS(ISBLANK(D33),"",E33<D33,"YES",E33>=D33,"NO") -> 
B34: =IF(ISBLANK(A34),"",VLOOKUP(A34,Expenses!B34:E131,2,FALSE)) ->  | C34: =IF(ISBLANK(A34),"",SUMIFS(Sales!$D$3:$D$101,Sales!$B$3:$B$101,A34)) ->  | F34: =_xlfn.IFS(ISBLANK(D34),"",E34<D34,"YES",E34>=D34,"NO") -> 
B35: =IF(ISBLANK(A35),"",VLOOKUP(A35,Expenses!B35:E132,2,FALSE)) ->  | C35: =IF(ISBLANK(A35),"",SUMIFS(Sales!$D$3:$D$101,Sales!$B$3:$B$101,A35)) ->  | F35: =_xlfn.IFS(ISBLANK(D35),"",E35<D35,"YES",E35>=D35,"NO") -> 
B36: =IF(ISBLANK(A36),"",VLOOKUP(A36,Expenses!B36:E133,2,FALSE)) ->  | C36: =IF(ISBLANK(A36),"",SUMIFS(Sales!$D$3:$D$101,Sales!$B$3:$B$101,A36)) ->  | F36: =_xlfn.IFS(ISBLANK(D36),"",E36<D36,"YES",E36>=D36,"NO") -> 
B37: =IF(ISBLANK(A37),"",VLOOKUP(A37,Expenses!B37:E134,2,FALSE)) ->  | C37: =IF(ISBLANK(A37),"",SUMIFS(Sales!$D$3:$D$101,Sales!$B$3:$B$101,A37)) ->  | F37: =_xlfn.IFS(ISBLANK(D37),"",E37<D37,"YES",E37>=D37,"NO") -> 
B38: =IF(ISBLANK(A38),"",VLOOKUP(A38,Expenses!B38:E135,2,FALSE)) ->  | C38: =IF(ISBLANK(A38),"",SUMIFS(Sales!$D$3:$D$101,Sales!$B$3:$B$101,A38)) ->  | F38: =_xlfn.IFS(ISBLANK(D38),"",E38<D38,"YES",E38>=D38,"NO") -> 
B39: =IF(ISBLANK(A39),"",VLOOKUP(A39,Expenses!B39:E136,2,FALSE)) ->  | C39: =IF(ISBLANK(A39),"",SUMIFS(Sales!$D$3:$D$101,Sales!$B$3:$B$101,A39)) ->  | F39: =_xlfn.IFS(ISBLANK(D39),"",E39<D39,"YES",E39>=D39,"NO") -> 
B40: =IF(ISBLANK(A40),"",VLOOKUP(A40,Expenses!B40:E137,2,FALSE)) ->  | C40: =IF(ISBLANK(A40),"",SUMIFS(Sales!$D$3:$D$101,Sales!$B$3:$B$101,A40)) ->  | F40: =_xlfn.IFS(ISBLANK(D40),"",E40<D40,"YES",E40>=D40,"NO") -> 
B41: =IF(ISBLANK(A41),"",VLOOKUP(A41,Expenses!B41:E138,2,FALSE)) ->  | C41: =IF(ISBLANK(A41),"",SUMIFS(Sales!$D$3:$D$101,Sales!$B$3:$B$101,A41)) ->  | F41: =_xlfn.IFS(ISBLANK(D41),"",E41<D41,"YES",E41>=D41,"NO") -> 
B42: =IF(ISBLANK(A42),"",VLOOKUP(A42,Expenses!B42:E139,2,FALSE)) ->  | C42: =IF(ISBLANK(A42),"",SUMIFS(Sales!$D$3:$D$101,Sales!$B$3:$B$101,A42)) ->  | F42: =_xlfn.IFS(ISBLANK(D42),"",E42<D42,"YES",E42>=D42,"NO") -> 
B43: =IF(ISBLANK(A43),"",VLOOKUP(A43,Expenses!B43:E140,2,FALSE)) ->  | C43: =IF(ISBLANK(A43),"",SUMIFS(Sales!$D$3:$D$101,Sales!$B$3:$B$101,A43)) ->  | F43: =_xlfn.IFS(ISBLANK(D43),"",E43<D43,"YES",E43>=D43,"NO") -> 
B44: =IF(ISBLANK(A44),"",VLOOKUP(A44,Expenses!B44:E141,2,FALSE)) ->  | C44: =IF(ISBLANK(A44),"",SUMIFS(Sales!$D$3:$D$101,Sales!$B$3:$B$101,A44)) ->  | F44: =_xlfn.IFS(ISBLANK(D44),"",E44<D44,"YES",E44>=D44,"NO") -> 
B45: =IF(ISBLANK(A45),"",VLOOKUP(A45,Expenses!B45:E142,2,FALSE)) ->  | C45: =IF(ISBLANK(A45),"",SUMIFS(Sales!$D$3:$D$101,Sales!$B$3:$B$101,A45)) ->  | F45: =_xlfn.IFS(ISBLANK(D45),"",E45<D45,"YES",E45>=D45,"NO") -> 
B46: =IF(ISBLANK(A46),"",VLOOKUP(A46,Expenses!B46:E143,2,FALSE)) ->  | C46: =IF(ISBLANK(A46),"",SUMIFS(Sales!$D$3:$D$101,Sales!$B$3:$B$101,A46)) ->  | F46: =_xlfn.IFS(ISBLANK(D46),"",E46<D46,"YES",E46>=D46,"NO") -> 
B47: =IF(ISBLANK(A47),"",VLOOKUP(A47,Expenses!B47:E144,2,FALSE)) ->  | C47: =IF(ISBLANK(A47),"",SUMIFS(Sales!$D$3:$D$101,Sales!$B$3:$B$101,A47)) ->  | F47: =_xlfn.IFS(ISBLANK(D47),"",E47<D47,"YES",E47>=D47,"NO") -> 
B48: =IF(ISBLANK(A48),"",VLOOKUP(A48,Expenses!B48:E145,2,FALSE)) ->  | C48: =IF(ISBLANK(A48),"",SUMIFS(Sales!$D$3:$D$101,Sales!$B$3:$B$101,A48)) ->  | F48: =_xlfn.IFS(ISBLANK(D48),"",E48<D48,"YES",E48>=D48,"NO") -> 
B49: =IF(ISBLANK(A49),"",VLOOKUP(A49,Expenses!B49:E146,2,FALSE)) ->  | C49: =IF(ISBLANK(A49),"",SUMIFS(Sales!$D$3:$D$101,Sales!$B$3:$B$101,A49)) ->  | F49: =_xlfn.IFS(ISBLANK(D49),"",E49<D49,"YES",E49>=D49,"NO") -> 
B50: =IF(ISBLANK(A50),"",VLOOKUP(A50,Expenses!B50:E147,2,FALSE)) ->  | C50: =IF(ISBLANK(A50),"",SUMIFS(Sales!$D$3:$D$101,Sales!$B$3:$B$101,A50)) ->  | F50: =_xlfn.IFS(ISBLANK(D50),"",E50<D50,"YES",E50>=D50,"NO") -> 
B51: =IF(ISBLANK(A51),"",VLOOKUP(A51,Expenses!B51:E148,2,FALSE)) ->  | C51: =IF(ISBLANK(A51),"",SUMIFS(Sales!$D$3:$D$101,Sales!$B$3:$B$101,A51)) ->  | F51: =_xlfn.IFS(ISBLANK(D51),"",E51<D51,"YES",E51>=D51,"NO") -> 
B52: =IF(ISBLANK(A52),"",VLOOKUP(A52,Expenses!B52:E149,2,FALSE)) ->  | C52: =IF(ISBLANK(A52),"",SUMIFS(Sales!$D$3:$D$101,Sales!$B$3:$B$101,A52)) ->  | F52: =_xlfn.IFS(ISBLANK(D52),"",E52<D52,"YES",E52>=D52,"NO") -> 
B53: =IF(ISBLANK(A53),"",VLOOKUP(A53,Expenses!B53:E150,2,FALSE)) ->  | C53: =IF(ISBLANK(A53),"",SUMIFS(Sales!$D$3:$D$101,Sales!$B$3:$B$101,A53)) ->  | F53: =_xlfn.IFS(ISBLANK(D53),"",E53<D53,"YES",E53>=D53,"NO") -> 
B54: =IF(ISBLANK(A54),"",VLOOKUP(A54,Expenses!B54:E151,2,FALSE)) ->  | C54: =IF(ISBLANK(A54),"",SUMIFS(Sales!$D$3:$D$101,Sales!$B$3:$B$101,A54)) ->  | F54: =_xlfn.IFS(ISBLANK(D54),"",E54<D54,"YES",E54>=D54,"NO") -> 
B55: =IF(ISBLANK(A55),"",VLOOKUP(A55,Expenses!B55:E152,2,FALSE)) ->  | C55: =IF(ISBLANK(A55),"",SUMIFS(Sales!$D$3:$D$101,Sales!$B$3:$B$101,A55)) ->  | F55: =_xlfn.IFS(ISBLANK(D55),"",E55<D55,"YES",E55>=D55,"NO") -> 
B56: =IF(ISBLANK(A56),"",VLOOKUP(A56,Expenses!B56:E153,2,FALSE)) ->  | C56: =IF(ISBLANK(A56),"",SUMIFS(Sales!$D$3:$D$101,Sales!$B$3:$B$101,A56)) ->  | F56: =_xlfn.IFS(ISBLANK(D56),"",E56<D56,"YES",E56>=D56,"NO") -> 
B57: =IF(ISBLANK(A57),"",VLOOKUP(A57,Expenses!B57:E154,2,FALSE)) ->  | C57: =IF(ISBLANK(A57),"",SUMIFS(Sales!$D$3:$D$101,Sales!$B$3:$B$101,A57)) ->  | F57: =_xlfn.IFS(ISBLANK(D57),"",E57<D57,"YES",E57>=D57,"NO") -> 
B58: =IF(ISBLANK(A58),"",VLOOKUP(A58,Expenses!B58:E155,2,FALSE)) ->  | C58: =IF(ISBLANK(A58),"",SUMIFS(Sales!$D$3:$D$101,Sales!$B$3:$B$101,A58)) ->  | F58: =_xlfn.IFS(ISBLANK(D58),"",E58<D58,"YES",E58>=D58,"NO") -> 
B59: =IF(ISBLANK(A59),"",VLOOKUP(A59,Expenses!B59:E156,2,FALSE)) ->  | C59: =IF(ISBLANK(A59),"",SUMIFS(Sales!$D$3:$D$101,Sales!$B$3:$B$101,A59)) ->  | F59: =_xlfn.IFS(ISBLANK(D59),"",E59<D59,"YES",E59>=D59,"NO") -> 
B60: =IF(ISBLANK(A60),"",VLOOKUP(A60,Expenses!B60:E157,2,FALSE)) ->  | C60: =IF(ISBLANK(A60),"",SUMIFS(Sales!$D$3:$D$101,Sales!$B$3:$B$101,A60)) ->  | F60: =_xlfn.IFS(ISBLANK(D60),"",E60<D60,"YES",E60>=D60,"NO") -> 
B61: =IF(ISBLANK(A61),"",VLOOKUP(A61,Expenses!B61:E158,2,FALSE)) ->  | C61: =IF(ISBLANK(A61),"",SUMIFS(Sales!$D$3:$D$101,Sales!$B$3:$B$101,A61)) ->  | F61: =_xlfn.IFS(ISBLANK(D61),"",E61<D61,"YES",E61>=D61,"NO") -> 
B62: =IF(ISBLANK(A62),"",VLOOKUP(A62,Expenses!B62:E159,2,FALSE)) ->  | C62: =IF(ISBLANK(A62),"",SUMIFS(Sales!$D$3:$D$101,Sales!$B$3:$B$101,A62)) ->  | F62: =_xlfn.IFS(ISBLANK(D62),"",E62<D62,"YES",E62>=D62,"NO") -> 
B63: =IF(ISBLANK(A63),"",VLOOKUP(A63,Expenses!B63:E160,2,FALSE)) ->  | C63: =IF(ISBLANK(A63),"",SUMIFS(Sales!$D$3:$D$101,Sales!$B$3:$B$101,A63)) ->  | F63: =_xlfn.IFS(ISBLANK(D63),"",E63<D63,"YES",E63>=D63,"NO") -> 
B64: =IF(ISBLANK(A64),"",VLOOKUP(A64,Expenses!B64:E161,2,FALSE)) ->  | C64: =IF(ISBLANK(A64),"",SUMIFS(Sales!$D$3:$D$101,Sales!$B$3:$B$101,A64)) ->  | F64: =_xlfn.IFS(ISBLANK(D64),"",E64<D64,"YES",E64>=D64,"NO") -> 
B65: =IF(ISBLANK(A65),"",VLOOKUP(A65,Expenses!B65:E162,2,FALSE)) ->  | C65: =IF(ISBLANK(A65),"",SUMIFS(Sales!$D$3:$D$101,Sales!$B$3:$B$101,A65)) ->  | F65: =_xlfn.IFS(ISBLANK(D65),"",E65<D65,"YES",E65>=D65,"NO") -> 
B66: =IF(ISBLANK(A66),"",VLOOKUP(A66,Expenses!B66:E163,2,FALSE)) ->  | C66: =IF(ISBLANK(A66),"",SUMIFS(Sales!$D$3:$D$101,Sales!$B$3:$B$101,A66)) ->  | F66: =_xlfn.IFS(ISBLANK(D66),"",E66<D66,"YES",E66>=D66,"NO") -> 
B67: =IF(ISBLANK(A67),"",VLOOKUP(A67,Expenses!B67:E164,2,FALSE)) ->  | C67: =IF(ISBLANK(A67),"",SUMIFS(Sales!$D$3:$D$101,Sales!$B$3:$B$101,A67)) ->  | F67: =_xlfn.IFS(ISBLANK(D67),"",E67<D67,"YES",E67>=D67,"NO") -> 
B68: =IF(ISBLANK(A68),"",VLOOKUP(A68,Expenses!B68:E165,2,FALSE)) ->  | C68: =IF(ISBLANK(A68),"",SUMIFS(Sales!$D$3:$D$101,Sales!$B$3:$B$101,A68)) ->  | E68: =IF(ISBLANK(A68),"",B68-C68) ->  | F68: =_xlfn.IFS(ISBLANK(D68),"",E68<D68,"YES",E68>=D68,"NO") -> 
B69: =IF(ISBLANK(A69),"",VLOOKUP(A69,Expenses!B69:E166,2,FALSE)) ->  | C69: =IF(ISBLANK(A69),"",SUMIFS(Sales!$D$3:$D$101,Sales!$B$3:$B$101,A69)) ->  | F69: =_xlfn.IFS(ISBLANK(D69),"",E69<D69,"YES",E69>=D69,"NO") -> 
B70: =IF(ISBLANK(A70),"",VLOOKUP(A70,Expenses!B70:E167,2,FALSE)) ->  | C70: =IF(ISBLANK(A70),"",SUMIFS(Sales!$D$3:$D$101,Sales!$B$3:$B$101,A70)) ->  | F70: =_xlfn.IFS(ISBLANK(D70),"",E70<D70,"YES",E70>=D70,"NO") -> 
B71: =IF(ISBLANK(A71),"",VLOOKUP(A71,Expenses!B71:E168,2,FALSE)) ->  | C71: =IF(ISBLANK(A71),"",SUMIFS(Sales!$D$3:$D$101,Sales!$B$3:$B$101,A71)) ->  | F71: =_xlfn.IFS(ISBLANK(D71),"",E71<D71,"YES",E71>=D71,"NO") -> 
B72: =IF(ISBLANK(A72),"",VLOOKUP(A72,Expenses!B72:E169,2,FALSE)) ->  | C72: =IF(ISBLANK(A72),"",SUMIFS(Sales!$D$3:$D$101,Sales!$B$3:$B$101,A72)) ->  | F72: =_xlfn.IFS(ISBLANK(D72),"",E72<D72,"YES",E72>=D72,"NO") -> 
B73: =IF(ISBLANK(A73),"",VLOOKUP(A73,Expenses!B73:E170,2,FALSE)) ->  | C73: =IF(ISBLANK(A73),"",SUMIFS(Sales!$D$3:$D$101,Sales!$B$3:$B$101,A73)) ->  | F73: =_xlfn.IFS(ISBLANK(D73),"",E73<D73,"YES",E73>=D73,"NO") -> 
B74: =IF(ISBLANK(A74),"",VLOOKUP(A74,Expenses!B74:E171,2,FALSE)) ->  | C74: =IF(ISBLANK(A74),"",SUMIFS(Sales!$D$3:$D$101,Sales!$B$3:$B$101,A74)) ->  | F74: =_xlfn.IFS(ISBLANK(D74),"",E74<D74,"YES",E74>=D74,"NO") -> 
B75: =IF(ISBLANK(A75),"",VLOOKUP(A75,Expenses!B75:E172,2,FALSE)) ->  | C75: =IF(ISBLANK(A75),"",SUMIFS(Sales!$D$3:$D$101,Sales!$B$3:$B$101,A75)) ->  | F75: =_xlfn.IFS(ISBLANK(D75),"",E75<D75,"YES",E75>=D75,"NO") -> 
B76: =IF(ISBLANK(A76),"",VLOOKUP(A76,Expenses!B76:E173,2,FALSE)) ->  | C76: =IF(ISBLANK(A76),"",SUMIFS(Sales!$D$3:$D$101,Sales!$B$3:$B$101,A76)) ->  | F76: =_xlfn.IFS(ISBLANK(D76),"",E76<D76,"YES",E76>=D76,"NO") -> 
B77: =IF(ISBLANK(A77),"",VLOOKUP(A77,Expenses!B77:E174,2,FALSE)) ->  | C77: =IF(ISBLANK(A77),"",SUMIFS(Sales!$D$3:$D$101,Sales!$B$3:$B$101,A77)) ->  | F77: =_xlfn.IFS(ISBLANK(D77),"",E77<D77,"YES",E77>=D77,"NO") -> 
B78: =IF(ISBLANK(A78),"",VLOOKUP(A78,Expenses!B78:E175,2,FALSE)) ->  | C78: =IF(ISBLANK(A78),"",SUMIFS(Sales!$D$3:$D$101,Sales!$B$3:$B$101,A78)) ->  | F78: =_xlfn.IFS(ISBLANK(D78),"",E78<D78,"YES",E78>=D78,"NO") -> 
B79: =IF(ISBLANK(A79),"",VLOOKUP(A79,Expenses!B79:E176,2,FALSE)) ->  | C79: =IF(ISBLANK(A79),"",SUMIFS(Sales!$D$3:$D$101,Sales!$B$3:$B$101,A79)) ->  | F79: =_xlfn.IFS(ISBLANK(D79),"",E79<D79,"YES",E79>=D79,"NO") -> 
B80: =IF(ISBLANK(A80),"",VLOOKUP(A80,Expenses!B80:E177,2,FALSE)) ->  | C80: =IF(ISBLANK(A80),"",SUMIFS(Sales!$D$3:$D$101,Sales!$B$3:$B$101,A80)) ->  | F80: =_xlfn.IFS(ISBLANK(D80),"",E80<D80,"YES",E80>=D80,"NO") -> 
B81: =IF(ISBLANK(A81),"",VLOOKUP(A81,Expenses!B81:E178,2,FALSE)) ->  | C81: =IF(ISBLANK(A81),"",SUMIFS(Sales!$D$3:$D$101,Sales!$B$3:$B$101,A81)) ->  | F81: =_xlfn.IFS(ISBLANK(D81),"",E81<D81,"YES",E81>=D81,"NO") -> 
B82: =IF(ISBLANK(A82),"",VLOOKUP(A82,Expenses!B82:E179,2,FALSE)) ->  | C82: =IF(ISBLANK(A82),"",SUMIFS(Sales!$D$3:$D$101,Sales!$B$3:$B$101,A82)) ->  | F82: =_xlfn.IFS(ISBLANK(D82),"",E82<D82,"YES",E82>=D82,"NO") -> 
B83: =IF(ISBLANK(A83),"",VLOOKUP(A83,Expenses!B83:E180,2,FALSE)) ->  | C83: =IF(ISBLANK(A83),"",SUMIFS(Sales!$D$3:$D$101,Sales!$B$3:$B$101,A83)) ->  | F83: =_xlfn.IFS(ISBLANK(D83),"",E83<D83,"YES",E83>=D83,"NO") -> 
B84: =IF(ISBLANK(A84),"",VLOOKUP(A84,Expenses!B84:E181,2,FALSE)) ->  | C84: =IF(ISBLANK(A84),"",SUMIFS(Sales!$D$3:$D$101,Sales!$B$3:$B$101,A84)) ->  | F84: =_xlfn.IFS(ISBLANK(D84),"",E84<D84,"YES",E84>=D84,"NO") -> 
B85: =IF(ISBLANK(A85),"",VLOOKUP(A85,Expenses!B85:E182,2,FALSE)) ->  | C85: =IF(ISBLANK(A85),"",SUMIFS(Sales!$D$3:$D$101,Sales!$B$3:$B$101,A85)) ->  | F85: =_xlfn.IFS(ISBLANK(D85),"",E85<D85,"YES",E85>=D85,"NO") -> 
B86: =IF(ISBLANK(A86),"",VLOOKUP(A86,Expenses!B86:E183,2,FALSE)) ->  | C86: =IF(ISBLANK(A86),"",SUMIFS(Sales!$D$3:$D$101,Sales!$B$3:$B$101,A86)) ->  | F86: =_xlfn.IFS(ISBLANK(D86),"",E86<D86,"YES",E86>=D86,"NO") -> 
B87: =IF(ISBLANK(A87),"",VLOOKUP(A87,Expenses!B87:E184,2,FALSE)) ->  | C87: =IF(ISBLANK(A87),"",SUMIFS(Sales!$D$3:$D$101,Sales!$B$3:$B$101,A87)) ->  | F87: =_xlfn.IFS(ISBLANK(D87),"",E87<D87,"YES",E87>=D87,"NO") -> 
B88: =IF(ISBLANK(A88),"",VLOOKUP(A88,Expenses!B88:E185,2,FALSE)) ->  | C88: =IF(ISBLANK(A88),"",SUMIFS(Sales!$D$3:$D$101,Sales!$B$3:$B$101,A88)) ->  | F88: =_xlfn.IFS(ISBLANK(D88),"",E88<D88,"YES",E88>=D88,"NO") -> 
B89: =IF(ISBLANK(A89),"",VLOOKUP(A89,Expenses!B89:E186,2,FALSE)) ->  | C89: =IF(ISBLANK(A89),"",SUMIFS(Sales!$D$3:$D$101,Sales!$B$3:$B$101,A89)) ->  | F89: =_xlfn.IFS(ISBLANK(D89),"",E89<D89,"YES",E89>=D89,"NO") -> 
B90: =IF(ISBLANK(A90),"",VLOOKUP(A90,Expenses!B90:E187,2,FALSE)) ->  | C90: =IF(ISBLANK(A90),"",SUMIFS(Sales!$D$3:$D$101,Sales!$B$3:$B$101,A90)) ->  | F90: =_xlfn.IFS(ISBLANK(D90),"",E90<D90,"YES",E90>=D90,"NO") -> 
B91: =IF(ISBLANK(A91),"",VLOOKUP(A91,Expenses!B91:E188,2,FALSE)) ->  | C91: =IF(ISBLANK(A91),"",SUMIFS(Sales!$D$3:$D$101,Sales!$B$3:$B$101,A91)) ->  | F91: =_xlfn.IFS(ISBLANK(D91),"",E91<D91,"YES",E91>=D91,"NO") -> 
B92: =IF(ISBLANK(A92),"",VLOOKUP(A92,Expenses!B92:E189,2,FALSE)) ->  | C92: =IF(ISBLANK(A92),"",SUMIFS(Sales!$D$3:$D$101,Sales!$B$3:$B$101,A92)) ->  | F92: =_xlfn.IFS(ISBLANK(D92),"",E92<D92,"YES",E92>=D92,"NO") -> 
B93: =IF(ISBLANK(A93),"",VLOOKUP(A93,Expenses!B93:E190,2,FALSE)) ->  | C93: =IF(ISBLANK(A93),"",SUMIFS(Sales!$D$3:$D$101,Sales!$B$3:$B$101,A93)) ->  | F93: =_xlfn.IFS(ISBLANK(D93),"",E93<D93,"YES",E93>=D93,"NO") -> 
B94: =IF(ISBLANK(A94),"",VLOOKUP(A94,Expenses!B94:E191,2,FALSE)) ->  | C94: =IF(ISBLANK(A94),"",SUMIFS(Sales!$D$3:$D$101,Sales!$B$3:$B$101,A94)) ->  | F94: =_xlfn.IFS(ISBLANK(D94),"",E94<D94,"YES",E94>=D94,"NO") -> 
B95: =IF(ISBLANK(A95),"",VLOOKUP(A95,Expenses!B95:E192,2,FALSE)) ->  | C95: =IF(ISBLANK(A95),"",SUMIFS(Sales!$D$3:$D$101,Sales!$B$3:$B$101,A95)) ->  | F95: =_xlfn.IFS(ISBLANK(D95),"",E95<D95,"YES",E95>=D95,"NO") -> 
B96: =IF(ISBLANK(A96),"",VLOOKUP(A96,Expenses!B96:E193,2,FALSE)) ->  | C96: =IF(ISBLANK(A96),"",SUMIFS(Sales!$D$3:$D$101,Sales!$B$3:$B$101,A96)) ->  | F96: =_xlfn.IFS(ISBLANK(D96),"",E96<D96,"YES",E96>=D96,"NO") -> 
B97: =IF(ISBLANK(A97),"",VLOOKUP(A97,Expenses!B97:E194,2,FALSE)) ->  | C97: =IF(ISBLANK(A97),"",SUMIFS(Sales!$D$3:$D$101,Sales!$B$3:$B$101,A97)) ->  | F97: =_xlfn.IFS(ISBLANK(D97),"",E97<D97,"YES",E97>=D97,"NO") -> 
B98: =IF(ISBLANK(A98),"",VLOOKUP(A98,Expenses!B98:E195,2,FALSE)) ->  | C98: =IF(ISBLANK(A98),"",SUMIFS(Sales!$D$3:$D$101,Sales!$B$3:$B$101,A98)) ->  | F98: =_xlfn.IFS(ISBLANK(D98),"",E98<D98,"YES",E98>=D98,"NO") -> 
B99: =IF(ISBLANK(A99),"",VLOOKUP(A99,Expenses!B99:E196,2,FALSE)) ->  | C99: =IF(ISBLANK(A99),"",SUMIFS(Sales!$D$3:$D$101,Sales!$B$3:$B$101,A99)) ->  | F99: =_xlfn.IFS(ISBLANK(D99),"",E99<D99,"YES",E99>=D99,"NO") -> 
B100: =IF(ISBLANK(A100),"",VLOOKUP(A100,Expenses!B100:E197,2,FALSE)) ->  | C100: =IF(ISBLANK(A100),"",SUMIFS(Sales!$D$3:$D$101,Sales!$B$3:$B$101,A100)) ->  | F100: =_xlfn.IFS(ISBLANK(D100),"",E100<D100,"YES",E100>=D100,"NO") -> 
B101: =IF(ISBLANK(A101),"",VLOOKUP(A101,Expenses!B101:E198,2,FALSE)) ->  | C101: =IF(ISBLANK(A101),"",SUMIFS(Sales!$D$3:$D$101,Sales!$B$3:$B$101,A101)) ->  | F101: =_xlfn.IFS(ISBLANK(D101),"",E101<D101,"YES",E101>=D101,"NO") -> 
B102: =IF(ISBLANK(A102),"",VLOOKUP(A102,Expenses!B102:E199,2,FALSE)) ->  | C102: =IF(ISBLANK(A102),"",SUMIFS(Sales!$D$3:$D$101,Sales!$B$3:$B$101,A102)) ->  | F102: =_xlfn.IFS(ISBLANK(D102),"",E102<D102,"YES",E102>=D102,"NO") -> 
B103: =IF(ISBLANK(A103),"",VLOOKUP(A103,Expenses!B103:E200,2,FALSE)) ->  | C103: =IF(ISBLANK(A103),"",SUMIFS(Sales!$D$3:$D$101,Sales!$B$3:$B$101,A103)) ->  | F103: =_xlfn.IFS(ISBLANK(D103),"",E103<D103,"YES",E103>=D103,"NO") -> 
B104: =IF(ISBLANK(A104),"",VLOOKUP(A104,Expenses!B104:E201,2,FALSE)) ->  | C104: =IF(ISBLANK(A104),"",SUMIFS(Sales!$D$3:$D$101,Sales!$B$3:$B$101,A104)) ->  | F104: =_xlfn.IFS(ISBLANK(D104),"",E104<D104,"YES",E104>=D104,"NO") -> 
B105: =IF(ISBLANK(A105),"",VLOOKUP(A105,Expenses!B105:E202,2,FALSE)) ->  | C105: =IF(ISBLANK(A105),"",SUMIFS(Sales!$D$3:$D$101,Sales!$B$3:$B$101,A105)) ->  | F105: =_xlfn.IFS(ISBLANK(D105),"",E105<D105,"YES",E105>=D105,"NO") -> 
B106: =IF(ISBLANK(A106),"",VLOOKUP(A106,Expenses!B106:E203,2,FALSE)) ->  | C106: =IF(ISBLANK(A106),"",SUMIFS(Sales!$D$3:$D$101,Sales!$B$3:$B$101,A106)) ->  | F106: =_xlfn.IFS(ISBLANK(D106),"",E106<D106,"YES",E106>=D106,"NO") -> 
B107: =IF(ISBLANK(A107),"",VLOOKUP(A107,Expenses!B107:E204,2,FALSE)) ->  | C107: =IF(ISBLANK(A107),"",SUMIFS(Sales!$D$3:$D$101,Sales!$B$3:$B$101,A107)) ->  | F107: =_xlfn.IFS(ISBLANK(D107),"",E107<D107,"YES",E107>=D107,"NO") -> 
B108: =IF(ISBLANK(A108),"",VLOOKUP(A108,Expenses!B108:E205,2,FALSE)) ->  | C108: =IF(ISBLANK(A108),"",SUMIFS(Sales!$D$3:$D$101,Sales!$B$3:$B$101,A108)) ->  | F108: =_xlfn.IFS(ISBLANK(D108),"",E108<D108,"YES",E108>=D108,"NO") -> 
B109: =IF(ISBLANK(A109),"",VLOOKUP(A109,Expenses!B109:E206,2,FALSE)) ->  | C109: =IF(ISBLANK(A109),"",SUMIFS(Sales!$D$3:$D$101,Sales!$B$3:$B$101,A109)) ->  | F109: =_xlfn.IFS(ISBLANK(D109),"",E109<D109,"YES",E109>=D109,"NO") -> 
B110: =IF(ISBLANK(A110),"",VLOOKUP(A110,Expenses!B110:E207,2,FALSE)) ->  | C110: =IF(ISBLANK(A110),"",SUMIFS(Sales!$D$3:$D$101,Sales!$B$3:$B$101,A110)) ->  | F110: =_xlfn.IFS(ISBLANK(D110),"",E110<D110,"YES",E110>=D110,"NO") -> 
B111: =IF(ISBLANK(A111),"",VLOOKUP(A111,Expenses!B111:E208,2,FALSE)) ->  | C111: =IF(ISBLANK(A111),"",SUMIFS(Sales!$D$3:$D$101,Sales!$B$3:$B$101,A111)) ->  | F111: =_xlfn.IFS(ISBLANK(D111),"",E111<D111,"YES",E111>=D111,"NO") -> 
B112: =IF(ISBLANK(A112),"",VLOOKUP(A112,Expenses!B112:E209,2,FALSE)) ->  | C112: =IF(ISBLANK(A112),"",SUMIFS(Sales!$D$3:$D$101,Sales!$B$3:$B$101,A112)) ->  | F112: =_xlfn.IFS(ISBLANK(D112),"",E112<D112,"YES",E112>=D112,"NO") -> 
B113: =IF(ISBLANK(A113),"",VLOOKUP(A113,Expenses!B113:E210,2,FALSE)) ->  | C113: =IF(ISBLANK(A113),"",SUMIFS(Sales!$D$3:$D$101,Sales!$B$3:$B$101,A113)) ->  | F113: =_xlfn.IFS(ISBLANK(D113),"",E113<D113,"YES",E113>=D113,"NO") -> 
B114: =IF(ISBLANK(A114),"",VLOOKUP(A114,Expenses!B114:E211,2,FALSE)) ->  | C114: =IF(ISBLANK(A114),"",SUMIFS(Sales!$D$3:$D$101,Sales!$B$3:$B$101,A114)) ->  | F114: =_xlfn.IFS(ISBLANK(D114),"",E114<D114,"YES",E114>=D114,"NO") -> 
B115: =IF(ISBLANK(A115),"",VLOOKUP(A115,Expenses!B115:E212,2,FALSE)) ->  | C115: =IF(ISBLANK(A115),"",SUMIFS(Sales!$D$3:$D$101,Sales!$B$3:$B$101,A115)) ->  | F115: =_xlfn.IFS(ISBLANK(D115),"",E115<D115,"YES",E115>=D115,"NO") -> 
B116: =IF(ISBLANK(A116),"",VLOOKUP(A116,Expenses!B116:E213,2,FALSE)) ->  | C116: =IF(ISBLANK(A116),"",SUMIFS(Sales!$D$3:$D$101,Sales!$B$3:$B$101,A116)) ->  | F116: =_xlfn.IFS(ISBLANK(D116),"",E116<D116,"YES",E116>=D116,"NO") -> 
B117: =IF(ISBLANK(A117),"",VLOOKUP(A117,Expenses!B117:E214,2,FALSE)) ->  | C117: =IF(ISBLANK(A117),"",SUMIFS(Sales!$D$3:$D$101,Sales!$B$3:$B$101,A117)) ->  | F117: =_xlfn.IFS(ISBLANK(D117),"",E117<D117,"YES",E117>=D117,"NO") -> 
B118: =IF(ISBLANK(A118),"",VLOOKUP(A118,Expenses!B118:E215,2,FALSE)) ->  | C118: =IF(ISBLANK(A118),"",SUMIFS(Sales!$D$3:$D$101,Sales!$B$3:$B$101,A118)) ->  | F118: =_xlfn.IFS(ISBLANK(D118),"",E118<D118,"YES",E118>=D118,"NO") -> 
B119: =IF(ISBLANK(A119),"",VLOOKUP(A119,Expenses!B119:E216,2,FALSE)) ->  | C119: =IF(ISBLANK(A119),"",SUMIFS(Sales!$D$3:$D$101,Sales!$B$3:$B$101,A119)) ->  | F119: =_xlfn.IFS(ISBLANK(D119),"",E119<D119,"YES",E119>=D119,"NO") -> 

Sheet Price Comparison
A1: Price Comparisons
A2: Item Name | B2: Shoe Size | C2: Purchase Price | D2: Actual Sale Price | E2: Profit | F2: Actual Percent Profitted | G2: Market Sale Price (MSP) | H2: MSP Profit | I2: MSP Percent Profit | J2: Difference in Profit % at MSP and Actual Profit % | K2: Should Sale Price be higher to match MSP?
A3: =IF(ISBLANK(Sales!B3),"",Sales!B3) -> adidas-Yeezy-Boost-350-V2-Static | B3: =IF(ISBLANK(Sales!C3),"",Sales!C3) -> 5 | C3: =IFERROR(VLOOKUP(A3,Expenses!$B$3:$D$101,3,FALSE),"") -> 200 | D3: =IF(ISBLANK(Sales!B3),"",Sales!E3) -> 300 | E3: =IFERROR(D3-C3,"") -> 100 | F3: =IFERROR(E3/C3,"") -> 0.5 | G3: =IFERROR(IF(ISBLANK(A3),"",INDEX('2019 Market Price'!$B$6:$AA$57,MATCH(A3,'2019 Market Price'!$A$6:$A$57,0),MATCH(B3,'2019 Market Price'!$B$5:$AA$5,0))),"") -> 282.75 | H3: =IFERROR(G3-C3,"") -> 82.75 | I3: =IFERROR(H3/C3, "") -> 0.41375 | J3: =IFERROR(I3-F3,"") -> -0.08625 | K3: =IF(H3<=E3,"NO","YES") -> NO | M3: Legend
A4: =IF(ISBLANK(Sales!B4),"",Sales!B4) -> Adidas-Yeezy-Boost-350-V2-Blue-Tint | B4: =IF(ISBLANK(Sales!C4),"",Sales!C4) -> 9 | C4: =IFERROR(VLOOKUP(A4,Expenses!$B$3:$D$101,3,FALSE),"") -> 280 | D4: =IF(ISBLANK(Sales!B4),"",Sales!E4) -> 240 | E4: =IFERROR(D4-C4,"") -> -40 | F4: =IFERROR(E4/C4,"") -> -0.1428571429 | G4: =IFERROR(IF(ISBLANK(A4),"",INDEX('2019 Market Price'!$B$6:$AA$57,MATCH(A4,'2019 Market Price'!$A$6:$A$57,0),MATCH(B4,'2019 Market Price'!$B$5:$AA$5,0))),"") -> 352.4921369 | H4: =IFERROR(G4-C4,"") -> 72.49213691 | I4: =IFERROR(H4/C4, "") -> 0.258900489 | J4: =IFERROR(I4-F4,"") -> 0.4017576318 | K4: YES | N4: This represents that our profits from our current sale price either reaches or exceeds the profits we would have received compared to the market sale price.
A5: =IF(ISBLANK(Sales!B5),"",Sales!B5) -> Nike-Air-Force-1-Low-Off-White-Volt | B5: =IF(ISBLANK(Sales!C5),"",Sales!C5) -> 10 | C5: =IFERROR(VLOOKUP(A5,Expenses!$B$3:$D$101,3,FALSE),"") -> 120 | D5: =IF(ISBLANK(Sales!B5),"",Sales!E5) -> 400 | E5: 280 | F5: =IFERROR(E5/C5,"") -> 2.333333333 | G5: =IFERROR(IF(ISBLANK(A5),"",INDEX('2019 Market Price'!$B$6:$AA$57,MATCH(A5,'2019 Market Price'!$A$6:$A$57,0),MATCH(B5,'2019 Market Price'!$B$5:$AA$5,0))),"") -> 401.0948276 | H5: 281.0948276 | I5: 2.342456897 | J5: 0.009123563218 | K5: YES | N5: This represents that our profits from our current sale price can and should be raised to match the profits we would have received if we sold at the market sale price.
A6: =IF(ISBLANK(Sales!B6),"",Sales!B6) -> Nike-Air-Presto-Off-White-White-2018 | B6: =IF(ISBLANK(Sales!C6),"",Sales!C6) -> 11 | C6: =IFERROR(VLOOKUP(A6,Expenses!$B$3:$D$101,3,FALSE),"") -> 180 | D6: =IF(ISBLANK(Sales!B6),"",Sales!E6) -> 200 | E6: 20 | F6: 0.1111111111 | G6: =IFERROR(IF(ISBLANK(A6),"",INDEX('2019 Market Price'!$B$6:$AA$57,MATCH(A6,'2019 Market Price'!$A$6:$A$57,0),MATCH(B6,'2019 Market Price'!$B$5:$AA$5,0))),"") -> 615.3806452 | H6: 435.3806452 | I6: 2.418781362 | J6: 2.307670251 | K6: YES | M6: *Note: Green highlighted rows could also mean that there is currently no inputted data.
A7: =IF(ISBLANK(Sales!B7),"",Sales!B7) -> Adidas-Yeezy-Boost-350-V2-Zebra | B7: =IF(ISBLANK(Sales!C7),"",Sales!C7) -> 6 | C7: =IFERROR(VLOOKUP(A7,Expenses!$B$3:$D$101,3,FALSE),"") -> 100 | D7: =IF(ISBLANK(Sales!B7),"",Sales!E7) -> 120 | E7: 20 | F7: 0.2 | G7: =IFERROR(IF(ISBLANK(A7),"",INDEX('2019 Market Price'!$B$6:$AA$57,MATCH(A7,'2019 Market Price'!$A$6:$A$57,0),MATCH(B7,'2019 Market Price'!$B$5:$AA$5,0))),"") -> 382.6033898 | H7: =IFERROR(G7-C7,"") -> 282.6033898 | I7: 2.826033898 | J7: 2.626033898 | K7: YES
A8: =IF(ISBLANK(Sales!B8),"",Sales!B8) -> Adidas-Yeezy-Boost-350-Low-Pirate-Black-2015 | B8: =IF(ISBLANK(Sales!C8),"",Sales!C8) -> 7 | C8: =IFERROR(VLOOKUP(A8,Expenses!$B$3:$D$101,3,FALSE),"") -> 220 | D8: =IF(ISBLANK(Sales!B8),"",Sales!E8) -> 450 | E8: 230 | F8: 1.045454545 | G8: =IFERROR(IF(ISBLANK(A8),"",INDEX('2019 Market Price'!$B$6:$AA$57,MATCH(A8,'2019 Market Price'!$A$6:$A$57,0),MATCH(B8,'2019 Market Price'!$B$5:$AA$5,0))),"") -> 978 | H8: 758 | I8: 3.445454545 | J8: 2.4 | K8: YES
A9: =IF(ISBLANK(Sales!B9),"",Sales!B9) -> Nike-Blazer-Mid-Off-White-Wolf-Grey | B9: =IF(ISBLANK(Sales!C9),"",Sales!C9) -> 9 | C9: =IFERROR(VLOOKUP(A9,Expenses!$B$3:$D$101,3,FALSE),"") -> 150 | D9: =IF(ISBLANK(Sales!B9),"",Sales!E9) -> 800 | E9: =IFERROR(D9-C9,"") -> 650 | F9: 4.333333333 | G9: =IFERROR(IF(ISBLANK(A9),"",INDEX('2019 Market Price'!$B$6:$AA$57,MATCH(A9,'2019 Market Price'!$A$6:$A$57,0),MATCH(B9,'2019 Market Price'!$B$5:$AA$5,0))),"") -> 837.9285714 | H9: 687.9285714 | I9: 4.586190476 | J9: 0.2528571429 | K9: YES
A10: =IF(ISBLANK(Sales!B10),"",Sales!B10) -> Nike-Air-Presto-Off-White-White-2018 | B10: =IF(ISBLANK(Sales!C10),"",Sales!C10) -> 8.5 | C10: =IFERROR(VLOOKUP(A10,Expenses!$B$3:$D$101,3,FALSE),"") -> 180 | D10: =IF(ISBLANK(Sales!B10),"",Sales!E10) -> 400 | E10: 220 | F10: 1.222222222 | G10: =IFERROR(IF(ISBLANK(A10),"",INDEX('2019 Market Price'!$B$6:$AA$57,MATCH(A10,'2019 Market Price'!$A$6:$A$57,0),MATCH(B10,'2019 Market Price'!$B$5:$AA$5,0))),"") -> 0 | H10: -180 | I10: -1 | J10: -2.222222222 | K10: NO
A11: =IF(ISBLANK(Sales!B11),"",Sales!B11) -> Adidas-Yeezy-Boost-350-Low-Pirate-Black-2015 | B11: =IF(ISBLANK(Sales!C11),"",Sales!C11) -> 10 | C11: =IFERROR(VLOOKUP(A11,Expenses!$B$3:$D$101,3,FALSE),"") -> 220 | D11: =IF(ISBLANK(Sales!B11),"",Sales!E11) -> 300 | E11: 80 | F11: 0.3636363636 | G11: =IFERROR(IF(ISBLANK(A11),"",INDEX('2019 Market Price'!$B$6:$AA$57,MATCH(A11,'2019 Market Price'!$A$6:$A$57,0),MATCH(B11,'2019 Market Price'!$B$5:$AA$5,0))),"") -> 882.4666667 | H11: 662.4666667 | I11: 3.011212121 | J11: 2.647575758 | K11: YES
A12: =IF(ISBLANK(Sales!B12),"",Sales!B12) ->  | B12: =IF(ISBLANK(Sales!C12),"",Sales!C12) ->  | C12: =IFERROR(VLOOKUP(A12,Expenses!$B$3:$D$101,3,FALSE),"") ->  | D12: =IF(ISBLANK(Sales!B12),"",Sales!E12) ->  | G12: =IFERROR(IF(ISBLANK(A12),"",INDEX('2019 Market Price'!$B$6:$AA$57,MATCH(A12,'2019 Market Price'!$A$6:$A$57,0),MATCH(B12,'2019 Market Price'!$B$5:$AA$5,0))),"") ->  | K12: NO
A13: =IF(ISBLANK(Sales!B13),"",Sales!B13) ->  | B13: =IF(ISBLANK(Sales!C13),"",Sales!C13) ->  | C13: =IFERROR(VLOOKUP(A13,Expenses!$B$3:$D$101,3,FALSE),"") ->  | D13: =IF(ISBLANK(Sales!B13),"",Sales!E13) ->  | G13: =IFERROR(IF(ISBLANK(A13),"",INDEX('2019 Market Price'!$B$6:$AA$57,MATCH(A13,'2019 Market Price'!$A$6:$A$57,0),MATCH(B13,'2019 Market Price'!$B$5:$AA$5,0))),"") ->  | K13: NO
A14: =IF(ISBLANK(Sales!B14),"",Sales!B14) ->  | B14: =IF(ISBLANK(Sales!C14),"",Sales!C14) ->  | C14: =IFERROR(VLOOKUP(A14,Expenses!$B$3:$D$101,3,FALSE),"") ->  | D14: =IF(ISBLANK(Sales!B14),"",Sales!E14) ->  | G14: =IFERROR(IF(ISBLANK(A14),"",INDEX('2019 Market Price'!$B$6:$AA$57,MATCH(A14,'2019 Market Price'!$A$6:$A$57,0),MATCH(B14,'2019 Market Price'!$B$5:$AA$5,0))),"") ->  | K14: NO
A15: =IF(ISBLANK(Sales!B15),"",Sales!B15) ->  | B15: =IF(ISBLANK(Sales!C15),"",Sales!C15) ->  | C15: =IFERROR(VLOOKUP(A15,Expenses!$B$3:$D$101,3,FALSE),"") ->  | D15: =IF(ISBLANK(Sales!B15),"",Sales!E15) ->  | G15: =IFERROR(IF(ISBLANK(A15),"",INDEX('2019 Market Price'!$B$6:$AA$57,MATCH(A15,'2019 Market Price'!$A$6:$A$57,0),MATCH(B15,'2019 Market Price'!$B$5:$AA$5,0))),"") ->  | K15: NO
A16: =IF(ISBLANK(Sales!B16),"",Sales!B16) ->  | B16: =IF(ISBLANK(Sales!C16),"",Sales!C16) ->  | C16: =IFERROR(VLOOKUP(A16,Expenses!$B$3:$D$101,3,FALSE),"") ->  | D16: =IF(ISBLANK(Sales!B16),"",Sales!E16) ->  | G16: =IFERROR(IF(ISBLANK(A16),"",INDEX('2019 Market Price'!$B$6:$AA$57,MATCH(A16,'2019 Market Price'!$A$6:$A$57,0),MATCH(B16,'2019 Market Price'!$B$5:$AA$5,0))),"") ->  | K16: NO
A17: =IF(ISBLANK(Sales!B17),"",Sales!B17) ->  | B17: =IF(ISBLANK(Sales!C17),"",Sales!C17) ->  | C17: =IFERROR(VLOOKUP(A17,Expenses!$B$3:$D$101,3,FALSE),"") ->  | D17: =IF(ISBLANK(Sales!B17),"",Sales!E17) ->  | G17: =IFERROR(IF(ISBLANK(A17),"",INDEX('2019 Market Price'!$B$6:$AA$57,MATCH(A17,'2019 Market Price'!$A$6:$A$57,0),MATCH(B17,'2019 Market Price'!$B$5:$AA$5,0))),"") ->  | K17: NO
A18: =IF(ISBLANK(Sales!B18),"",Sales!B18) ->  | B18: =IF(ISBLANK(Sales!C18),"",Sales!C18) ->  | C18: =IFERROR(VLOOKUP(A18,Expenses!$B$3:$D$101,3,FALSE),"") ->  | D18: =IF(ISBLANK(Sales!B18),"",Sales!E18) ->  | G18: =IFERROR(IF(ISBLANK(A18),"",INDEX('2019 Market Price'!$B$6:$AA$57,MATCH(A18,'2019 Market Price'!$A$6:$A$57,0),MATCH(B18,'2019 Market Price'!$B$5:$AA$5,0))),"") ->  | K18: NO
A19: =IF(ISBLANK(Sales!B19),"",Sales!B19) ->  | B19: =IF(ISBLANK(Sales!C19),"",Sales!C19) ->  | C19: =IFERROR(VLOOKUP(A19,Expenses!$B$3:$D$101,3,FALSE),"") ->  | D19: =IF(ISBLANK(Sales!B19),"",Sales!E19) ->  | G19: =IFERROR(IF(ISBLANK(A19),"",INDEX('2019 Market Price'!$B$6:$AA$57,MATCH(A19,'2019 Market Price'!$A$6:$A$57,0),MATCH(B19,'2019 Market Price'!$B$5:$AA$5,0))),"") ->  | K19: NO
A20: =IF(ISBLANK(Sales!B20),"",Sales!B20) ->  | B20: =IF(ISBLANK(Sales!C20),"",Sales!C20) ->  | C20: =IFERROR(VLOOKUP(A20,Expenses!$B$3:$D$101,3,FALSE),"") ->  | D20: =IF(ISBLANK(Sales!B20),"",Sales!E20) ->  | G20: =IFERROR(IF(ISBLANK(A20),"",INDEX('2019 Market Price'!$B$6:$AA$57,MATCH(A20,'2019 Market Price'!$A$6:$A$57,0),MATCH(B20,'2019 Market Price'!$B$5:$AA$5,0))),"") ->  | K20: NO
A21: =IF(ISBLANK(Sales!B21),"",Sales!B21) ->  | B21: =IF(ISBLANK(Sales!C21),"",Sales!C21) ->  | C21: =IFERROR(VLOOKUP(A21,Expenses!$B$3:$D$101,3,FALSE),"") ->  | D21: =IF(ISBLANK(Sales!B21),"",Sales!E21) ->  | G21: =IFERROR(IF(ISBLANK(A21),"",INDEX('2019 Market Price'!$B$6:$AA$57,MATCH(A21,'2019 Market Price'!$A$6:$A$57,0),MATCH(B21,'2019 Market Price'!$B$5:$AA$5,0))),"") ->  | K21: NO
A22: =IF(ISBLANK(Sales!B22),"",Sales!B22) ->  | B22: =IF(ISBLANK(Sales!C22),"",Sales!C22) ->  | C22: =IFERROR(VLOOKUP(A22,Expenses!$B$3:$D$101,3,FALSE),"") ->  | D22: =IF(ISBLANK(Sales!B22),"",Sales!E22) ->  | G22: =IFERROR(IF(ISBLANK(A22),"",INDEX('2019 Market Price'!$B$6:$AA$57,MATCH(A22,'2019 Market Price'!$A$6:$A$57,0),MATCH(B22,'2019 Market Price'!$B$5:$AA$5,0))),"") ->  | K22: NO
A23: =IF(ISBLANK(Sales!B23),"",Sales!B23) ->  | B23: =IF(ISBLANK(Sales!C23),"",Sales!C23) ->  | C23: =IFERROR(VLOOKUP(A23,Expenses!$B$3:$D$101,3,FALSE),"") ->  | D23: =IF(ISBLANK(Sales!B23),"",Sales!E23) ->  | G23: =IFERROR(IF(ISBLANK(A23),"",INDEX('2019 Market Price'!$B$6:$AA$57,MATCH(A23,'2019 Market Price'!$A$6:$A$57,0),MATCH(B23,'2019 Market Price'!$B$5:$AA$5,0))),"") ->  | K23: NO
A24: =IF(ISBLANK(Sales!B24),"",Sales!B24) ->  | B24: =IF(ISBLANK(Sales!C24),"",Sales!C24) ->  | C24: =IFERROR(VLOOKUP(A24,Expenses!$B$3:$D$101,3,FALSE),"") ->  | D24: =IF(ISBLANK(Sales!B24),"",Sales!E24) ->  | G24: =IFERROR(IF(ISBLANK(A24),"",INDEX('2019 Market Price'!$B$6:$AA$57,MATCH(A24,'2019 Market Price'!$A$6:$A$57,0),MATCH(B24,'2019 Market Price'!$B$5:$AA$5,0))),"") ->  | K24: NO
A25: =IF(ISBLANK(Sales!B25),"",Sales!B25) ->  | B25: =IF(ISBLANK(Sales!C25),"",Sales!C25) ->  | C25: =IFERROR(VLOOKUP(A25,Expenses!$B$3:$D$101,3,FALSE),"") ->  | D25: =IF(ISBLANK(Sales!B25),"",Sales!E25) ->  | G25: =IFERROR(IF(ISBLANK(A25),"",INDEX('2019 Market Price'!$B$6:$AA$57,MATCH(A25,'2019 Market Price'!$A$6:$A$57,0),MATCH(B25,'2019 Market Price'!$B$5:$AA$5,0))),"") ->  | K25: NO
A26: =IF(ISBLANK(Sales!B26),"",Sales!B26) ->  | B26: =IF(ISBLANK(Sales!C26),"",Sales!C26) ->  | C26: =IFERROR(VLOOKUP(A26,Expenses!$B$3:$D$101,3,FALSE),"") ->  | D26: =IF(ISBLANK(Sales!B26),"",Sales!E26) ->  | G26: =IFERROR(IF(ISBLANK(A26),"",INDEX('2019 Market Price'!$B$6:$AA$57,MATCH(A26,'2019 Market Price'!$A$6:$A$57,0),MATCH(B26,'2019 Market Price'!$B$5:$AA$5,0))),"") ->  | K26: NO
A27: =IF(ISBLANK(Sales!B27),"",Sales!B27) ->  | B27: =IF(ISBLANK(Sales!C27),"",Sales!C27) ->  | C27: =IFERROR(VLOOKUP(A27,Expenses!$B$3:$D$101,3,FALSE),"") ->  | D27: =IF(ISBLANK(Sales!B27),"",Sales!E27) ->  | G27: =IFERROR(IF(ISBLANK(A27),"",INDEX('2019 Market Price'!$B$6:$AA$57,MATCH(A27,'2019 Market Price'!$A$6:$A$57,0),MATCH(B27,'2019 Market Price'!$B$5:$AA$5,0))),"") ->  | K27: NO
A28: =IF(ISBLANK(Sales!B28),"",Sales!B28) ->  | B28: =IF(ISBLANK(Sales!C28),"",Sales!C28) ->  | C28: =IFERROR(VLOOKUP(A28,Expenses!$B$3:$D$101,3,FALSE),"") ->  | D28: =IF(ISBLANK(Sales!B28),"",Sales!E28) ->  | G28: =IFERROR(IF(ISBLANK(A28),"",INDEX('2019 Market Price'!$B$6:$AA$57,MATCH(A28,'2019 Market Price'!$A$6:$A$57,0),MATCH(B28,'2019 Market Price'!$B$5:$AA$5,0))),"") ->  | K28: NO
A29: =IF(ISBLANK(Sales!B29),"",Sales!B29) ->  | B29: =IF(ISBLANK(Sales!C29),"",Sales!C29) ->  | C29: =IFERROR(VLOOKUP(A29,Expenses!$B$3:$D$101,3,FALSE),"") ->  | D29: =IF(ISBLANK(Sales!B29),"",Sales!E29) ->  | G29: =IFERROR(IF(ISBLANK(A29),"",INDEX('2019 Market Price'!$B$6:$AA$57,MATCH(A29,'2019 Market Price'!$A$6:$A$57,0),MATCH(B29,'2019 Market Price'!$B$5:$AA$5,0))),"") ->  | K29: NO
A30: =IF(ISBLANK(Sales!B30),"",Sales!B30) ->  | B30: =IF(ISBLANK(Sales!C30),"",Sales!C30) ->  | C30: =IFERROR(VLOOKUP(A30,Expenses!$B$3:$D$101,3,FALSE),"") ->  | D30: =IF(ISBLANK(Sales!B30),"",Sales!E30) ->  | G30: =IFERROR(IF(ISBLANK(A30),"",INDEX('2019 Market Price'!$B$6:$AA$57,MATCH(A30,'2019 Market Price'!$A$6:$A$57,0),MATCH(B30,'2019 Market Price'!$B$5:$AA$5,0))),"") ->  | K30: NO
A31: =IF(ISBLANK(Sales!B31),"",Sales!B31) ->  | B31: =IF(ISBLANK(Sales!C31),"",Sales!C31) ->  | C31: =IFERROR(VLOOKUP(A31,Expenses!$B$3:$D$101,3,FALSE),"") ->  | D31: =IF(ISBLANK(Sales!B31),"",Sales!E31) ->  | G31: =IFERROR(IF(ISBLANK(A31),"",INDEX('2019 Market Price'!$B$6:$AA$57,MATCH(A31,'2019 Market Price'!$A$6:$A$57,0),MATCH(B31,'2019 Market Price'!$B$5:$AA$5,0))),"") ->  | K31: NO
A32: =IF(ISBLANK(Sales!B32),"",Sales!B32) ->  | B32: =IF(ISBLANK(Sales!C32),"",Sales!C32) ->  | C32: =IFERROR(VLOOKUP(A32,Expenses!$B$3:$D$101,3,FALSE),"") ->  | D32: =IF(ISBLANK(Sales!B32),"",Sales!E32) ->  | G32: =IFERROR(IF(ISBLANK(A32),"",INDEX('2019 Market Price'!$B$6:$AA$57,MATCH(A32,'2019 Market Price'!$A$6:$A$57,0),MATCH(B32,'2019 Market Price'!$B$5:$AA$5,0))),"") ->  | K32: NO
A33: =IF(ISBLANK(Sales!B33),"",Sales!B33) ->  | B33: =IF(ISBLANK(Sales!C33),"",Sales!C33) ->  | C33: =IFERROR(VLOOKUP(A33,Expenses!$B$3:$D$101,3,FALSE),"") ->  | D33: =IF(ISBLANK(Sales!B33),"",Sales!E33) ->  | G33: =IFERROR(IF(ISBLANK(A33),"",INDEX('2019 Market Price'!$B$6:$AA$57,MATCH(A33,'2019 Market Price'!$A$6:$A$57,0),MATCH(B33,'2019 Market Price'!$B$5:$AA$5,0))),"") ->  | K33: NO
A34: =IF(ISBLANK(Sales!B34),"",Sales!B34) ->  | B34: =IF(ISBLANK(Sales!C34),"",Sales!C34) ->  | C34: =IFERROR(VLOOKUP(A34,Expenses!$B$3:$D$101,3,FALSE),"") ->  | D34: =IF(ISBLANK(Sales!B34),"",Sales!E34) ->  | G34: =IFERROR(IF(ISBLANK(A34),"",INDEX('2019 Market Price'!$B$6:$AA$57,MATCH(A34,'2019 Market Price'!$A$6:$A$57,0),MATCH(B34,'2019 Market Price'!$B$5:$AA$5,0))),"") ->  | K34: NO
A35: =IF(ISBLANK(Sales!B35),"",Sales!B35) ->  | B35: =IF(ISBLANK(Sales!C35),"",Sales!C35) ->  | C35: =IFERROR(VLOOKUP(A35,Expenses!$B$3:$D$101,3,FALSE),"") ->  | D35: =IF(ISBLANK(Sales!B35),"",Sales!E35) ->  | G35: =IFERROR(IF(ISBLANK(A35),"",INDEX('2019 Market Price'!$B$6:$AA$57,MATCH(A35,'2019 Market Price'!$A$6:$A$57,0),MATCH(B35,'2019 Market Price'!$B$5:$AA$5,0))),"") ->  | K35: =IF(H35<=E35,"NO","YES") -> NO
A36: =IF(ISBLANK(Sales!B36),"",Sales!B36) ->  | B36: =IF(ISBLANK(Sales!C36),"",Sales!C36) ->  | C36: =IFERROR(VLOOKUP(A36,Expenses!$B$3:$D$101,3,FALSE),"") ->  | D36: =IF(ISBLANK(Sales!B36),"",Sales!E36) ->  | G36: =IFERROR(IF(ISBLANK(A36),"",INDEX('2019 Market Price'!$B$6:$AA$57,MATCH(A36,'2019 Market Price'!$A$6:$A$57,0),MATCH(B36,'2019 Market Price'!$B$5:$AA$5,0))),"") ->  | K36: NO
A37: =IF(ISBLANK(Sales!B37),"",Sales!B37) ->  | B37: =IF(ISBLANK(Sales!C37),"",Sales!C37) ->  | C37: =IFERROR(VLOOKUP(A37,Expenses!$B$3:$D$101,3,FALSE),"") ->  | D37: =IF(ISBLANK(Sales!B37),"",Sales!E37) ->  | G37: =IFERROR(IF(ISBLANK(A37),"",INDEX('2019 Market Price'!$B$6:$AA$57,MATCH(A37,'2019 Market Price'!$A$6:$A$57,0),MATCH(B37,'2019 Market Price'!$B$5:$AA$5,0))),"") ->  | K37: NO
A38: =IF(ISBLANK(Sales!B38),"",Sales!B38) ->  | B38: =IF(ISBLANK(Sales!C38),"",Sales!C38) ->  | C38: =IFERROR(VLOOKUP(A38,Expenses!$B$3:$D$101,3,FALSE),"") ->  | D38: =IF(ISBLANK(Sales!B38),"",Sales!E38) ->  | G38: =IFERROR(IF(ISBLANK(A38),"",INDEX('2019 Market Price'!$B$6:$AA$57,MATCH(A38,'2019 Market Price'!$A$6:$A$57,0),MATCH(B38,'2019 Market Price'!$B$5:$AA$5,0))),"") ->  | K38: NO
A39: =IF(ISBLANK(Sales!B39),"",Sales!B39) ->  | B39: =IF(ISBLANK(Sales!C39),"",Sales!C39) ->  | C39: =IFERROR(VLOOKUP(A39,Expenses!$B$3:$D$101,3,FALSE),"") ->  | D39: =IF(ISBLANK(Sales!B39),"",Sales!E39) ->  | G39: =IFERROR(IF(ISBLANK(A39),"",INDEX('2019 Market Price'!$B$6:$AA$57,MATCH(A39,'2019 Market Price'!$A$6:$A$57,0),MATCH(B39,'2019 Market Price'!$B$5:$AA$5,0))),"") ->  | K39: NO
A40: =IF(ISBLANK(Sales!B40),"",Sales!B40) ->  | B40: =IF(ISBLANK(Sales!C40),"",Sales!C40) ->  | C40: =IFERROR(VLOOKUP(A40,Expenses!$B$3:$D$101,3,FALSE),"") ->  | D40: =IF(ISBLANK(Sales!B40),"",Sales!E40) ->  | G40: =IFERROR(IF(ISBLANK(A40),"",INDEX('2019 Market Price'!$B$6:$AA$57,MATCH(A40,'2019 Market Price'!$A$6:$A$57,0),MATCH(B40,'2019 Market Price'!$B$5:$AA$5,0))),"") ->  | K40: NO
A41: =IF(ISBLANK(Sales!B41),"",Sales!B41) ->  | B41: =IF(ISBLANK(Sales!C41),"",Sales!C41) ->  | C41: =IFERROR(VLOOKUP(A41,Expenses!$B$3:$D$101,3,FALSE),"") ->  | D41: =IF(ISBLANK(Sales!B41),"",Sales!E41) ->  | G41: =IFERROR(IF(ISBLANK(A41),"",INDEX('2019 Market Price'!$B$6:$AA$57,MATCH(A41,'2019 Market Price'!$A$6:$A$57,0),MATCH(B41,'2019 Market Price'!$B$5:$AA$5,0))),"") ->  | K41: NO
A42: =IF(ISBLANK(Sales!B42),"",Sales!B42) ->  | B42: =IF(ISBLANK(Sales!C42),"",Sales!C42) ->  | C42: =IFERROR(VLOOKUP(A42,Expenses!$B$3:$D$101,3,FALSE),"") ->  | D42: =IF(ISBLANK(Sales!B42),"",Sales!E42) ->  | G42: =IFERROR(IF(ISBLANK(A42),"",INDEX('2019 Market Price'!$B$6:$AA$57,MATCH(A42,'2019 Market Price'!$A$6:$A$57,0),MATCH(B42,'2019 Market Price'!$B$5:$AA$5,0))),"") ->  | K42: NO
A43: =IF(ISBLANK(Sales!B43),"",Sales!B43) ->  | B43: =IF(ISBLANK(Sales!C43),"",Sales!C43) ->  | C43: =IFERROR(VLOOKUP(A43,Expenses!$B$3:$D$101,3,FALSE),"") ->  | D43: =IF(ISBLANK(Sales!B43),"",Sales!E43) ->  | G43: =IFERROR(IF(ISBLANK(A43),"",INDEX('2019 Market Price'!$B$6:$AA$57,MATCH(A43,'2019 Market Price'!$A$6:$A$57,0),MATCH(B43,'2019 Market Price'!$B$5:$AA$5,0))),"") ->  | K43: NO
A44: =IF(ISBLANK(Sales!B44),"",Sales!B44) ->  | B44: =IF(ISBLANK(Sales!C44),"",Sales!C44) ->  | C44: =IFERROR(VLOOKUP(A44,Expenses!$B$3:$D$101,3,FALSE),"") ->  | D44: =IF(ISBLANK(Sales!B44),"",Sales!E44) ->  | G44: =IFERROR(IF(ISBLANK(A44),"",INDEX('2019 Market Price'!$B$6:$AA$57,MATCH(A44,'2019 Market Price'!$A$6:$A$57,0),MATCH(B44,'2019 Market Price'!$B$5:$AA$5,0))),"") ->  | K44: NO
A45: =IF(ISBLANK(Sales!B45),"",Sales!B45) ->  | B45: =IF(ISBLANK(Sales!C45),"",Sales!C45) ->  | C45: =IFERROR(VLOOKUP(A45,Expenses!$B$3:$D$101,3,FALSE),"") ->  | D45: =IF(ISBLANK(Sales!B45),"",Sales!E45) ->  | G45: =IFERROR(IF(ISBLANK(A45),"",INDEX('2019 Market Price'!$B$6:$AA$57,MATCH(A45,'2019 Market Price'!$A$6:$A$57,0),MATCH(B45,'2019 Market Price'!$B$5:$AA$5,0))),"") ->  | K45: NO
A46: =IF(ISBLANK(Sales!B46),"",Sales!B46) ->  | B46: =IF(ISBLANK(Sales!C46),"",Sales!C46) ->  | C46: =IFERROR(VLOOKUP(A46,Expenses!$B$3:$D$101,3,FALSE),"") ->  | D46: =IF(ISBLANK(Sales!B46),"",Sales!E46) ->  | G46: =IFERROR(IF(ISBLANK(A46),"",INDEX('2019 Market Price'!$B$6:$AA$57,MATCH(A46,'2019 Market Price'!$A$6:$A$57,0),MATCH(B46,'2019 Market Price'!$B$5:$AA$5,0))),"") ->  | K46: NO
A47: =IF(ISBLANK(Sales!B47),"",Sales!B47) ->  | B47: =IF(ISBLANK(Sales!C47),"",Sales!C47) ->  | C47: =IFERROR(VLOOKUP(A47,Expenses!$B$3:$D$101,3,FALSE),"") ->  | D47: =IF(ISBLANK(Sales!B47),"",Sales!E47) ->  | G47: =IFERROR(IF(ISBLANK(A47),"",INDEX('2019 Market Price'!$B$6:$AA$57,MATCH(A47,'2019 Market Price'!$A$6:$A$57,0),MATCH(B47,'2019 Market Price'!$B$5:$AA$5,0))),"") ->  | K47: NO
A48: =IF(ISBLANK(Sales!B48),"",Sales!B48) ->  | B48: =IF(ISBLANK(Sales!C48),"",Sales!C48) ->  | C48: =IFERROR(VLOOKUP(A48,Expenses!$B$3:$D$101,3,FALSE),"") ->  | D48: =IF(ISBLANK(Sales!B48),"",Sales!E48) ->  | G48: =IFERROR(IF(ISBLANK(A48),"",INDEX('2019 Market Price'!$B$6:$AA$57,MATCH(A48,'2019 Market Price'!$A$6:$A$57,0),MATCH(B48,'2019 Market Price'!$B$5:$AA$5,0))),"") ->  | K48: NO
A49: =IF(ISBLANK(Sales!B49),"",Sales!B49) ->  | B49: =IF(ISBLANK(Sales!C49),"",Sales!C49) ->  | C49: =IFERROR(VLOOKUP(A49,Expenses!$B$3:$D$101,3,FALSE),"") ->  | D49: =IF(ISBLANK(Sales!B49),"",Sales!E49) ->  | G49: =IFERROR(IF(ISBLANK(A49),"",INDEX('2019 Market Price'!$B$6:$AA$57,MATCH(A49,'2019 Market Price'!$A$6:$A$57,0),MATCH(B49,'2019 Market Price'!$B$5:$AA$5,0))),"") ->  | K49: NO
A50: =IF(ISBLANK(Sales!B50),"",Sales!B50) ->  | B50: =IF(ISBLANK(Sales!C50),"",Sales!C50) ->  | C50: =IFERROR(VLOOKUP(A50,Expenses!$B$3:$D$101,3,FALSE),"") ->  | D50: =IF(ISBLANK(Sales!B50),"",Sales!E50) ->  | G50: =IFERROR(IF(ISBLANK(A50),"",INDEX('2019 Market Price'!$B$6:$AA$57,MATCH(A50,'2019 Market Price'!$A$6:$A$57,0),MATCH(B50,'2019 Market Price'!$B$5:$AA$5,0))),"") ->  | K50: NO
A51: =IF(ISBLANK(Sales!B51),"",Sales!B51) ->  | B51: =IF(ISBLANK(Sales!C51),"",Sales!C51) ->  | C51: =IFERROR(VLOOKUP(A51,Expenses!$B$3:$D$101,3,FALSE),"") ->  | D51: =IF(ISBLANK(Sales!B51),"",Sales!E51) ->  | G51: =IFERROR(IF(ISBLANK(A51),"",INDEX('2019 Market Price'!$B$6:$AA$57,MATCH(A51,'2019 Market Price'!$A$6:$A$57,0),MATCH(B51,'2019 Market Price'!$B$5:$AA$5,0))),"") ->  | K51: NO
A52: =IF(ISBLANK(Sales!B52),"",Sales!B52) ->  | B52: =IF(ISBLANK(Sales!C52),"",Sales!C52) ->  | C52: =IFERROR(VLOOKUP(A52,Expenses!$B$3:$D$101,3,FALSE),"") ->  | D52: =IF(ISBLANK(Sales!B52),"",Sales!E52) ->  | G52: =IFERROR(IF(ISBLANK(A52),"",INDEX('2019 Market Price'!$B$6:$AA$57,MATCH(A52,'2019 Market Price'!$A$6:$A$57,0),MATCH(B52,'2019 Market Price'!$B$5:$AA$5,0))),"") ->  | K52: NO
A53: =IF(ISBLANK(Sales!B53),"",Sales!B53) ->  | B53: =IF(ISBLANK(Sales!C53),"",Sales!C53) ->  | C53: =IFERROR(VLOOKUP(A53,Expenses!$B$3:$D$101,3,FALSE),"") ->  | D53: =IF(ISBLANK(Sales!B53),"",Sales!E53) ->  | G53: =IFERROR(IF(ISBLANK(A53),"",INDEX('2019 Market Price'!$B$6:$AA$57,MATCH(A53,'2019 Market Price'!$A$6:$A$57,0),MATCH(B53,'2019 Market Price'!$B$5:$AA$5,0))),"") ->  | K53: NO
A54: =IF(ISBLANK(Sales!B54),"",Sales!B54) ->  | B54: =IF(ISBLANK(Sales!C54),"",Sales!C54) ->  | C54: =IFERROR(VLOOKUP(A54,Expenses!$B$3:$D$101,3,FALSE),"") ->  | D54: =IF(ISBLANK(Sales!B54),"",Sales!E54) ->  | G54: =IFERROR(IF(ISBLANK(A54),"",INDEX('2019 Market Price'!$B$6:$AA$57,MATCH(A54,'2019 Market Price'!$A$6:$A$57,0),MATCH(B54,'2019 Market Price'!$B$5:$AA$5,0))),"") ->  | K54: NO
A55: =IF(ISBLANK(Sales!B55),"",Sales!B55) ->  | B55: =IF(ISBLANK(Sales!C55),"",Sales!C55) ->  | C55: =IFERROR(VLOOKUP(A55,Expenses!$B$3:$D$101,3,FALSE),"") ->  | D55: =IF(ISBLANK(Sales!B55),"",Sales!E55) ->  | G55: =IFERROR(IF(ISBLANK(A55),"",INDEX('2019 Market Price'!$B$6:$AA$57,MATCH(A55,'2019 Market Price'!$A$6:$A$57,0),MATCH(B55,'2019 Market Price'!$B$5:$AA$5,0))),"") ->  | K55: NO
A56: =IF(ISBLANK(Sales!B56),"",Sales!B56) ->  | B56: =IF(ISBLANK(Sales!C56),"",Sales!C56) ->  | C56: =IFERROR(VLOOKUP(A56,Expenses!$B$3:$D$101,3,FALSE),"") ->  | D56: =IF(ISBLANK(Sales!B56),"",Sales!E56) ->  | G56: =IFERROR(IF(ISBLANK(A56),"",INDEX('2019 Market Price'!$B$6:$AA$57,MATCH(A56,'2019 Market Price'!$A$6:$A$57,0),MATCH(B56,'2019 Market Price'!$B$5:$AA$5,0))),"") ->  | K56: NO
A57: =IF(ISBLANK(Sales!B57),"",Sales!B57) ->  | B57: =IF(ISBLANK(Sales!C57),"",Sales!C57) ->  | C57: =IFERROR(VLOOKUP(A57,Expenses!$B$3:$D$101,3,FALSE),"") ->  | D57: =IF(ISBLANK(Sales!B57),"",Sales!E57) ->  | G57: =IFERROR(IF(ISBLANK(A57),"",INDEX('2019 Market Price'!$B$6:$AA$57,MATCH(A57,'2019 Market Price'!$A$6:$A$57,0),MATCH(B57,'2019 Market Price'!$B$5:$AA$5,0))),"") ->  | K57: NO
A58: =IF(ISBLANK(Sales!B58),"",Sales!B58) ->  | B58: =IF(ISBLANK(Sales!C58),"",Sales!C58) ->  | C58: =IFERROR(VLOOKUP(A58,Expenses!$B$3:$D$101,3,FALSE),"") ->  | D58: =IF(ISBLANK(Sales!B58),"",Sales!E58) ->  | G58: =IFERROR(IF(ISBLANK(A58),"",INDEX('2019 Market Price'!$B$6:$AA$57,MATCH(A58,'2019 Market Price'!$A$6:$A$57,0),MATCH(B58,'2019 Market Price'!$B$5:$AA$5,0))),"") ->  | K58: NO
A59: =IF(ISBLANK(Sales!B59),"",Sales!B59) ->  | B59: =IF(ISBLANK(Sales!C59),"",Sales!C59) ->  | C59: =IFERROR(VLOOKUP(A59,Expenses!$B$3:$D$101,3,FALSE),"") ->  | D59: =IF(ISBLANK(Sales!B59),"",Sales!E59) ->  | G59: =IFERROR(IF(ISBLANK(A59),"",INDEX('2019 Market Price'!$B$6:$AA$57,MATCH(A59,'2019 Market Price'!$A$6:$A$57,0),MATCH(B59,'2019 Market Price'!$B$5:$AA$5,0))),"") ->  | K59: NO
A60: =IF(ISBLANK(Sales!B60),"",Sales!B60) ->  | B60: =IF(ISBLANK(Sales!C60),"",Sales!C60) ->  | C60: =IFERROR(VLOOKUP(A60,Expenses!$B$3:$D$101,3,FALSE),"") ->  | D60: =IF(ISBLANK(Sales!B60),"",Sales!E60) ->  | G60: =IFERROR(IF(ISBLANK(A60),"",INDEX('2019 Market Price'!$B$6:$AA$57,MATCH(A60,'2019 Market Price'!$A$6:$A$57,0),MATCH(B60,'2019 Market Price'!$B$5:$AA$5,0))),"") ->  | K60: NO
A61: =IF(ISBLANK(Sales!B61),"",Sales!B61) ->  | B61: =IF(ISBLANK(Sales!C61),"",Sales!C61) ->  | C61: =IFERROR(VLOOKUP(A61,Expenses!$B$3:$D$101,3,FALSE),"") ->  | D61: =IF(ISBLANK(Sales!B61),"",Sales!E61) ->  | G61: =IFERROR(IF(ISBLANK(A61),"",INDEX('2019 Market Price'!$B$6:$AA$57,MATCH(A61,'2019 Market Price'!$A$6:$A$57,0),MATCH(B61,'2019 Market Price'!$B$5:$AA$5,0))),"") ->  | K61: NO
A62: =IF(ISBLANK(Sales!B62),"",Sales!B62) ->  | B62: =IF(ISBLANK(Sales!C62),"",Sales!C62) ->  | C62: =IFERROR(VLOOKUP(A62,Expenses!$B$3:$D$101,3,FALSE),"") ->  | D62: =IF(ISBLANK(Sales!B62),"",Sales!E62) ->  | G62: =IFERROR(IF(ISBLANK(A62),"",INDEX('2019 Market Price'!$B$6:$AA$57,MATCH(A62,'2019 Market Price'!$A$6:$A$57,0),MATCH(B62,'2019 Market Price'!$B$5:$AA$5,0))),"") ->  | K62: NO
A63: =IF(ISBLANK(Sales!B63),"",Sales!B63) ->  | B63: =IF(ISBLANK(Sales!C63),"",Sales!C63) ->  | C63: =IFERROR(VLOOKUP(A63,Expenses!$B$3:$D$101,3,FALSE),"") ->  | D63: =IF(ISBLANK(Sales!B63),"",Sales!E63) ->  | G63: =IFERROR(IF(ISBLANK(A63),"",INDEX('2019 Market Price'!$B$6:$AA$57,MATCH(A63,'2019 Market Price'!$A$6:$A$57,0),MATCH(B63,'2019 Market Price'!$B$5:$AA$5,0))),"") ->  | K63: NO
A64: =IF(ISBLANK(Sales!B64),"",Sales!B64) ->  | B64: =IF(ISBLANK(Sales!C64),"",Sales!C64) ->  | C64: =IFERROR(VLOOKUP(A64,Expenses!$B$3:$D$101,3,FALSE),"") ->  | D64: =IF(ISBLANK(Sales!B64),"",Sales!E64) ->  | G64: =IFERROR(IF(ISBLANK(A64),"",INDEX('2019 Market Price'!$B$6:$AA$57,MATCH(A64,'2019 Market Price'!$A$6:$A$57,0),MATCH(B64,'2019 Market Price'!$B$5:$AA$5,0))),"") ->  | K64: NO
A65: =IF(ISBLANK(Sales!B65),"",Sales!B65) ->  | B65: =IF(ISBLANK(Sales!C65),"",Sales!C65) ->  | C65: =IFERROR(VLOOKUP(A65,Expenses!$B$3:$D$101,3,FALSE),"") ->  | D65: =IF(ISBLANK(Sales!B65),"",Sales!E65) ->  | G65: =IFERROR(IF(ISBLANK(A65),"",INDEX('2019 Market Price'!$B$6:$AA$57,MATCH(A65,'2019 Market Price'!$A$6:$A$57,0),MATCH(B65,'2019 Market Price'!$B$5:$AA$5,0))),"") ->  | K65: NO
A66: =IF(ISBLANK(Sales!B66),"",Sales!B66) ->  | B66: =IF(ISBLANK(Sales!C66),"",Sales!C66) ->  | C66: =IFERROR(VLOOKUP(A66,Expenses!$B$3:$D$101,3,FALSE),"") ->  | D66: =IF(ISBLANK(Sales!B66),"",Sales!E66) ->  | G66: =IFERROR(IF(ISBLANK(A66),"",INDEX('2019 Market Price'!$B$6:$AA$57,MATCH(A66,'2019 Market Price'!$A$6:$A$57,0),MATCH(B66,'2019 Market Price'!$B$5:$AA$5,0))),"") ->  | K66: NO
A67: =IF(ISBLANK(Sales!B67),"",Sales!B67) ->  | B67: =IF(ISBLANK(Sales!C67),"",Sales!C67) ->  | C67: =IFERROR(VLOOKUP(A67,Expenses!$B$3:$D$101,3,FALSE),"") ->  | D67: =IF(ISBLANK(Sales!B67),"",Sales!E67) ->  | G67: =IFERROR(IF(ISBLANK(A67),"",INDEX('2019 Market Price'!$B$6:$AA$57,MATCH(A67,'2019 Market Price'!$A$6:$A$57,0),MATCH(B67,'2019 Market Price'!$B$5:$AA$5,0))),"") ->  | K67: =IF(H67<=E67,"NO","YES") -> NO
A68: =IF(ISBLANK(Sales!B68),"",Sales!B68) ->  | B68: =IF(ISBLANK(Sales!C68),"",Sales!C68) ->  | C68: =IFERROR(VLOOKUP(A68,Expenses!$B$3:$D$101,3,FALSE),"") ->  | D68: =IF(ISBLANK(Sales!B68),"",Sales!E68) ->  | E68: =IFERROR(D68-C68,"") ->  | F68: =IFERROR(E68/C68,"") ->  | G68: =IFERROR(IF(ISBLANK(A68),"",INDEX('2019 Market Price'!$B$6:$AA$57,MATCH(A68,'2019 Market Price'!$A$6:$A$57,0),MATCH(B68,'2019 Market Price'!$B$5:$AA$5,0))),"") ->  | H68: =IFERROR(G68-C68,"") ->  | I68: =IFERROR(H68/C68, "") ->  | J68: =IFERROR(I68-F68,"") ->  | K68: NO
A69: =IF(ISBLANK(Sales!B69),"",Sales!B69) ->  | B69: =IF(ISBLANK(Sales!C69),"",Sales!C69) ->  | C69: =IFERROR(VLOOKUP(A69,Expenses!$B$3:$D$101,3,FALSE),"") ->  | D69: =IF(ISBLANK(Sales!B69),"",Sales!E69) ->  | G69: =IFERROR(IF(ISBLANK(A69),"",INDEX('2019 Market Price'!$B$6:$AA$57,MATCH(A69,'2019 Market Price'!$A$6:$A$57,0),MATCH(B69,'2019 Market Price'!$B$5:$AA$5,0))),"") ->  | K69: NO
A70: =IF(ISBLANK(Sales!B70),"",Sales!B70) ->  | B70: =IF(ISBLANK(Sales!C70),"",Sales!C70) ->  | C70: =IFERROR(VLOOKUP(A70,Expenses!$B$3:$D$101,3,FALSE),"") ->  | D70: =IF(ISBLANK(Sales!B70),"",Sales!E70) ->  | G70: =IFERROR(IF(ISBLANK(A70),"",INDEX('2019 Market Price'!$B$6:$AA$57,MATCH(A70,'2019 Market Price'!$A$6:$A$57,0),MATCH(B70,'2019 Market Price'!$B$5:$AA$5,0))),"") ->  | K70: NO
A71: =IF(ISBLANK(Sales!B71),"",Sales!B71) ->  | B71: =IF(ISBLANK(Sales!C71),"",Sales!C71) ->  | C71: =IFERROR(VLOOKUP(A71,Expenses!$B$3:$D$101,3,FALSE),"") ->  | D71: =IF(ISBLANK(Sales!B71),"",Sales!E71) ->  | G71: =IFERROR(IF(ISBLANK(A71),"",INDEX('2019 Market Price'!$B$6:$AA$57,MATCH(A71,'2019 Market Price'!$A$6:$A$57,0),MATCH(B71,'2019 Market Price'!$B$5:$AA$5,0))),"") ->  | K71: NO
A72: =IF(ISBLANK(Sales!B72),"",Sales!B72) ->  | B72: =IF(ISBLANK(Sales!C72),"",Sales!C72) ->  | C72: =IFERROR(VLOOKUP(A72,Expenses!$B$3:$D$101,3,FALSE),"") ->  | D72: =IF(ISBLANK(Sales!B72),"",Sales!E72) ->  | G72: =IFERROR(IF(ISBLANK(A72),"",INDEX('2019 Market Price'!$B$6:$AA$57,MATCH(A72,'2019 Market Price'!$A$6:$A$57,0),MATCH(B72,'2019 Market Price'!$B$5:$AA$5,0))),"") ->  | K72: NO
A73: =IF(ISBLANK(Sales!B73),"",Sales!B73) ->  | B73: =IF(ISBLANK(Sales!C73),"",Sales!C73) ->  | C73: =IFERROR(VLOOKUP(A73,Expenses!$B$3:$D$101,3,FALSE),"") ->  | D73: =IF(ISBLANK(Sales!B73),"",Sales!E73) ->  | G73: =IFERROR(IF(ISBLANK(A73),"",INDEX('2019 Market Price'!$B$6:$AA$57,MATCH(A73,'2019 Market Price'!$A$6:$A$57,0),MATCH(B73,'2019 Market Price'!$B$5:$AA$5,0))),"") ->  | K73: NO
A74: =IF(ISBLANK(Sales!B74),"",Sales!B74) ->  | B74: =IF(ISBLANK(Sales!C74),"",Sales!C74) ->  | C74: =IFERROR(VLOOKUP(A74,Expenses!$B$3:$D$101,3,FALSE),"") ->  | D74: =IF(ISBLANK(Sales!B74),"",Sales!E74) ->  | G74: =IFERROR(IF(ISBLANK(A74),"",INDEX('2019 Market Price'!$B$6:$AA$57,MATCH(A74,'2019 Market Price'!$A$6:$A$57,0),MATCH(B74,'2019 Market Price'!$B$5:$AA$5,0))),"") ->  | K74: NO
A75: =IF(ISBLANK(Sales!B75),"",Sales!B75) ->  | B75: =IF(ISBLANK(Sales!C75),"",Sales!C75) ->  | C75: =IFERROR(VLOOKUP(A75,Expenses!$B$3:$D$101,3,FALSE),"") ->  | D75: =IF(ISBLANK(Sales!B75),"",Sales!E75) ->  | G75: =IFERROR(IF(ISBLANK(A75),"",INDEX('2019 Market Price'!$B$6:$AA$57,MATCH(A75,'2019 Market Price'!$A$6:$A$57,0),MATCH(B75,'2019 Market Price'!$B$5:$AA$5,0))),"") ->  | K75: NO
A76: =IF(ISBLANK(Sales!B76),"",Sales!B76) ->  | B76: =IF(ISBLANK(Sales!C76),"",Sales!C76) ->  | C76: =IFERROR(VLOOKUP(A76,Expenses!$B$3:$D$101,3,FALSE),"") ->  | D76: =IF(ISBLANK(Sales!B76),"",Sales!E76) ->  | G76: =IFERROR(IF(ISBLANK(A76),"",INDEX('2019 Market Price'!$B$6:$AA$57,MATCH(A76,'2019 Market Price'!$A$6:$A$57,0),MATCH(B76,'2019 Market Price'!$B$5:$AA$5,0))),"") ->  | K76: NO
A77: =IF(ISBLANK(Sales!B77),"",Sales!B77) ->  | B77: =IF(ISBLANK(Sales!C77),"",Sales!C77) ->  | C77: =IFERROR(VLOOKUP(A77,Expenses!$B$3:$D$101,3,FALSE),"") ->  | D77: =IF(ISBLANK(Sales!B77),"",Sales!E77) ->  | G77: =IFERROR(IF(ISBLANK(A77),"",INDEX('2019 Market Price'!$B$6:$AA$57,MATCH(A77,'2019 Market Price'!$A$6:$A$57,0),MATCH(B77,'2019 Market Price'!$B$5:$AA$5,0))),"") ->  | K77: NO
A78: =IF(ISBLANK(Sales!B78),"",Sales!B78) ->  | B78: =IF(ISBLANK(Sales!C78),"",Sales!C78) ->  | C78: =IFERROR(VLOOKUP(A78,Expenses!$B$3:$D$101,3,FALSE),"") ->  | D78: =IF(ISBLANK(Sales!B78),"",Sales!E78) ->  | G78: =IFERROR(IF(ISBLANK(A78),"",INDEX('2019 Market Price'!$B$6:$AA$57,MATCH(A78,'2019 Market Price'!$A$6:$A$57,0),MATCH(B78,'2019 Market Price'!$B$5:$AA$5,0))),"") ->  | K78: NO
A79: =IF(ISBLANK(Sales!B79),"",Sales!B79) ->  | B79: =IF(ISBLANK(Sales!C79),"",Sales!C79) ->  | C79: =IFERROR(VLOOKUP(A79,Expenses!$B$3:$D$101,3,FALSE),"") ->  | D79: =IF(ISBLANK(Sales!B79),"",Sales!E79) ->  | G79: =IFERROR(IF(ISBLANK(A79),"",INDEX('2019 Market Price'!$B$6:$AA$57,MATCH(A79,'2019 Market Price'!$A$6:$A$57,0),MATCH(B79,'2019 Market Price'!$B$5:$AA$5,0))),"") ->  | K79: NO
A80: =IF(ISBLANK(Sales!B80),"",Sales!B80) ->  | B80: =IF(ISBLANK(Sales!C80),"",Sales!C80) ->  | C80: =IFERROR(VLOOKUP(A80,Expenses!$B$3:$D$101,3,FALSE),"") ->  | D80: =IF(ISBLANK(Sales!B80),"",Sales!E80) ->  | G80: =IFERROR(IF(ISBLANK(A80),"",INDEX('2019 Market Price'!$B$6:$AA$57,MATCH(A80,'2019 Market Price'!$A$6:$A$57,0),MATCH(B80,'2019 Market Price'!$B$5:$AA$5,0))),"") ->  | K80: NO
A81: =IF(ISBLANK(Sales!B81),"",Sales!B81) ->  | B81: =IF(ISBLANK(Sales!C81),"",Sales!C81) ->  | C81: =IFERROR(VLOOKUP(A81,Expenses!$B$3:$D$101,3,FALSE),"") ->  | D81: =IF(ISBLANK(Sales!B81),"",Sales!E81) ->  | G81: =IFERROR(IF(ISBLANK(A81),"",INDEX('2019 Market Price'!$B$6:$AA$57,MATCH(A81,'2019 Market Price'!$A$6:$A$57,0),MATCH(B81,'2019 Market Price'!$B$5:$AA$5,0))),"") ->  | K81: NO
A82: =IF(ISBLANK(Sales!B82),"",Sales!B82) ->  | B82: =IF(ISBLANK(Sales!C82),"",Sales!C82) ->  | C82: =IFERROR(VLOOKUP(A82,Expenses!$B$3:$D$101,3,FALSE),"") ->  | D82: =IF(ISBLANK(Sales!B82),"",Sales!E82) ->  | G82: =IFERROR(IF(ISBLANK(A82),"",INDEX('2019 Market Price'!$B$6:$AA$57,MATCH(A82,'2019 Market Price'!$A$6:$A$57,0),MATCH(B82,'2019 Market Price'!$B$5:$AA$5,0))),"") ->  | K82: NO
A83: =IF(ISBLANK(Sales!B83),"",Sales!B83) ->  | B83: =IF(ISBLANK(Sales!C83),"",Sales!C83) ->  | C83: =IFERROR(VLOOKUP(A83,Expenses!$B$3:$D$101,3,FALSE),"") ->  | D83: =IF(ISBLANK(Sales!B83),"",Sales!E83) ->  | G83: =IFERROR(IF(ISBLANK(A83),"",INDEX('2019 Market Price'!$B$6:$AA$57,MATCH(A83,'2019 Market Price'!$A$6:$A$57,0),MATCH(B83,'2019 Market Price'!$B$5:$AA$5,0))),"") ->  | K83: NO
A84: =IF(ISBLANK(Sales!B84),"",Sales!B84) ->  | B84: =IF(ISBLANK(Sales!C84),"",Sales!C84) ->  | C84: =IFERROR(VLOOKUP(A84,Expenses!$B$3:$D$101,3,FALSE),"") ->  | D84: =IF(ISBLANK(Sales!B84),"",Sales!E84) ->  | G84: =IFERROR(IF(ISBLANK(A84),"",INDEX('2019 Market Price'!$B$6:$AA$57,MATCH(A84,'2019 Market Price'!$A$6:$A$57,0),MATCH(B84,'2019 Market Price'!$B$5:$AA$5,0))),"") ->  | K84: NO
A85: =IF(ISBLANK(Sales!B85),"",Sales!B85) ->  | B85: =IF(ISBLANK(Sales!C85),"",Sales!C85) ->  | C85: =IFERROR(VLOOKUP(A85,Expenses!$B$3:$D$101,3,FALSE),"") ->  | D85: =IF(ISBLANK(Sales!B85),"",Sales!E85) ->  | G85: =IFERROR(IF(ISBLANK(A85),"",INDEX('2019 Market Price'!$B$6:$AA$57,MATCH(A85,'2019 Market Price'!$A$6:$A$57,0),MATCH(B85,'2019 Market Price'!$B$5:$AA$5,0))),"") ->  | K85: NO
A86: =IF(ISBLANK(Sales!B86),"",Sales!B86) ->  | B86: =IF(ISBLANK(Sales!C86),"",Sales!C86) ->  | C86: =IFERROR(VLOOKUP(A86,Expenses!$B$3:$D$101,3,FALSE),"") ->  | D86: =IF(ISBLANK(Sales!B86),"",Sales!E86) ->  | G86: =IFERROR(IF(ISBLANK(A86),"",INDEX('2019 Market Price'!$B$6:$AA$57,MATCH(A86,'2019 Market Price'!$A$6:$A$57,0),MATCH(B86,'2019 Market Price'!$B$5:$AA$5,0))),"") ->  | K86: NO
A87: =IF(ISBLANK(Sales!B87),"",Sales!B87) ->  | B87: =IF(ISBLANK(Sales!C87),"",Sales!C87) ->  | C87: =IFERROR(VLOOKUP(A87,Expenses!$B$3:$D$101,3,FALSE),"") ->  | D87: =IF(ISBLANK(Sales!B87),"",Sales!E87) ->  | G87: =IFERROR(IF(ISBLANK(A87),"",INDEX('2019 Market Price'!$B$6:$AA$57,MATCH(A87,'2019 Market Price'!$A$6:$A$57,0),MATCH(B87,'2019 Market Price'!$B$5:$AA$5,0))),"") ->  | K87: NO
A88: =IF(ISBLANK(Sales!B88),"",Sales!B88) ->  | B88: =IF(ISBLANK(Sales!C88),"",Sales!C88) ->  | C88: =IFERROR(VLOOKUP(A88,Expenses!$B$3:$D$101,3,FALSE),"") ->  | D88: =IF(ISBLANK(Sales!B88),"",Sales!E88) ->  | G88: =IFERROR(IF(ISBLANK(A88),"",INDEX('2019 Market Price'!$B$6:$AA$57,MATCH(A88,'2019 Market Price'!$A$6:$A$57,0),MATCH(B88,'2019 Market Price'!$B$5:$AA$5,0))),"") ->  | K88: NO
A89: =IF(ISBLANK(Sales!B89),"",Sales!B89) ->  | B89: =IF(ISBLANK(Sales!C89),"",Sales!C89) ->  | C89: =IFERROR(VLOOKUP(A89,Expenses!$B$3:$D$101,3,FALSE),"") ->  | D89: =IF(ISBLANK(Sales!B89),"",Sales!E89) ->  | G89: =IFERROR(IF(ISBLANK(A89),"",INDEX('2019 Market Price'!$B$6:$AA$57,MATCH(A89,'2019 Market Price'!$A$6:$A$57,0),MATCH(B89,'2019 Market Price'!$B$5:$AA$5,0))),"") ->  | K89: NO
A90: =IF(ISBLANK(Sales!B90),"",Sales!B90) ->  | B90: =IF(ISBLANK(Sales!C90),"",Sales!C90) ->  | C90: =IFERROR(VLOOKUP(A90,Expenses!$B$3:$D$101,3,FALSE),"") ->  | D90: =IF(ISBLANK(Sales!B90),"",Sales!E90) ->  | G90: =IFERROR(IF(ISBLANK(A90),"",INDEX('2019 Market Price'!$B$6:$AA$57,MATCH(A90,'2019 Market Price'!$A$6:$A$57,0),MATCH(B90,'2019 Market Price'!$B$5:$AA$5,0))),"") ->  | K90: NO
A91: =IF(ISBLANK(Sales!B91),"",Sales!B91) ->  | B91: =IF(ISBLANK(Sales!C91),"",Sales!C91) ->  | C91: =IFERROR(VLOOKUP(A91,Expenses!$B$3:$D$101,3,FALSE),"") ->  | D91: =IF(ISBLANK(Sales!B91),"",Sales!E91) ->  | G91: =IFERROR(IF(ISBLANK(A91),"",INDEX('2019 Market Price'!$B$6:$AA$57,MATCH(A91,'2019 Market Price'!$A$6:$A$57,0),MATCH(B91,'2019 Market Price'!$B$5:$AA$5,0))),"") ->  | K91: NO
A92: =IF(ISBLANK(Sales!B92),"",Sales!B92) ->  | B92: =IF(ISBLANK(Sales!C92),"",Sales!C92) ->  | C92: =IFERROR(VLOOKUP(A92,Expenses!$B$3:$D$101,3,FALSE),"") ->  | D92: =IF(ISBLANK(Sales!B92),"",Sales!E92) ->  | G92: =IFERROR(IF(ISBLANK(A92),"",INDEX('2019 Market Price'!$B$6:$AA$57,MATCH(A92,'2019 Market Price'!$A$6:$A$57,0),MATCH(B92,'2019 Market Price'!$B$5:$AA$5,0))),"") ->  | K92: NO
A93: =IF(ISBLANK(Sales!B93),"",Sales!B93) ->  | B93: =IF(ISBLANK(Sales!C93),"",Sales!C93) ->  | C93: =IFERROR(VLOOKUP(A93,Expenses!$B$3:$D$101,3,FALSE),"") ->  | D93: =IF(ISBLANK(Sales!B93),"",Sales!E93) ->  | G93: =IFERROR(IF(ISBLANK(A93),"",INDEX('2019 Market Price'!$B$6:$AA$57,MATCH(A93,'2019 Market Price'!$A$6:$A$57,0),MATCH(B93,'2019 Market Price'!$B$5:$AA$5,0))),"") ->  | K93: NO
A94: =IF(ISBLANK(Sales!B94),"",Sales!B94) ->  | B94: =IF(ISBLANK(Sales!C94),"",Sales!C94) ->  | C94: =IFERROR(VLOOKUP(A94,Expenses!$B$3:$D$101,3,FALSE),"") ->  | D94: =IF(ISBLANK(Sales!B94),"",Sales!E94) ->  | G94: =IFERROR(IF(ISBLANK(A94),"",INDEX('2019 Market Price'!$B$6:$AA$57,MATCH(A94,'2019 Market Price'!$A$6:$A$57,0),MATCH(B94,'2019 Market Price'!$B$5:$AA$5,0))),"") ->  | K94: NO
A95: =IF(ISBLANK(Sales!B95),"",Sales!B95) ->  | B95: =IF(ISBLANK(Sales!C95),"",Sales!C95) ->  | C95: =IFERROR(VLOOKUP(A95,Expenses!$B$3:$D$101,3,FALSE),"") ->  | D95: =IF(ISBLANK(Sales!B95),"",Sales!E95) ->  | G95: =IFERROR(IF(ISBLANK(A95),"",INDEX('2019 Market Price'!$B$6:$AA$57,MATCH(A95,'2019 Market Price'!$A$6:$A$57,0),MATCH(B95,'2019 Market Price'!$B$5:$AA$5,0))),"") ->  | K95: NO
A96: =IF(ISBLANK(Sales!B96),"",Sales!B96) ->  | B96: =IF(ISBLANK(Sales!C96),"",Sales!C96) ->  | C96: =IFERROR(VLOOKUP(A96,Expenses!$B$3:$D$101,3,FALSE),"") ->  | D96: =IF(ISBLANK(Sales!B96),"",Sales!E96) ->  | G96: =IFERROR(IF(ISBLANK(A96),"",INDEX('2019 Market Price'!$B$6:$AA$57,MATCH(A96,'2019 Market Price'!$A$6:$A$57,0),MATCH(B96,'2019 Market Price'!$B$5:$AA$5,0))),"") ->  | K96: NO
A97: =IF(ISBLANK(Sales!B97),"",Sales!B97) ->  | B97: =IF(ISBLANK(Sales!C97),"",Sales!C97) ->  | C97: =IFERROR(VLOOKUP(A97,Expenses!$B$3:$D$101,3,FALSE),"") ->  | D97: =IF(ISBLANK(Sales!B97),"",Sales!E97) ->  | G97: =IFERROR(IF(ISBLANK(A97),"",INDEX('2019 Market Price'!$B$6:$AA$57,MATCH(A97,'2019 Market Price'!$A$6:$A$57,0),MATCH(B97,'2019 Market Price'!$B$5:$AA$5,0))),"") ->  | K97: NO
A98: =IF(ISBLANK(Sales!B98),"",Sales!B98) ->  | B98: =IF(ISBLANK(Sales!C98),"",Sales!C98) ->  | C98: =IFERROR(VLOOKUP(A98,Expenses!$B$3:$D$101,3,FALSE),"") ->  | D98: =IF(ISBLANK(Sales!B98),"",Sales!E98) ->  | G98: =IFERROR(IF(ISBLANK(A98),"",INDEX('2019 Market Price'!$B$6:$AA$57,MATCH(A98,'2019 Market Price'!$A$6:$A$57,0),MATCH(B98,'2019 Market Price'!$B$5:$AA$5,0))),"") ->  | K98: NO
A99: =IF(ISBLANK(Sales!B99),"",Sales!B99) ->  | B99: =IF(ISBLANK(Sales!C99),"",Sales!C99) ->  | C99: =IFERROR(VLOOKUP(A99,Expenses!$B$3:$D$101,3,FALSE),"") ->  | D99: =IF(ISBLANK(Sales!B99),"",Sales!E99) ->  | G99: =IFERROR(IF(ISBLANK(A99),"",INDEX('2019 Market Price'!$B$6:$AA$57,MATCH(A99,'2019 Market Price'!$A$6:$A$57,0),MATCH(B99,'2019 Market Price'!$B$5:$AA$5,0))),"") ->  | K99: =IF(H99<=E99,"NO","YES") -> NO
A100: =IF(ISBLANK(Sales!B100),"",Sales!B100) ->  | B100: =IF(ISBLANK(Sales!C100),"",Sales!C100) ->  | C100: =IFERROR(VLOOKUP(A100,Expenses!$B$3:$D$101,3,FALSE),"") ->  | D100: =IF(ISBLANK(Sales!B100),"",Sales!E100) ->  | G100: =IFERROR(IF(ISBLANK(A100),"",INDEX('2019 Market Price'!$B$6:$AA$57,MATCH(A100,'2019 Market Price'!$A$6:$A$57,0),MATCH(B100,'2019 Market Price'!$B$5:$AA$5,0))),"") ->  | K100: NO
A101: =IF(ISBLANK(Sales!B101),"",Sales!B101) ->  | B101: =IF(ISBLANK(Sales!C101),"",Sales!C101) ->  | C101: =IFERROR(VLOOKUP(A101,Expenses!$B$3:$D$101,3,FALSE),"") ->  | D101: =IF(ISBLANK(Sales!B101),"",Sales!E101) ->  | G101: =IFERROR(IF(ISBLANK(A101),"",INDEX('2019 Market Price'!$B$6:$AA$57,MATCH(A101,'2019 Market Price'!$A$6:$A$57,0),MATCH(B101,'2019 Market Price'!$B$5:$AA$5,0))),"") ->  | K101: NO
A102: =IF(ISBLANK(Sales!B102),"",Sales!B102) ->  | B102: =IF(ISBLANK(Sales!C102),"",Sales!C102) ->  | C102: =IFERROR(VLOOKUP(A102,Expenses!$B$3:$D$101,3,FALSE),"") ->  | D102: =IF(ISBLANK(Sales!B102),"",Sales!E102) ->  | G102: =IFERROR(IF(ISBLANK(A102),"",INDEX('2019 Market Price'!$B$6:$AA$57,MATCH(A102,'2019 Market Price'!$A$6:$A$57,0),MATCH(B102,'2019 Market Price'!$B$5:$AA$5,0))),"") ->  | K102: NO
A103: =IF(ISBLANK(Sales!B103),"",Sales!B103) ->  | B103: =IF(ISBLANK(Sales!C103),"",Sales!C103) ->  | C103: =IFERROR(VLOOKUP(A103,Expenses!$B$3:$D$101,3,FALSE),"") ->  | D103: =IF(ISBLANK(Sales!B103),"",Sales!E103) ->  | G103: =IFERROR(IF(ISBLANK(A103),"",INDEX('2019 Market Price'!$B$6:$AA$57,MATCH(A103,'2019 Market Price'!$A$6:$A$57,0),MATCH(B103,'2019 Market Price'!$B$5:$AA$5,0))),"") ->  | K103: NO
A104: =IF(ISBLANK(Sales!B104),"",Sales!B104) ->  | B104: =IF(ISBLANK(Sales!C104),"",Sales!C104) ->  | C104: =IFERROR(VLOOKUP(A104,Expenses!$B$3:$D$101,3,FALSE),"") ->  | D104: =IF(ISBLANK(Sales!B104),"",Sales!E104) ->  | G104: =IFERROR(IF(ISBLANK(A104),"",INDEX('2019 Market Price'!$B$6:$AA$57,MATCH(A104,'2019 Market Price'!$A$6:$A$57,0),MATCH(B104,'2019 Market Price'!$B$5:$AA$5,0))),"") ->  | K104: NO
A105: =IF(ISBLANK(Sales!B105),"",Sales!B105) ->  | B105: =IF(ISBLANK(Sales!C105),"",Sales!C105) ->  | C105: =IFERROR(VLOOKUP(A105,Expenses!$B$3:$D$101,3,FALSE),"") ->  | D105: =IF(ISBLANK(Sales!B105),"",Sales!E105) ->  | G105: =IFERROR(IF(ISBLANK(A105),"",INDEX('2019 Market Price'!$B$6:$AA$57,MATCH(A105,'2019 Market Price'!$A$6:$A$57,0),MATCH(B105,'2019 Market Price'!$B$5:$AA$5,0))),"") ->  | K105: NO
A106: =IF(ISBLANK(Sales!B106),"",Sales!B106) ->  | B106: =IF(ISBLANK(Sales!C106),"",Sales!C106) ->  | C106: =IFERROR(VLOOKUP(A106,Expenses!$B$3:$D$101,3,FALSE),"") ->  | D106: =IF(ISBLANK(Sales!B106),"",Sales!E106) ->  | G106: =IFERROR(IF(ISBLANK(A106),"",INDEX('2019 Market Price'!$B$6:$AA$57,MATCH(A106,'2019 Market Price'!$A$6:$A$57,0),MATCH(B106,'2019 Market Price'!$B$5:$AA$5,0))),"") ->  | K106: NO
A107: =IF(ISBLANK(Sales!B107),"",Sales!B107) ->  | B107: =IF(ISBLANK(Sales!C107),"",Sales!C107) ->  | C107: =IFERROR(VLOOKUP(A107,Expenses!$B$3:$D$101,3,FALSE),"") ->  | D107: =IF(ISBLANK(Sales!B107),"",Sales!E107) ->  | G107: =IFERROR(IF(ISBLANK(A107),"",INDEX('2019 Market Price'!$B$6:$AA$57,MATCH(A107,'2019 Market Price'!$A$6:$A$57,0),MATCH(B107,'2019 Market Price'!$B$5:$AA$5,0))),"") ->  | K107: NO
A108: =IF(ISBLANK(Sales!B108),"",Sales!B108) ->  | B108: =IF(ISBLANK(Sales!C108),"",Sales!C108) ->  | C108: =IFERROR(VLOOKUP(A108,Expenses!$B$3:$D$101,3,FALSE),"") ->  | D108: =IF(ISBLANK(Sales!B108),"",Sales!E108) ->  | G108: =IFERROR(IF(ISBLANK(A108),"",INDEX('2019 Market Price'!$B$6:$AA$57,MATCH(A108,'2019 Market Price'!$A$6:$A$57,0),MATCH(B108,'2019 Market Price'!$B$5:$AA$5,0))),"") ->  | K108: NO
A109: =IF(ISBLANK(Sales!B109),"",Sales!B109) ->  | B109: =IF(ISBLANK(Sales!C109),"",Sales!C109) ->  | C109: =IFERROR(VLOOKUP(A109,Expenses!$B$3:$D$101,3,FALSE),"") ->  | D109: =IF(ISBLANK(Sales!B109),"",Sales!E109) ->  | G109: =IFERROR(IF(ISBLANK(A109),"",INDEX('2019 Market Price'!$B$6:$AA$57,MATCH(A109,'2019 Market Price'!$A$6:$A$57,0),MATCH(B109,'2019 Market Price'!$B$5:$AA$5,0))),"") ->  | K109: NO
A110: =IF(ISBLANK(Sales!B110),"",Sales!B110) ->  | B110: =IF(ISBLANK(Sales!C110),"",Sales!C110) ->  | C110: =IFERROR(VLOOKUP(A110,Expenses!$B$3:$D$101,3,FALSE),"") ->  | D110: =IF(ISBLANK(Sales!B110),"",Sales!E110) ->  | G110: =IFERROR(IF(ISBLANK(A110),"",INDEX('2019 Market Price'!$B$6:$AA$57,MATCH(A110,'2019 Market Price'!$A$6:$A$57,0),MATCH(B110,'2019 Market Price'!$B$5:$AA$5,0))),"") ->  | K110: NO
A111: =IF(ISBLANK(Sales!B111),"",Sales!B111) ->  | B111: =IF(ISBLANK(Sales!C111),"",Sales!C111) ->  | C111: =IFERROR(VLOOKUP(A111,Expenses!$B$3:$D$101,3,FALSE),"") ->  | D111: =IF(ISBLANK(Sales!B111),"",Sales!E111) ->  | G111: =IFERROR(IF(ISBLANK(A111),"",INDEX('2019 Market Price'!$B$6:$AA$57,MATCH(A111,'2019 Market Price'!$A$6:$A$57,0),MATCH(B111,'2019 Market Price'!$B$5:$AA$5,0))),"") ->  | K111: NO
A112: =IF(ISBLANK(Sales!B112),"",Sales!B112) ->  | B112: =IF(ISBLANK(Sales!C112),"",Sales!C112) ->  | C112: =IFERROR(VLOOKUP(A112,Expenses!$B$3:$D$101,3,FALSE),"") ->  | D112: =IF(ISBLANK(Sales!B112),"",Sales!E112) ->  | G112: =IFERROR(IF(ISBLANK(A112),"",INDEX('2019 Market Price'!$B$6:$AA$57,MATCH(A112,'2019 Market Price'!$A$6:$A$57,0),MATCH(B112,'2019 Market Price'!$B$5:$AA$5,0))),"") ->  | K112: NO
A113: =IF(ISBLANK(Sales!B113),"",Sales!B113) ->  | B113: =IF(ISBLANK(Sales!C113),"",Sales!C113) ->  | C113: =IFERROR(VLOOKUP(A113,Expenses!$B$3:$D$101,3,FALSE),"") ->  | D113: =IF(ISBLANK(Sales!B113),"",Sales!E113) ->  | G113: =IFERROR(IF(ISBLANK(A113),"",INDEX('2019 Market Price'!$B$6:$AA$57,MATCH(A113,'2019 Market Price'!$A$6:$A$57,0),MATCH(B113,'2019 Market Price'!$B$5:$AA$5,0))),"") ->  | K113: NO
A114: =IF(ISBLANK(Sales!B114),"",Sales!B114) ->  | B114: =IF(ISBLANK(Sales!C114),"",Sales!C114) ->  | C114: =IFERROR(VLOOKUP(A114,Expenses!$B$3:$D$101,3,FALSE),"") ->  | D114: =IF(ISBLANK(Sales!B114),"",Sales!E114) ->  | G114: =IFERROR(IF(ISBLANK(A114),"",INDEX('2019 Market Price'!$B$6:$AA$57,MATCH(A114,'2019 Market Price'!$A$6:$A$57,0),MATCH(B114,'2019 Market Price'!$B$5:$AA$5,0))),"") ->  | K114: NO
A115: =IF(ISBLANK(Sales!B115),"",Sales!B115) ->  | B115: =IF(ISBLANK(Sales!C115),"",Sales!C115) ->  | C115: =IFERROR(VLOOKUP(A115,Expenses!$B$3:$D$101,3,FALSE),"") ->  | D115: =IF(ISBLANK(Sales!B115),"",Sales!E115) ->  | G115: =IFERROR(IF(ISBLANK(A115),"",INDEX('2019 Market Price'!$B$6:$AA$57,MATCH(A115,'2019 Market Price'!$A$6:$A$57,0),MATCH(B115,'2019 Market Price'!$B$5:$AA$5,0))),"") ->  | K115: NO
A116: =IF(ISBLANK(Sales!B116),"",Sales!B116) ->  | B116: =IF(ISBLANK(Sales!C116),"",Sales!C116) ->  | C116: =IFERROR(VLOOKUP(A116,Expenses!$B$3:$D$101,3,FALSE),"") ->  | D116: =IF(ISBLANK(Sales!B116),"",Sales!E116) ->  | G116: =IFERROR(IF(ISBLANK(A116),"",INDEX('2019 Market Price'!$B$6:$AA$57,MATCH(A116,'2019 Market Price'!$A$6:$A$57,0),MATCH(B116,'2019 Market Price'!$B$5:$AA$5,0))),"") ->  | K116: NO
A117: =IF(ISBLANK(Sales!B117),"",Sales!B117) ->  | B117: =IF(ISBLANK(Sales!C117),"",Sales!C117) ->  | C117: =IFERROR(VLOOKUP(A117,Expenses!$B$3:$D$101,3,FALSE),"") ->  | D117: =IF(ISBLANK(Sales!B117),"",Sales!E117) ->  | G117: =IFERROR(IF(ISBLANK(A117),"",INDEX('2019 Market Price'!$B$6:$AA$57,MATCH(A117,'2019 Market Price'!$A$6:$A$57,0),MATCH(B117,'2019 Market Price'!$B$5:$AA$5,0))),"") ->  | K117: NO
A118: =IF(ISBLANK(Sales!B118),"",Sales!B118) ->  | B118: =IF(ISBLANK(Sales!C118),"",Sales!C118) ->  | C118: =IFERROR(VLOOKUP(A118,Expenses!$B$3:$D$101,3,FALSE),"") ->  | D118: =IF(ISBLANK(Sales!B118),"",Sales!E118) ->  | G118: =IFERROR(IF(ISBLANK(A118),"",INDEX('2019 Market Price'!$B$6:$AA$57,MATCH(A118,'2019 Market Price'!$A$6:$A$57,0),MATCH(B118,'2019 Market Price'!$B$5:$AA$5,0))),"") ->  | K118: NO
A119: =IF(ISBLANK(Sales!B119),"",Sales!B119) ->  | B119: =IF(ISBLANK(Sales!C119),"",Sales!C119) ->  | C119: =IFERROR(VLOOKUP(A119,Expenses!$B$3:$D$101,3,FALSE),"") ->  | D119: =IF(ISBLANK(Sales!B119),"",Sales!E119) ->  | G119: =IFERROR(IF(ISBLANK(A119),"",INDEX('2019 Market Price'!$B$6:$AA$57,MATCH(A119,'2019 Market Price'!$A$6:$A$57,0),MATCH(B119,'2019 Market Price'!$B$5:$AA$5,0))),"") ->  | K119: NO

Sheet 2019 Market Price
A4: Market Price | B4: Shoe Size (Men's)
A5: Sneaker Name | B5: 3.5 | C5: 4 | D5: 4.5 | E5: 5 | F5: 5.5 | G5: 6 | H5: 6.5 | I5: 7 | J5: 7.5 | K5: 8 | L5: 8.5 | M5: 9 | N5: 9.5 | O5: 10 | P5: 10.5 | Q5: 11 | R5: 11.5 | S5: 12 | T5: 12.5 | U5: 13 | V5: 13.5 | W5: 14 | X5: 14.5 | Y5: 15 | Z5: 16 | AA5: 17
A6: Yeezy | B6: 349 | C6: 327.9627119 | D6: 334.1663386 | E6: 343.873063 | F6: 347.0826907 | G6: 360.2070288 | H6: 363.1104294 | I6: 345.5466764 | J6: 346.1452906 | K6: 357.8546703 | L6: 360.9186017 | M6: 352.8793374 | N6: 364.8670295 | O6: 363.6777793 | P6: 363.6452697 | Q6: 371.9676001 | R6: 361.9967262 | S6: 361.3113844 | T6: 388.0692718 | U6: 371.30455 | V6: 392.3877551 | W6: 376.2582496 | X6: 450.202381 | Z6: 702.0666667 | AA6: 835.3333333
A7: Adidas-Yeezy-Boost-350-Low-Moonrock | C7: 900 | D7: 918 | E7: 1350 | F7: 1226 | G7: 927.8 | H7: 1075 | I7: 870 | J7: 923.5 | K7: 1045.142857 | L7: 1100.75 | M7: 976.6666667 | N7: 959.2222222 | O7: 979.875 | P7: 974.7777778 | Q7: 950.75 | R7: 945.625 | S7: 999.8 | T7: 883.6666667 | U7: 1047.5 | V7: 1050 | W7: 2000 | X7: 900
A8: Adidas-Yeezy-Boost-350-Low-Oxford-Tan | H8: 1138.333333 | I8: 1023 | J8: 896.25 | K8: 1010.5 | L8: 916.5714286 | M8: 931.8333333 | N8: 1010.111111 | O8: 901.625 | P8: 872.75 | Q8: 1124.875 | R8: 1100.833333 | S8: 1186.666667 | T8: 908.3333333 | U8: 1216.666667 | W8: 1400
A9: Adidas-Yeezy-Boost-350-Low-Pirate-Black-2015 | G9: 1075 | H9: 1300 | I9: 978 | J9: 962.5 | K9: 938.6 | L9: 894.8333333 | M9: 854.8571429 | N9: 871.625 | O9: 882.4666667 | P9: 845 | Q9: 835.0714286 | R9: 841.25 | S9: 932.6666667 | T9: 837.5 | U9: 1058
A10: Adidas-Yeezy-Boost-350-Low-Pirate-Black-2016 | E10: 1112 | F10: 1190 | G10: 1203 | H10: 1226 | I10: 1297.666667 | J10: 1020 | K10: 1024 | L10: 1095 | M10: 928.9 | N10: 1012.416667 | O10: 963.5714286 | P10: 919.7894737 | Q10: 948 | R10: 889.3333333 | S10: 906.8181818 | U10: 1048 | W10: 1007.666667
A11: Adidas-Yeezy-Boost-350-Low-Turtledove | E11: 1895 | I11: 1780 | K11: 1657.5 | M11: 1605.833333 | O11: 1546.8125 | Q11: 1421.428571 | S11: 1341.363636 | U11: 1539.875 | W11: 2300
A12: Adidas-Yeezy-Boost-350-Low-V2-Beluga | C12: 718.25 | D12: 849 | E12: 689.875 | F12: 799 | G12: 814.7142857 | H12: 870 | I12: 721.9230769 | J12: 741.2380952 | K12: 724.1388889 | L12: 742 | M12: 738.6326531 | N12: 807.4347826 | O12: 801.3043478 | P12: 790.3934426 | Q12: 858.7 | R12: 880 | S12: 830.3548387 | T12: 1212.75 | U12: 815.375 | W12: 728.4444444 | Z12: 742.5
A13: Adidas-Yeezy-Boost-350-V2-Beluga-2pt0 | C13: 350.6283784 | D13: 410.0769231 | E13: 373.8283753 | F13: 410.085 | G13: 407.234763 | H13: 456.883871 | I13: 416.3631285 | J13: 408.0876494 | K13: 387.0889749 | L13: 384.5862647 | M13: 378.3388567 | N13: 394.870472 | O13: 393.3037272 | P13: 405.6532721 | Q13: 415.7905983 | R13: 429.5789474 | S13: 418.4067548 | T13: 464.0338983 | U13: 423.4929245 | V13: 500 | W13: 396.289916 | X13: 469.1 | Z13: 683
A14: Adidas-Yeezy-Boost-350-V2-Blue-Tint | C14: 348.7339056 | D14: 440.4117647 | E14: 374.8948598 | F14: 421.3765432 | G14: 407.3496144 | H14: 450.5169492 | I14: 410.2344828 | J14: 395.2253521 | K14: 368.1286031 | L14: 361.4681725 | M14: 352.4921369 | N14: 369.4866434 | O14: 369.4555354 | P14: 377.7929864 | Q14: 383.6864407 | R14: 394.5452381 | S14: 387.3616692 | T14: 442.6382979 | U14: 390.886747 | V14: 475.1428571 | W14: 382.9565217 | X14: 490 | Z14: 1007.8
A15: adidas-Yeezy-Boost-350-V2-Butter | C15: 258.8301282 | D15: 291.9909502 | E15: 273.632107 | F15: 294.0494881 | G15: 275.8398058 | H15: 286.626556 | I15: 263.191344 | J15: 260.2006803 | K15: 258.0294659 | L15: 260.6984127 | M15: 253.7068202 | N15: 264.99499 | O15: 262.477193 | P15: 269.0584795 | Q15: 272.8231132 | R15: 271.9684601 | S15: 273.6012821 | T15: 301.5283019 | U15: 281.782516 | V15: 316.7222222 | W15: 296.836478 | X15: 405.3333333 | Z15: 646.7142857
A16: Adidas-Yeezy-Boost-350-V2-Core-Black-Copper | C16: 809 | D16: 700 | E16: 753.3333333 | F16: 891 | G16: 689 | H16: 838.5 | I16: 655.25 | J16: 674.2 | K16: 642.8571429 | L16: 632.8571429 | M16: 635.28125 | N16: 661.2692308 | O16: 625.6 | P16: 636 | Q16: 644.7272727 | R16: 671.1 | S16: 635.7894737 | T16: 825 | U16: 691.8333333 | V16: 611 | W16: 615.8333333
A17: Adidas-Yeezy-Boost-350-V2-Core-Black-Green | C17: 610 | D17: 725 | E17: 728 | F17: 810 | G17: 693 | H17: 999 | I17: 659.6666667 | J17: 604.5714286 | K17: 620.1 | L17: 601.2307692 | M17: 590.3809524 | N17: 634.2692308 | O17: 607.4583333 | P17: 597.5 | Q17: 611.6363636 | R17: 662.2857143 | S17: 641.4444444 | U17: 642.9 | W17: 600 | X17: 500
A18: Adidas-Yeezy-Boost-350-V2-Core-Black-Red | C18: 986.25 | E18: 1165 | F18: 1108.333333 | G18: 1044.125 | H18: 1195.857143 | I18: 999.7 | J18: 971.1666667 | K18: 978.1052632 | L18: 983.3125 | M18: 926.3333333 | N18: 956.0243902 | O18: 919.5833333 | P18: 898.0810811 | Q18: 865.3333333 | R18: 928.7368421 | S18: 884.6190476 | T18: 1200 | U18: 863.9090909 | W18: 837.4285714 | X18: 675
A19: Adidas-Yeezy-Boost-350-V2-Core-Black-Red-2017 | C19: 909.2 | D19: 1033.75 | E19: 1021.4375 | F19: 1118.181818 | G19: 1122.4 | H19: 1122.5 | I19: 864.6 | J19: 802.3076923 | K19: 788.9393939 | L19: 775.5205479 | M19: 748.2809917 | N19: 776.597561 | O19: 761.8454545 | P19: 770.6969697 | Q19: 779.3364486 | R19: 806.8928571 | S19: 821.4933333 | T19: 921 | U19: 843.7555556 | V19: 800 | W19: 909.3333333 | Z19: 1036.666667
A20: Adidas-Yeezy-Boost-350-V2-Core-Black-White | C20: 718.8333333 | D20: 862.25 | E20: 766.8461538 | F20: 848 | G20: 849.8636364 | H20: 991.6666667 | I20: 740.1818182 | J20: 715.5263158 | K20: 678.6052632 | L20: 711.3555556 | M20: 692.8064516 | N20: 704.2631579 | O20: 705.3968254 | P20: 692.1971831 | Q20: 704.5588235 | R20: 722 | S20: 748 | T20: 705 | U20: 740.48 | V20: 622.5 | W20: 743.8461538
A21: Adidas-Yeezy-Boost-350-V2-Cream-White | C21: 312.2983425 | D21: 298.2865169 | E21: 306.2389381 | F21: 304.7810458 | G21: 320.6032609 | H21: 320.5555556 | I21: 281.9856115 | J21: 264.9345794 | K21: 284.1386861 | L21: 282.580198 | M21: 283.878187 | N21: 287.1363636 | O21: 285.2949309 | P21: 284.9281437 | Q21: 289.1658596 | R21: 267.827112 | S21: 273.9940209 | T21: 278.1884058 | U21: 306.5605096 | V21: 294.2666667 | W21: 298.4413793 | X21: 332.6666667 | Z21: 520
A22: Adidas-Yeezy-Boost-350-V2-Semi-Frozen-Yellow | C22: 343.474359 | D22: 329.0410959 | E22: 339.021978 | F22: 338.1797753 | G22: 377.6515837 | H22: 356.7222222 | I22: 340.9957265 | J22: 357.9938272 | K22: 381.2208333 | L22: 406.1335878 | M22: 394.6458924 | N22: 405.6788321 | O22: 422.0337079 | P22: 386.2126582 | Q22: 415.3685446 | R22: 374.1634241 | S22: 387.2977667 | T22: 477.1463415 | U22: 405.6498054 | V22: 440.3529412 | W22: 573.8148148 | X22: 545.7272727 | Z22: 880.2
A23: Adidas-Yeezy-Boost-350-V2-Sesame | C23: 246.8711656 | D23: 257.8730159 | E23: 257.7159091 | F23: 263.3661972 | G23: 270.7 | H23: 277.0909091 | I23: 259.4519573 | J23: 258.2934132 | K23: 249.4541485 | L23: 252.6239316 | M23: 247.8760563 | N23: 258.015748 | O23: 256.4421053 | P23: 263.3620309 | Q23: 270.6013986 | R23: 278.0237288 | S23: 276.8235294 | T23: 306.8550725 | U23: 269.8445946 | V23: 331.75 | W23: 279.6304348 | X23: 355.5 | Z23: 489
A24: adidas-Yeezy-Boost-350-V2-Static | B24: 349 | C24: 275.5225806 | D24: 294.6148148 | E24: 282.75 | F24: 300.5258621 | G24: 290.3968872 | H24: 293.2710843 | I24: 289.8627451 | J24: 290.0403226 | K24: 285.6 | L24: 287.2240664 | M24: 281.9910714 | N24: 288.3804348 | O24: 284.6860465 | P24: 283.7948052 | Q24: 287.1020942 | R24: 289.5466667 | S24: 280.0163488 | T24: 291.7358491 | U24: 276.1433692 | V24: 334.0588235 | W24: 312.3372093 | X24: 402 | Z24: 625
A25: adidas-Yeezy-Boost-350-V2-Static-Reflective | C25: 455.4333333 | D25: 472.8804348 | E25: 474.925 | F25: 470.3066038 | G25: 480.5985401 | H25: 571.575 | I25: 487.8227848 | J25: 492.4468085 | K25: 462.3387978 | L25: 463.7647059 | M25: 452.1134752 | N25: 462.8066465 | O25: 458.877551 | P25: 466.9797571 | Q25: 601.0246914 | R25: 562.7419355 | S25: 452.6428571 | T25: 482.25 | U25: 576.5454545 | W25: 362.962963 | X25: 500 | Z25: 601
A26: Adidas-Yeezy-Boost-350-V2-Zebra | C26: 332.4512821 | D26: 364.2405063 | E26: 373.6401384 | F26: 416.4863014 | G26: 382.6033898 | H26: 377.5992366 | I26: 340.8859857 | J26: 335.8722741 | K26: 334.7463343 | L26: 353.7 | M26: 357.8666667 | N26: 364.1424273 | O26: 363.2283151 | P26: 356.3954214 | Q26: 357.2188716 | R26: 375.9891068 | S26: 354.9283784 | T26: 454.0641026 | U26: 374.0855615 | V26: 499.76 | W26: 377.2 | X26: 505.375 | Z26: 660.3684211 | AA26: 835.3333333
A27: Off-White | B27: 555.3333333 | C27: 588.8704883 | D27: 591.2256944 | E27: 618.3382353 | F27: 588.0313589 | G27: 607.5798414 | H27: 588.385399 | I27: 621.0996409 | J27: 670.6661677 | K27: 701.1892049 | L27: 673.9210717 | M27: 710.4306326 | N27: 695.4727273 | O27: 707.8067871 | P27: 645.6523453 | Q27: 682.7600515 | R27: 641.8835377 | S27: 669.7175166 | T27: 716.5538462 | U27: 651.1458202 | W27: 728.9521411 | Y27: 670.1307692 | Z27: 1682.75 | AA27: 2250
A28: Air-Jordan-1-Retro-High-Off-White-Chicago | C28: 2330 | D28: 1736 | E28: 1925 | F28: 2000 | G28: 2300 | H28: 2762.5 | I28: 1988.294118 | J28: 1927.142857 | K28: 2048.648649 | L28: 1935.617647 | M28: 1765.310345 | N28: 1874.296296 | O28: 1788.515873 | P28: 1750.474227 | Q28: 1697.255102 | R28: 1649.177778 | S28: 1738.482759 | U28: 1506.583333 | W28: 1451.772727
A29: Air-Jordan-1-Retro-High-Off-White-University-Blue | C29: 745.754717 | D29: 740.2336449 | E29: 791.8514851 | F29: 780.8352941 | G29: 713.3807339 | H29: 719.8034934 | I29: 776.4714286 | J29: 897.0917431 | K29: 1023.747967 | L29: 1046.684211 | M29: 1050.016461 | N29: 995.8694444 | O29: 886.262931 | P29: 822.6146045 | Q29: 799.3901961 | R29: 789.6962025 | S29: 787.9252874 | T29: 864.4444444 | U29: 760.3432836 | W29: 733.990099 | Y29: 857.4444444 | AA29: 2250
A30: Air-Jordan-1-Retro-High-Off-White-White | I30: 1878.571429 | J30: 1665 | K30: 1947.9375 | L30: 2002.444444 | M30: 1959.44 | N30: 1964.540541 | O30: 1803.5 | P30: 1832.083333 | Q30: 1803.282051 | R30: 1768.5625 | S30: 1659.277778 | T30: 1624.833333 | U30: 1679.48 | W30: 1883.583333 | Y30: 1603 | Z30: 2055.333333
A31: Nike-Air-Force-1-Low-Off-White | C31: 765 | D31: 825 | E31: 1350 | G31: 874.5714286 | H31: 650 | I31: 716.6666667 | J31: 1003.272727 | K31: 832.8518519 | L31: 785.7619048 | M31: 781.6346154 | N31: 744.0925926 | O31: 664.4769231 | P31: 639.4307692 | Q31: 717 | R31: 655.047619 | S31: 673.6666667 | U31: 594.5142857 | W31: 669
A32: Nike-Air-Force-1-Low-Off-White-Black-White | C32: 382.5652174 | D32: 392.1904762 | E32: 412.25 | F32: 430 | G32: 420.3125 | H32: 417.5 | I32: 483.9705882 | J32: 497.6111111 | K32: 532.0192308 | L32: 554.1298701 | M32: 544.9607843 | N32: 557.6068376 | O32: 521.0294118 | P32: 513.6774194 | Q32: 513.8666667 | R32: 495.92 | S32: 517.1935484 | T32: 650 | U32: 510.7435897 | W32: 492.7647059 | Y32: 498.2
A33: Nike-Air-Force-1-Low-Off-White-Volt | C33: 349.2083333 | D33: 344.55 | E33: 357.9722222 | F33: 357.0454545 | G33: 368.1923077 | H33: 358.7391304 | I33: 371.4333333 | J33: 379.6071429 | K33: 409.5090909 | L33: 403.9 | M33: 403.3636364 | N33: 399.6126126 | O33: 401.0948276 | P33: 385.1789474 | Q33: 390.4 | R33: 381.22 | S33: 409.859375 | U33: 407.7 | W33: 393.625 | Y33: 430.7
A34: Nike-Air-Force-1-Low-Virgil-Abloh-Off-White-AF100 | C34: 770 | E34: 925 | H34: 725 | I34: 1150 | J34: 785 | L34: 1040 | M34: 1136.666667 | N34: 1120 | O34: 1025.625 | P34: 815.2 | Q34: 922.5 | R34: 950 | S34: 1137.5
A35: Nike-Air-Max-90-Off-White | G35: 783.5 | H35: 679.5 | I35: 656.5 | J35: 784.125 | K35: 694.2857143 | L35: 688.6530612 | M35: 738.2063492 | N35: 712.5423729 | O35: 689.6666667 | P35: 683.1348315 | Q35: 730.1666667 | R35: 690.2264151 | S35: 761.2 | T35: 758.75 | U35: 657.4761905 | W35: 1050 | Y35: 1466.666667
A36: Nike-Air-Max-90-Off-White-Black | G36: 479.2105263 | H36: 477.1111111 | I36: 491.3333333 | J36: 528.9473684 | K36: 558.25 | L36: 559.7894737 | M36: 569.1126761 | N36: 570.7291667 | O36: 557.6 | P36: 565.3536585 | Q36: 546.3670886 | R36: 547.6585366 | S36: 572.6181818 | U36: 543.3333333 | W36: 553.8333333 | Y36: 710
A37: Nike-Air-Max-90-Off-White-Desert-Ore | G37: 449.7391304 | H37: 443.8571429 | I37: 463.0416667 | J37: 482.7647059 | K37: 539.4137931 | L37: 539.1315789 | M37: 558.3088235 | N37: 554.3013699 | O37: 530.7857143 | P37: 528.0461538 | Q37: 533.3970588 | R37: 527.6206897 | S37: 551.8867925 | U37: 544.6486486 | W37: 587.5 | Y37: 664.6666667
A38: Nike-Air-Max-97-Off-White | C38: 813 | D38: 1245 | E38: 1000 | G38: 763.25 | H38: 716 | I38: 838.2857143 | J38: 726 | K38: 671.7878788 | L38: 670.3666667 | M38: 713.5714286 | N38: 703.4680851 | O38: 631.7894737 | P38: 665.7777778 | Q38: 639.295082 | R38: 639.6046512 | S38: 622.0612245 | T38: 705 | U38: 617.6470588 | W38: 806.6666667 | Y38: 900
A39: Nike-Air-Max-97-Off-White-Black | E39: 693 | F39: 640 | G39: 600 | H39: 695 | I39: 611.4 | J39: 635.5 | K39: 695.3636364 | L39: 706 | M39: 706.5217391 | N39: 735.5925926 | O39: 685.5625 | P39: 664.9069767 | Q39: 634.8571429 | R39: 664.84 | S39: 667.4571429 | U39: 629.2608696 | W39: 621.75 | Y39: 585.6666667
A40: Nike-Air-Max-97-Off-White-Elemental-Rose-Queen | C40: 998.75 | D40: 962 | E40: 1011.75 | F40: 1036 | G40: 956.6666667 | H40: 1078.5 | I40: 1028.333333 | J40: 951.5 | K40: 1036.714286 | L40: 1067.4 | M40: 992.1666667 | N40: 989.8888889 | O40: 872.6470588 | P40: 830.9545455 | Q40: 834.4347826 | R40: 802.6666667 | S40: 763.5238095 | U40: 707.75 | W40: 749.25 | Y40: 1000
A41: Nike-Air-Max-97-Off-White-Menta | C41: 716.6666667 | D41: 650 | E41: 664.6666667 | F41: 754.4 | G41: 740.1666667 | H41: 673.3333333 | I41: 695.8 | J41: 697.2 | K41: 727.4285714 | L41: 691.3571429 | M41: 721.4583333 | N41: 738.3409091 | O41: 738.0576923 | P41: 759.2564103 | Q41: 781.5625 | R41: 839.25 | S41: 879.6428571 | U41: 938.6153846
A42: Nike-Air-Presto-Off-White | C42: 1900 | E42: 1680 | G42: 1168.173913 | I42: 1199.416667 | K42: 1263.55814 | M42: 1326.57732 | O42: 1348.185714 | Q42: 1166.496063 | S42: 1129.338028 | U42: 1075.403226 | W42: 1467
A43: Nike-Air-Presto-Off-White-Black-2018 | C43: 672.0961538 | E43: 703.7702703 | G43: 645.988764 | I43: 624.1578947 | K43: 735.1719457 | M43: 796.0774411 | O43: 772.7875354 | Q43: 733.2880795 | S43: 711.6492891 | U43: 674.0808081 | W43: 993.6666667
A44: Nike-Air-Presto-Off-White-White-2018 | C44: 640.7222222 | E44: 689.0645161 | G44: 610.755814 | I44: 567.6595745 | K44: 630.5879397 | M44: 672.6019737 | O44: 659.6675603 | Q44: 615.3806452 | S44: 613.2883721 | U44: 587.4672131 | W44: 844.8823529
A45: Nike-Air-VaporMax-Off-White | C45: 789 | D45: 828 | E45: 726.3636364 | F45: 736.6666667 | G45: 760.2592593 | H45: 699.4166667 | I45: 799.2 | J45: 779.375 | K45: 929.8076923 | L45: 882.1290323 | M45: 822.627451 | N45: 853.2711864 | O45: 864.2575758 | P45: 902.755102 | Q45: 848.3090909 | R45: 969.32 | S45: 896.7631579 | T45: 891.875 | U45: 1024.5
A46: Nike-Air-VaporMax-Off-White-2018 | B46: 563 | C46: 530.2857143 | D46: 612 | E46: 607.5333333 | F46: 632.32 | G46: 602.6415094 | H46: 599.90625 | I46: 541.4035088 | J46: 602.3703704 | K46: 601.6956522 | L46: 599.4226804 | M46: 587.45 | N46: 588.1130952 | O46: 590.6256158 | P46: 577.36875 | Q46: 578.918239 | R46: 591.3586957 | S46: 598.2288136 | U46: 604.344086 | W46: 874 | Y46: 862.5555556
A47: Nike-Air-VaporMax-Off-White-Black | B47: 540 | C47: 493.0322581 | D47: 607.25 | E47: 538.6486486 | F47: 595.3333333 | G47: 568.1081081 | H47: 600.6071429 | I47: 561.4615385 | J47: 597 | K47: 632.9824561 | L47: 647.0895522 | M47: 634.1014493 | N47: 632 | O47: 629.5973154 | P47: 626.9 | Q47: 626.503876 | R47: 648.2063492 | S47: 677.6136364 | U47: 659.1208791 | W47: 870.9166667 | Y47: 1023
A48: Nike-Blazer-Mid-Off-White | C48: 650 | D48: 698.3333333 | E48: 707 | G48: 952 | H48: 680.8333333 | I48: 656.2666667 | J48: 792.9 | K48: 676.5714286 | L48: 660.25 | M48: 685.6785714 | N48: 711.3076923 | O48: 712.4264706 | P48: 673.4745763 | Q48: 731.6744186 | R48: 643.59375 | S48: 713.6842105 | T48: 648.75 | U48: 618.452381 | W48: 1125 | Y48: 1007
A49: Nike-Blazer-Mid-Off-White-All-Hallows-Eve | C49: 575.2380952 | D49: 608.25 | E49: 649.7741935 | F49: 649.5625 | G49: 532.5769231 | H49: 558.75 | I49: 559.6382979 | J49: 575.6046512 | K49: 636.6164384 | L49: 631.7613636 | M49: 635.013245 | N49: 635.9927007 | O49: 607.6648352 | P49: 595.8095238 | Q49: 596.3951613 | R49: 612.7692308 | S49: 600.010989 | T49: 677.5 | U49: 575.6666667 | W49: 597.0416667 | Y49: 557.3076923
A50: Nike-Blazer-Mid-Off-White-Grim-Reaper | C50: 462.2 | D50: 473.36 | E50: 480.4761905 | F50: 521.4736842 | G50: 446.047619 | H50: 455.5333333 | I50: 471.3404255 | J50: 499.9545455 | K50: 539.703125 | L50: 531.3258427 | M50: 547.5827815 | N50: 559.8031496 | O50: 528.2901235 | P50: 536.3040541 | Q50: 528.3333333 | R50: 556.0327869 | S50: 546.4680851 | T50: 565 | U50: 523.8192771 | W50: 582.84 | Y50: 617.2
A51: Nike-Blazer-Mid-Off-White-Wolf-Grey | C51: 766.0833333 | D51: 758.2307692 | E51: 860.125 | F51: 812.4285714 | G51: 791.4615385 | H51: 686.6666667 | I51: 764.6666667 | J51: 794.5 | K51: 888.5454545 | L51: 877.7777778 | M51: 837.9285714 | N51: 826.4 | O51: 809.5862069 | P51: 732.2380952 | Q51: 740.6086957 | R51: 735 | S51: 724.75 | U51: 685.1428571 | W51: 610
A52: Nike-React-Hyperdunk-2017-Flyknit-Off-White | C52: 489 | E52: 550 | F52: 475 | I52: 488.8 | J52: 553.2 | K52: 445.5111111 | L52: 506.125 | M52: 502.7419355 | N52: 497.7272727 | O52: 481.7951807 | P52: 492.2888889 | Q52: 503.8 | R52: 512.2380952 | S52: 496.5306122 | U52: 499.2727273 | W52: 559.1875 | Z52: 565
A53: Nike-Zoom-Fly-Mercurial-Off-White-Black | G53: 311.9230769 | H53: 369.8333333 | I53: 304.2608696 | J53: 346.75 | K53: 339.8837209 | L53: 343.8490566 | M53: 355.4193548 | N53: 360.7288136 | O53: 358.1794872 | P53: 354.1931818 | Q53: 354.5733333 | R53: 366 | S53: 368.9811321 | U53: 368 | W53: 393.5 | Y53: 352.875
A54: Nike-Zoom-Fly-Mercurial-Off-White-Total-Orange | G54: 236.4615385 | H54: 248.2857143 | I54: 243.1538462 | J54: 266.9 | K54: 277.3636364 | L54: 284.4186047 | M54: 286.7288136 | N54: 294.4722222 | O54: 287.0212766 | P54: 281.9659091 | Q54: 291.3030303 | R54: 287.3846154 | S54: 304.96 | U54: 316.1578947 | W54: 321.8571429 | Y54: 347.7272727
A55: Nike-Zoom-Fly-Off-White | C55: 697.5 | E55: 460 | F55: 650 | G55: 454.7692308 | H55: 413.4117647 | I55: 487.2222222 | J55: 490.8181818 | K55: 500.0769231 | L55: 497 | M55: 593.1794872 | N55: 535.6060606 | O55: 575.2962963 | P55: 509.9 | Q55: 578.2222222 | R55: 532.0714286 | S55: 540.375 | T55: 500.375 | U55: 487.5897436 | W55: 602.2857143 | Y55: 908.3333333
A56: Nike-Zoom-Fly-Off-White-Black-Silver | C56: 250.3076923 | D56: 250.0714286 | E56: 273.75 | F56: 288.24 | G56: 286.2647059 | H56: 279.0384615 | I56: 293.2777778 | J56: 289.1481481 | K56: 297.3432836 | L56: 311.3647059 | M56: 311.7717391 | N56: 323.8 | O56: 321.5503876 | P56: 329.6771654 | Q56: 330.7954545 | R56: 338.4769231 | S56: 338.7314815 | T56: 393.2222222 | U56: 328.0483871 | W56: 337.625 | Y56: 350.375
A57: Nike-Zoom-Fly-Off-White-Pink | C57: 286.64 | D57: 285.9333333 | E57: 304.5714286 | F57: 321.0357143 | G57: 336.3695652 | H57: 320.92 | I57: 300.1086957 | J57: 282.6578947 | K57: 261.2156863 | L57: 251.8947368 | M57: 252.4363636 | N57: 251.5 | O57: 253.2983871 | P57: 254.8285714 | Q57: 263.8870968 | R57: 263.6 | S57: 272.4903846 | T57: 297.1428571 | U57: 272 | W57: 307.4 | Y57: 301.6666667

Sheet 2019 StockX Raw Data
A1: Order Date | B1: Brand | C1: Sneaker Name | D1: Sale Price | E1: Retail Price | F1: Release Date | G1: Shoe Size | H1: Buyer Region
A2: 2017-09-01 | B2: Yeezy | C2: Adidas-Yeezy-Boost-350-Low-V2-Beluga | D2: 1097 | E2: 220 | F2: 2016-09-24 | G2: 11 | H2: California
A3: 2017-09-01 | B3: Yeezy | C3: Adidas-Yeezy-Boost-350-V2-Core-Black-Copper | D3: 685 | E3: 220 | F3: 2016-11-23 | G3: 11 | H3: California
A4: 2017-09-01 | B4: Yeezy | C4: Adidas-Yeezy-Boost-350-V2-Core-Black-Green | D4: 690 | E4: 220 | F4: 2016-11-23 | G4: 11 | H4: California
A5: 2017-09-01 | B5: Yeezy | C5: Adidas-Yeezy-Boost-350-V2-Core-Black-Red | D5: 1075 | E5: 220 | F5: 2016-11-23 | G5: 11.5 | H5: Kentucky
A6: 2017-09-01 | B6: Yeezy | C6: Adidas-Yeezy-Boost-350-V2-Core-Black-Red-2017 | D6: 828 | E6: 220 | F6: 2017-02-11 | G6: 11 | H6: Rhode Island
A7: 2017-09-01 | B7: Yeezy | C7: Adidas-Yeezy-Boost-350-V2-Core-Black-Red-2017 | D7: 798 | E7: 220 | F7: 2017-02-11 | G7: 8.5 | H7: Michigan
A8: 2017-09-01 | B8: Yeezy | C8: Adidas-Yeezy-Boost-350-V2-Core-Black-White | D8: 784 | E8: 220 | F8: 2016-12-17 | G8: 11 | H8: California
A9: 2017-09-01 | B9: Yeezy | C9: Adidas-Yeezy-Boost-350-V2-Cream-White | D9: 460 | E9: 220 | F9: 2017-04-29 | G9: 10 | H9: New York
A10: 2017-09-01 | B10: Yeezy | C10: Adidas-Yeezy-Boost-350-V2-Cream-White | D10: 465 | E10: 220 | F10: 2017-04-29 | G10: 11 | H10: Kansas
A11: 2017-09-01 | B11: Yeezy | C11: Adidas-Yeezy-Boost-350-V2-Cream-White | D11: 465 | E11: 220 | F11: 2017-04-29 | G11: 11 | H11: Florida
A12: 2017-09-01 | B12: Yeezy | C12: Adidas-Yeezy-Boost-350-V2-Cream-White | D12: 515 | E12: 220 | F12: 2017-04-29 | G12: 11.5 | H12: New Jersey
A13: 2017-09-01 | B13: Yeezy | C13: Adidas-Yeezy-Boost-350-V2-Cream-White | D13: 473 | E13: 220 | F13: 2017-04-29 | G13: 10 | H13: Texas
A14: 2017-09-01 | B14: Yeezy | C14: Adidas-Yeezy-Boost-350-V2-Cream-White | D14: 460 | E14: 220 | F14: 2017-04-29 | G14: 9 | H14: Florida
A15: 2017-09-01 | B15: Yeezy | C15: Adidas-Yeezy-Boost-350-V2-Zebra | D15: 570 | E15: 220 | F15: 2017-02-25 | G15: 14 | H15: Michigan
A16: 2017-09-01 | B16: Yeezy | C16: Adidas-Yeezy-Boost-350-V2-Zebra | D16: 525 | E16: 220 | F16: 2017-02-25 | G16: 8 | H16: New York
A17: 2017-09-01 | B17: Yeezy | C17: Adidas-Yeezy-Boost-350-V2-Zebra | D17: 658 | E17: 220 | F17: 2017-02-25 | G17: 11 | H17: California
A18: 2017-09-01 | B18: Yeezy | C18: Adidas-Yeezy-Boost-350-V2-Zebra | D18: 650 | E18: 220 | F18: 2017-02-25 | G18: 11 | H18: North Carolina
A19: 2017-09-01 | B19: Yeezy | C19: Adidas-Yeezy-Boost-350-V2-Zebra | D19: 610 | E19: 220 | F19: 2017-02-25 | G19: 10 | H19: New Jersey
A20: 2017-09-01 | B20: Yeezy | C20: Adidas-Yeezy-Boost-350-V2-Zebra | D20: 589 | E20: 220 | F20: 2017-02-25 | G20: 9 | H20: New York
A21: 2017-09-01 | B21: Yeezy | C21: Adidas-Yeezy-Boost-350-V2-Zebra | D21: 850 | E21: 220 | F21: 2017-02-25 | G21: 5.5 | H21: Michigan
A22: 2017-09-01 | B22: Yeezy | C22: Adidas-Yeezy-Boost-350-V2-Zebra | D22: 546 | E22: 220 | F22: 2017-02-25 | G22: 9 | H22: Florida
A23: 2017-09-01 | B23: Yeezy | C23: Adidas-Yeezy-Boost-350-V2-Zebra | D23: 586 | E23: 220 | F23: 2017-02-25 | G23: 9.5 | H23: Oregon
A24: 2017-09-01 | B24: Yeezy | C24: Adidas-Yeezy-Boost-350-V2-Zebra | D24: 640 | E24: 220 | F24: 2017-02-25 | G24: 14 | H24: California
A25: 2017-09-02 | B25: Yeezy | C25: Adidas-Yeezy-Boost-350-Low-V2-Beluga | D25: 850 | E25: 220 | F25: 2016-09-24 | G25: 8 | H25: Alabama
A26: 2017-09-02 | B26: Yeezy | C26: Adidas-Yeezy-Boost-350-V2-Core-Black-Red | D26: 999 | E26: 220 | F26: 2016-11-23 | G26: 11 | H26: Kentucky
A27: 2017-09-02 | B27: Yeezy | C27: Adidas-Yeezy-Boost-350-V2-Core-Black-Red-2017 | D27: 740 | E27: 220 | F27: 2017-02-11 | G27: 9 | H27: New York
A28: 2017-09-02 | B28: Yeezy | C28: Adidas-Yeezy-Boost-350-V2-Core-Black-Red-2017 | D28: 765 | E28: 220 | F28: 2017-02-11 | G28: 8 | H28: New York
A29: 2017-09-02 | B29: Yeezy | C29: Adidas-Yeezy-Boost-350-V2-Core-Black-White | D29: 800 | E29: 220 | F29: 2016-12-17 | G29: 11.5 | H29: Kentucky
A30: 2017-09-02 | B30: Yeezy | C30: Adidas-Yeezy-Boost-350-V2-Cream-White | D30: 470 | E30: 220 | F30: 2017-04-29 | G30: 10.5 | H30: California
A31: 2017-09-02 | B31: Yeezy | C31: Adidas-Yeezy-Boost-350-V2-Cream-White | D31: 455 | E31: 220 | F31: 2017-04-29 | G31: 8.5 | H31: Oregon
A32: 2017-09-02 | B32: Yeezy | C32: Adidas-Yeezy-Boost-350-V2-Cream-White | D32: 479 | E32: 220 | F32: 2017-04-29 | G32: 10 | H32: Delaware
A33: 2017-09-02 | B33: Yeezy | C33: Adidas-Yeezy-Boost-350-V2-Zebra | D33: 572 | E33: 220 | F33: 2017-02-25 | G33: 9 | H33: Florida
A34: 2017-09-02 | B34: Yeezy | C34: Adidas-Yeezy-Boost-350-V2-Zebra | D34: 580 | E34: 220 | F34: 2017-02-25 | G34: 9 | H34: Virginia
A35: 2017-09-02 | B35: Yeezy | C35: Adidas-Yeezy-Boost-350-V2-Zebra | D35: 590 | E35: 220 | F35: 2017-02-25 | G35: 14 | H35: Wisconsin
A36: 2017-09-02 | B36: Yeezy | C36: Adidas-Yeezy-Boost-350-V2-Zebra | D36: 625 | E36: 220 | F36: 2017-02-25 | G36: 10 | H36: Texas
A37: 2017-09-02 | B37: Yeezy | C37: Adidas-Yeezy-Boost-350-V2-Zebra | D37: 595 | E37: 220 | F37: 2017-02-25 | G37: 9 | H37: New Jersey
A38: 2017-09-02 | B38: Yeezy | C38: Adidas-Yeezy-Boost-350-V2-Zebra | D38: 589 | E38: 220 | F38: 2017-02-25 | G38: 9 | H38: Wisconsin
A39: 2017-09-02 | B39: Yeezy | C39: Adidas-Yeezy-Boost-350-V2-Zebra | D39: 635 | E39: 220 | F39: 2017-02-25 | G39: 11 | H39: Colorado
A40: 2017-09-03 | B40: Yeezy | C40: Adidas-Yeezy-Boost-350-Low-V2-Beluga | D40: 1068 | E40: 220 | F40: 2016-09-24 | G40: 10 | H40: Kentucky
A41: 2017-09-03 | B41: Yeezy | C41: Adidas-Yeezy-Boost-350-V2-Core-Black-Red | D41: 1095 | E41: 220 | F41: 2016-11-23 | G41: 13 | H41: New Jersey
A42: 2017-09-03 | B42: Yeezy | C42: Adidas-Yeezy-Boost-350-V2-Core-Black-Red-2017 | D42: 820 | E42: 220 | F42: 2017-02-11 | G42: 10 | H42: California
A43: 2017-09-03 | B43: Yeezy | C43: Adidas-Yeezy-Boost-350-V2-Core-Black-Red-2017 | D43: 750 | E43: 220 | F43: 2017-02-11 | G43: 10.5 | H43: New York
A44: 2017-09-03 | B44: Yeezy | C44: Adidas-Yeezy-Boost-350-V2-Core-Black-White | D44: 715 | E44: 220 | F44: 2016-12-17 | G44: 9 | H44: Florida
A45: 2017-09-03 | B45: Yeezy | C45: Adidas-Yeezy-Boost-350-V2-Core-Black-White | D45: 870 | E45: 220 | F45: 2016-12-17 | G45: 12 | H45: Massachusetts
A46: 2017-09-03 | B46: Yeezy | C46: Adidas-Yeezy-Boost-350-V2-Cream-White | D46: 480 | E46: 220 | F46: 2017-04-29 | G46: 9.5 | H46: California
A47: 2017-09-03 | B47: Yeezy | C47: Adidas-Yeezy-Boost-350-V2-Cream-White | D47: 459 | E47: 220 | F47: 2017-04-29 | G47: 9 | H47: Pennsylvania
A48: 2017-09-03 | B48: Yeezy | C48: Adidas-Yeezy-Boost-350-V2-Cream-White | D48: 475 | E48: 220 | F48: 2017-04-29 | G48: 10 | H48: Massachusetts
A49: 2017-09-03 | B49: Yeezy | C49: Adidas-Yeezy-Boost-350-V2-Cream-White | D49: 458 | E49: 220 | F49: 2017-04-29 | G49: 9.5 | H49: Oregon
A50: 2017-09-03 | B50: Yeezy | C50: Adidas-Yeezy-Boost-350-V2-Cream-White | D50: 481 | E50: 220 | F50: 2017-04-29 | G50: 11 | H50: Colorado
A51: 2017-09-03 | B51: Yeezy | C51: Adidas-Yeezy-Boost-350-V2-Zebra | D51: 585 | E51: 220 | F51: 2017-02-25 | G51: 9 | H51: Pennsylvania
A52: 2017-09-03 | B52: Yeezy | C52: Adidas-Yeezy-Boost-350-V2-Zebra | D52: 650 | E52: 220 | F52: 2017-02-25 | G52: 13 | H52: Alabama
A53: 2017-09-03 | B53: Yeezy | C53: Adidas-Yeezy-Boost-350-V2-Zebra | D53: 563 | E53: 220 | F53: 2017-02-25 | G53: 8 | H53: New York
A54: 2017-09-03 | B54: Yeezy | C54: Adidas-Yeezy-Boost-350-V2-Zebra | D54: 695 | E54: 220 | F54: 2017-02-25 | G54: 5 | H54: New York
A55: 2017-09-03 | B55: Yeezy | C55: Adidas-Yeezy-Boost-350-V2-Zebra | D55: 595 | E55: 220 | F55: 2017-02-25 | G55: 8.5 | H55: Texas
A56: 2017-09-04 | B56: Yeezy | C56: Adidas-Yeezy-Boost-350-Low-V2-Beluga | D56: 960 | E56: 220 | F56: 2016-09-24 | G56: 9 | H56: California
A57: 2017-09-04 | B57: Yeezy | C57: Adidas-Yeezy-Boost-350-V2-Core-Black-Red-2017 | D57: 785 | E57: 220 | F57: 2017-02-11 | G57: 10.5 | H57: Texas
A58: 2017-09-04 | B58: Yeezy | C58: Adidas-Yeezy-Boost-350-V2-Core-Black-White | D58: 799 | E58: 220 | F58: 2016-12-17 | G58: 10 | H58: Texas
A59: 2017-09-04 | B59: Yeezy | C59: Adidas-Yeezy-Boost-350-V2-Core-Black-White | D59: 850 | E59: 220 | F59: 2016-12-17 | G59: 6.5 | H59: New Jersey
A60: 2017-09-04 | B60: Yeezy | C60: Adidas-Yeezy-Boost-350-V2-Cream-White | D60: 475 | E60: 220 | F60: 2017-04-29 | G60: 10.5 | H60: Oregon
A61: 2017-09-04 | B61: Yeezy | C61: Adidas-Yeezy-Boost-350-V2-Cream-White | D61: 470 | E61: 220 | F61: 2017-04-29 | G61: 10.5 | H61: Virginia
A62: 2017-09-04 | B62: Yeezy | C62: Adidas-Yeezy-Boost-350-V2-Cream-White | D62: 480 | E62: 220 | F62: 2017-04-29 | G62: 9.5 | H62: New Jersey
A63: 2017-09-04 | B63: Yeezy | C63: Adidas-Yeezy-Boost-350-V2-Cream-White | D63: 436 | E63: 220 | F63: 2017-04-29 | G63: 8.5 | H63: California
A64: 2017-09-04 | B64: Yeezy | C64: Adidas-Yeezy-Boost-350-V2-Cream-White | D64: 481 | E64: 220 | F64: 2017-04-29 | G64: 9.5 | H64: Louisiana
A65: 2017-09-04 | B65: Yeezy | C65: Adidas-Yeezy-Boost-350-V2-Zebra | D65: 630 | E65: 220 | F65: 2017-02-25 | G65: 10.5 | H65: Massachusetts
A66: 2017-09-04 | B66: Yeezy | C66: Adidas-Yeezy-Boost-350-V2-Zebra | D66: 650 | E66: 220 | F66: 2017-02-25 | G66: 12 | H66: Alabama
A67: 2017-09-04 | B67: Yeezy | C67: Adidas-Yeezy-Boost-350-V2-Zebra | D67: 605 | E67: 220 | F67: 2017-02-25 | G67: 9.5 | H67: Washington
A68: 2017-09-04 | B68: Yeezy | C68: Adidas-Yeezy-Boost-350-V2-Zebra | D68: 575 | E68: 220 | F68: 2017-02-25 | G68: 8.5 | H68: Georgia
A69: 2017-09-04 | B69: Yeezy | C69: Adidas-Yeezy-Boost-350-V2-Zebra | D69: 659 | E69: 220 | F69: 2017-02-25 | G69: 11 | H69: Ohio
A70: 2017-09-04 | B70: Yeezy | C70: Adidas-Yeezy-Boost-350-V2-Zebra | D70: 594 | E70: 220 | F70: 2017-02-25 | G70: 14 | H70: California
A71: 2017-09-04 | B71: Yeezy | C71: Adidas-Yeezy-Boost-350-V2-Zebra | D71: 625 | E71: 220 | F71: 2017-02-25 | G71: 9.5 | H71: Colorado
A72: 2017-09-04 | B72: Yeezy | C72: Adidas-Yeezy-Boost-350-V2-Zebra | D72: 530 | E72: 220 | F72: 2017-02-25 | G72: 8 | H72: California
A73: 2017-09-05 | B73: Yeezy | C73: Adidas-Yeezy-Boost-350-Low-V2-Beluga | D73: 870 | E73: 220 | F73: 2016-09-24 | G73: 6 | H73: New York
A74: 2017-09-05 | B74: Yeezy | C74: Adidas-Yeezy-Boost-350-V2-Core-Black-Copper | D74: 708 | E74: 220 | F74: 2016-11-23 | G74: 11 | H74: New Jersey
A75: 2017-09-05 | B75: Yeezy | C75: Adidas-Yeezy-Boost-350-V2-Core-Black-Red | D75: 1162 | E75: 220 | F75: 2016-11-23 | G75: 5 | H75: California
A76: 2017-09-05 | B76: Yeezy | C76: Adidas-Yeezy-Boost-350-V2-Core-Black-Red-2017 | D76: 815 | E76: 220 | F76: 2017-02-11 | G76: 11 | H76: New York
A77: 2017-09-05 | B77: Yeezy | C77: Adidas-Yeezy-Boost-350-V2-Core-Black-Red-2017 | D77: 799 | E77: 220 | F77: 2017-02-11 | G77: 12 | H77: California
A78: 2017-09-05 | B78: Yeezy | C78: Adidas-Yeezy-Boost-350-V2-Core-Black-White | D78: 775 | E78: 220 | F78: 2016-12-17 | G78: 11 | H78: Texas
A79: 2017-09-05 | B79: Yeezy | C79: Adidas-Yeezy-Boost-350-V2-Core-Black-White | D79: 700 | E79: 220 | F79: 2016-12-17 | G79: 9 | H79: New York
A80: 2017-09-05 | B80: Yeezy | C80: Adidas-Yeezy-Boost-350-V2-Cream-White | D80: 549 | E80: 220 | F80: 2017-04-29 | G80: 13 | H80: Texas
A81: 2017-09-05 | B81: Yeezy | C81: Adidas-Yeezy-Boost-350-V2-Cream-White | D81: 470 | E81: 220 | F81: 2017-04-29 | G81: 9.5 | H81: Oregon
A82: 2017-09-05 | B82: Yeezy | C82: Adidas-Yeezy-Boost-350-V2-Cream-White | D82: 475 | E82: 220 | F82: 2017-04-29 | G82: 9.5 | H82: Wisconsin
A83: 2017-09-05 | B83: Yeezy | C83: Adidas-Yeezy-Boost-350-V2-Cream-White | D83: 520 | E83: 220 | F83: 2017-04-29 | G83: 13 | H83: Florida
A84: 2017-09-05 | B84: Yeezy | C84: Adidas-Yeezy-Boost-350-V2-Cream-White | D84: 492 | E84: 220 | F84: 2017-04-29 | G84: 13 | H84: Texas
A85: 2017-09-05 | B85: Yeezy | C85: Adidas-Yeezy-Boost-350-V2-Cream-White | D85: 470 | E85: 220 | F85: 2017-04-29 | G85: 11 | H85: North Carolina
A86: 2017-09-05 | B86: Yeezy | C86: Adidas-Yeezy-Boost-350-V2-Cream-White | D86: 535 | E86: 220 | F86: 2017-04-29 | G86: 13 | H86: New Jersey
A87: 2017-09-05 | B87: Yeezy | C87: Adidas-Yeezy-Boost-350-V2-Zebra | D87: 655 | E87: 220 | F87: 2017-02-25 | G87: 11 | H87: California
A88: 2017-09-05 | B88: Yeezy | C88: Adidas-Yeezy-Boost-350-V2-Zebra | D88: 575 | E88: 220 | F88: 2017-02-25 | G88: 9 | H88: Alabama
A89: 2017-09-05 | B89: Yeezy | C89: Adidas-Yeezy-Boost-350-V2-Zebra | D89: 580 | E89: 220 | F89: 2017-02-25 | G89: 9 | H89: Nebraska
A90: 2017-09-05 | B90: Yeezy | C90: Adidas-Yeezy-Boost-350-V2-Zebra | D90: 600 | E90: 220 | F90: 2017-02-25 | G90: 10.5 | H90: Texas
A91: 2017-09-05 | B91: Yeezy | C91: Adidas-Yeezy-Boost-350-V2-Zebra | D91: 665 | E91: 220 | F91: 2017-02-25 | G91: 11.5 | H91: Oklahoma
A92: 2017-09-05 | B92: Yeezy | C92: Adidas-Yeezy-Boost-350-V2-Zebra | D92: 623 | E92: 220 | F92: 2017-02-25 | G92: 10.5 | H92: Texas
A93: 2017-09-05 | B93: Yeezy | C93: Adidas-Yeezy-Boost-350-V2-Zebra | D93: 583 | E93: 220 | F93: 2017-02-25 | G93: 9 | H93: New York
A94: 2017-09-05 | B94: Yeezy | C94: Adidas-Yeezy-Boost-350-V2-Zebra | D94: 652 | E94: 220 | F94: 2017-02-25 | G94: 11.5 | H94: California
A95: 2017-09-06 | B95: Yeezy | C95: Adidas-Yeezy-Boost-350-Low-V2-Beluga | D95: 904 | E95: 220 | F95: 2016-09-24 | G95: 7.5 | H95: Georgia
A96: 2017-09-06 | B96: Yeezy | C96: Adidas-Yeezy-Boost-350-V2-Core-Black-Copper | D96: 675 | E96: 220 | F96: 2016-11-23 | G96: 9 | H96: Ohio
A97: 2017-09-06 | B97: Yeezy | C97: Adidas-Yeezy-Boost-350-V2-Core-Black-Green | D97: 697 | E97: 220 | F97: 2016-11-23 | G97: 10 | H97: Florida
A98: 2017-09-06 | B98: Yeezy | C98: Adidas-Yeezy-Boost-350-V2-Core-Black-Red-2017 | D98: 845 | E98: 220 | F98: 2017-02-11 | G98: 11.5 | H98: New York
A99: 2017-09-06 | B99: Yeezy | C99: Adidas-Yeezy-Boost-350-V2-Core-Black-Red-2017 | D99: 815 | E99: 220 | F99: 2017-02-11 | G99: 11 | H99: Georgia
A100: 2017-09-06 | B100: Yeezy | C100: Adidas-Yeezy-Boost-350-V2-Core-Black-White | D100: 650 | E100: 220 | F100: 2016-12-17 | G100: 7.5 | H100: California
A101: 2017-09-06 | B101: Yeezy | C101: Adidas-Yeezy-Boost-350-V2-Core-Black-White | D101: 790 | E101: 220 | F101: 2016-12-17 | G101: 14 | H101: Florida
A102: 2017-09-06 | B102: Yeezy | C102: Adidas-Yeezy-Boost-350-V2-Cream-White | D102: 456 | E102: 220 | F102: 2017-04-29 | G102: 10 | H102: Connecticut
A103: 2017-09-06 | B103: Yeezy | C103: Adidas-Yeezy-Boost-350-V2-Cream-White | D103: 475 | E103: 220 | F103: 2017-04-29 | G103: 9.5 | H103: New York
A104: 2017-09-06 | B104: Yeezy | C104: Adidas-Yeezy-Boost-350-V2-Cream-White | D104: 460 | E104: 220 | F104: 2017-04-29 | G104: 9 | H104: Pennsylvania
A105: 2017-09-06 | B105: Yeezy | C105: Adidas-Yeezy-Boost-350-V2-Cream-White | D105: 487 | E105: 220 | F105: 2017-04-29 | G105: 12 | H105: California
A106: 2017-09-06 | B106: Yeezy | C106: Adidas-Yeezy-Boost-350-V2-Cream-White | D106: 467 | E106: 220 | F106: 2017-04-29 | G106: 9.5 | H106: Oregon
A107: 2017-09-06 | B107: Yeezy | C107: Adidas-Yeezy-Boost-350-V2-Zebra | D107: 640 | E107: 220 | F107: 2017-02-25 | G107: 6.5 | H107: Massachusetts
A108: 2017-09-06 | B108: Yeezy | C108: Adidas-Yeezy-Boost-350-V2-Zebra | D108: 667 | E108: 220 | F108: 2017-02-25 | G108: 12 | H108: Ohio
A109: 2017-09-06 | B109: Yeezy | C109: Adidas-Yeezy-Boost-350-V2-Zebra | D109: 749 | E109: 220 | F109: 2017-02-25 | G109: 12.5 | H109: Texas
A110: 2017-09-06 | B110: Yeezy | C110: Adidas-Yeezy-Boost-350-V2-Zebra | D110: 655 | E110: 220 | F110: 2017-02-25 | G110: 11.5 | H110: California
A111: 2017-09-06 | B111: Yeezy | C111: Adidas-Yeezy-Boost-350-V2-Zebra | D111: 645 | E111: 220 | F111: 2017-02-25 | G111: 11 | H111: Wisconsin
A112: 2017-09-06 | B112: Yeezy | C112: Adidas-Yeezy-Boost-350-V2-Zebra | D112: 600 | E112: 220 | F112: 2017-02-25 | G112: 10 | H112: California
A113: 2017-09-06 | B113: Yeezy | C113: Adidas-Yeezy-Boost-350-V2-Zebra | D113: 545 | E113: 220 | F113: 2017-02-25 | G113: 8 | H113: Missouri
A114: 2017-09-07 | B114: Yeezy | C114: Adidas-Yeezy-Boost-350-Low-Moonrock | D114: 1230 | E114: 200 | F114: 2015-11-14 | G114: 10.5 | H114: Michigan
A115: 2017-09-07 | B115: Yeezy | C115: Adidas-Yeezy-Boost-350-Low-V2-Beluga | D115: 746 | E115: 220 | F115: 2016-09-24 | G115: 4 | H115: Oregon
A116: 2017-09-07 | B116: Yeezy | C116: Adidas-Yeezy-Boost-350-V2-Core-Black-Copper | D116: 699 | E116: 220 | F116: 2016-11-23 | G116: 9 | H116: Oregon
A117: 2017-09-07 | B117: Yeezy | C117: Adidas-Yeezy-Boost-350-V2-Core-Black-Red-2017 | D117: 775 | E117: 220 | F117: 2017-02-11 | G117: 8 | H117: Virginia
A118: 2017-09-07 | B118: Yeezy | C118: Adidas-Yeezy-Boost-350-V2-Core-Black-Red-2017 | D118: 911 | E118: 220 | F118: 2017-02-11 | G118: 4 | H118: Oregon
A119: 2017-09-07 | B119: Yeezy | C119: Adidas-Yeezy-Boost-350-V2-Core-Black-Red-2017 | D119: 830 | E119: 220 | F119: 2017-02-11 | G119: 11 | H119: New Jersey
A120: 2017-09-07 | B120: Yeezy | C120: Adidas-Yeezy-Boost-350-V2-Core-Black-Red-2017 | D120: 860 | E120: 220 | F120: 2017-02-11 | G120: 12 | H120: Ohio
A121: 2017-09-07 | B121: Yeezy | C121: Adidas-Yeezy-Boost-350-V2-Core-Black-White | D121: 720 | E121: 220 | F121: 2016-12-17 | G121: 10.5 | H121: New Jersey
A122: 2017-09-07 | B122: Yeezy | C122: Adidas-Yeezy-Boost-350-V2-Cream-White | D122: 491 | E122: 220 | F122: 2017-04-29 | G122: 4 | H122: Massachusetts
A123: 2017-09-07 | B123: Yeezy | C123: Adidas-Yeezy-Boost-350-V2-Cream-White | D123: 460 | E123: 220 | F123: 2017-04-29 | G123: 9 | H123: New Jersey
A124: 2017-09-07 | B124: Yeezy | C124: Adidas-Yeezy-Boost-350-V2-Cream-White | D124: 600 | E124: 220 | F124: 2017-04-29 | G124: 6 | H124: Washington
A125: 2017-09-07 | B125: Yeezy | C125: Adidas-Yeezy-Boost-350-V2-Cream-White | D125: 458 | E125: 220 | F125: 2017-04-29 | G125: 9 | H125: Rhode Island
A126: 2017-09-07 | B126: Yeezy | C126: Adidas-Yeezy-Boost-350-V2-Zebra | D126: 660 | E126: 220 | F126: 2017-02-25 | G126: 11 | H126: Michigan
A127: 2017-09-07 | B127: Yeezy | C127: Adidas-Yeezy-Boost-350-V2-Zebra | D127: 579 | E127: 220 | F127: 2017-02-25 | G127: 7.5 | H127: New York
A128: 2017-09-07 | B128: Yeezy | C128: Adidas-Yeezy-Boost-350-V2-Zebra | D128: 615 | E128: 220 | F128: 2017-02-25 | G128: 10.5 | H128: New York
A129: 2017-09-07 | B129: Yeezy | C129: Adidas-Yeezy-Boost-350-V2-Zebra | D129: 575 | E129: 220 | F129: 2017-02-25 | G129: 7 | H129: Massachusetts
A130: 2017-09-07 | B130: Off-White | C130: Nike-Air-Max-90-Off-White | D130: 1600 | E130: 160 | F130: 2017-09-09 | G130: 8 | H130: California
A131: 2017-09-07 | B131: Off-White | C131: Nike-Air-Max-90-Off-White | D131: 1090 | E131: 160 | F131: 2017-09-09 | G131: 11.5 | H131: New York
A132: 2017-09-07 | B132: Off-White | C132: Nike-Air-Presto-Off-White | D132: 1344 | E132: 160 | F132: 2017-09-09 | G132: 10 | H132: New York
A133: 2017-09-07 | B133: Off-White | C133: Nike-Air-Presto-Off-White | D133: 1325 | E133: 160 | F133: 2017-09-09 | G133: 10 | H133: Massachusetts
A134: 2017-09-07 | B134: Off-White | C134: Nike-Air-VaporMax-Off-White | D134: 1800 | E134: 250 | F134: 2017-09-09 | G134: 12 | H134: Kentucky
A135: 2017-09-08 | B135: Yeezy | C135: Adidas-Yeezy-Boost-350-Low-V2-Beluga | D135: 920 | E135: 220 | F135: 2016-09-24 | G135: 8.5 | H135: New York
A136: 2017-09-08 | B136: Yeezy | C136: Adidas-Yeezy-Boost-350-V2-Core-Black-Red-2017 | D136: 785 | E136: 220 | F136: 2017-02-11 | G136: 10 | H136: New York
A137: 2017-09-08 | B137: Yeezy | C137: Adidas-Yeezy-Boost-350-V2-Core-Black-Red-2017 | D137: 875 | E137: 220 | F137: 2017-02-11 | G137: 11.5 | H137: Georgia
A138: 2017-09-08 | B138: Yeezy | C138: Adidas-Yeezy-Boost-350-V2-Core-Black-White | D138: 740 | E138: 220 | F138: 2016-12-17 | G138: 9.5 | H138: Texas
A139: 2017-09-08 | B139: Yeezy | C139: Adidas-Yeezy-Boost-350-V2-Core-Black-White | D139: 865 | E139: 220 | F139: 2016-12-17 | G139: 5 | H139: Massachusetts
A140: 2017-09-08 | B140: Yeezy | C140: Adidas-Yeezy-Boost-350-V2-Cream-White | D140: 452 | E140: 220 | F140: 2017-04-29 | G140: 10 | H140: Virginia
A141: 2017-09-08 | B141: Yeezy | C141: Adidas-Yeezy-Boost-350-V2-Cream-White | D141: 470 | E141: 220 | F141: 2017-04-29 | G141: 10 | H141: Pennsylvania
A142: 2017-09-08 | B142: Yeezy | C142: Adidas-Yeezy-Boost-350-V2-Cream-White | D142: 469 | E142: 220 | F142: 2017-04-29 | G142: 9.5 | H142: Oregon
A143: 2017-09-08 | B143: Yeezy | C143: Adidas-Yeezy-Boost-350-V2-Cream-White | D143: 438 | E143: 220 | F143: 2017-04-29 | G143: 8.5 | H143: Massachusetts
A144: 2017-09-08 | B144: Yeezy | C144: Adidas-Yeezy-Boost-350-V2-Zebra | D144: 564 | E144: 220 | F144: 2017-02-25 | G144: 7 | H144: New York
A145: 2017-09-08 | B145: Yeezy | C145: Adidas-Yeezy-Boost-350-V2-Zebra | D145: 670 | E145: 220 | F145: 2017-02-25 | G145: 12 | H145: Wisconsin
A146: 2017-09-08 | B146: Yeezy | C146: Adidas-Yeezy-Boost-350-V2-Zebra | D146: 645 | E146: 220 | F146: 2017-02-25 | G146: 11.5 | H146: Connecticut
A147: 2017-09-08 | B147: Yeezy | C147: Adidas-Yeezy-Boost-350-V2-Zebra | D147: 666 | E147: 220 | F147: 2017-02-25 | G147: 12 | H147: California
A148: 2017-09-08 | B148: Yeezy | C148: Adidas-Yeezy-Boost-350-V2-Zebra | D148: 645 | E148: 220 | F148: 2017-02-25 | G148: 11.5 | H148: South Carolina
A149: 2017-09-08 | B149: Yeezy | C149: Adidas-Yeezy-Boost-350-V2-Zebra | D149: 580 | E149: 220 | F149: 2017-02-25 | G149: 8.5 | H149: Maine
A150: 2017-09-08 | B150: Yeezy | C150: Adidas-Yeezy-Boost-350-V2-Zebra | D150: 600 | E150: 220 | F150: 2017-02-25 | G150: 10 | H150: New York
A151: 2017-09-08 | B151: Off-White | C151: Air-Jordan-1-Retro-High-Off-White-Chicago | D151: 2450 | E151: 190 | F151: 2017-09-09 | G151: 13 | H151: New York
A152: 2017-09-08 | B152: Off-White | C152: Air-Jordan-1-Retro-High-Off-White-Chicago | D152: 2325 | E152: 190 | F152: 2017-09-09 | G152: 12 | H152: Illinois
A153: 2017-09-08 | B153: Off-White | C153: Nike-Air-Max-90-Off-White | D153: 850 | E153: 160 | F153: 2017-09-09 | G153: 11 | H153: New Jersey
A154: 2017-09-08 | B154: Off-White | C154: Nike-Air-Presto-Off-White | D154: 1299 | E154: 160 | F154: 2017-09-09 | G154: 11 | H154: Colorado
A155: 2017-09-08 | B155: Off-White | C155: Nike-Air-VaporMax-Off-White | D155: 2399 | E155: 250 | F155: 2017-09-09 | G155: 11.5 | H155: Kentucky
A156: 2017-09-08 | B156: Off-White | C156: Nike-Blazer-Mid-Off-White | D156: 720 | E156: 130 | F156: 2017-09-09 | G156: 9 | H156: New York
A157: 2017-09-08 | B157: Off-White | C157: Nike-Blazer-Mid-Off-White | D157: 750 | E157: 130 | F157: 2017-09-09 | G157: 10.5 | H157: Florida
A158: 2017-09-09 | B158: Yeezy | C158: Adidas-Yeezy-Boost-350-Low-Pirate-Black-2016 | D158: 1100 | E158: 200 | F158: 2016-02-19 | G158: 9.5 | H158: Virginia
A159: 2017-09-09 | B159: Yeezy | C159: Adidas-Yeezy-Boost-350-V2-Core-Black-Green | D159: 700 | E159: 220 | F159: 2016-11-23 | G159: 13 | H159: New York
A160: 2017-09-09 | B160: Yeezy | C160: Adidas-Yeezy-Boost-350-V2-Core-Black-Red | D160: 1092 | E160: 220 | F160: 2016-11-23 | G160: 9 | H160: Alabama
A161: 2017-09-09 | B161: Yeezy | C161: Adidas-Yeezy-Boost-350-V2-Core-Black-Red-2017 | D161: 829 | E161: 220 | F161: 2017-02-11 | G161: 8 | H161: California
A162: 2017-09-09 | B162: Yeezy | C162: Adidas-Yeezy-Boost-350-V2-Core-Black-Red-2017 | D162: 747 | E162: 220 | F162: 2017-02-11 | G162: 9 | H162: New York
A163: 2017-09-09 | B163: Yeezy | C163: Adidas-Yeezy-Boost-350-V2-Core-Black-White | D163: 814 | E163: 220 | F163: 2016-12-17 | G163: 5 | H163: Oregon
A164: 2017-09-09 | B164: Yeezy | C164: Adidas-Yeezy-Boost-350-V2-Cream-White | D164: 446 | E164: 220 | F164: 2017-04-29 | G164: 9 | H164: California
A165: 2017-09-09 | B165: Yeezy | C165: Adidas-Yeezy-Boost-350-V2-Cream-White | D165: 490 | E165: 220 | F165: 2017-04-29 | G165: 13 | H165: Virginia
A166: 2017-09-09 | B166: Yeezy | C166: Adidas-Yeezy-Boost-350-V2-Cream-White | D166: 455 | E166: 220 | F166: 2017-04-29 | G166: 10.5 | H166: Florida
A167: 2017-09-09 | B167: Yeezy | C167: Adidas-Yeezy-Boost-350-V2-Cream-White | D167: 460 | E167: 220 | F167: 2017-04-29 | G167: 10 | H167: California
A168: 2017-09-09 | B168: Yeezy | C168: Adidas-Yeezy-Boost-350-V2-Cream-White | D168: 485 | E168: 220 | F168: 2017-04-29 | G168: 9.5 | H168: Wisconsin
A169: 2017-09-09 | B169: Yeezy | C169: Adidas-Yeezy-Boost-350-V2-Zebra | D169: 608 | E169: 220 | F169: 2017-02-25 | G169: 8.5 | H169: Pennsylvania
A170: 2017-09-09 | B170: Yeezy | C170: Adidas-Yeezy-Boost-350-V2-Zebra | D170: 567 | E170: 220 | F170: 2017-02-25 | G170: 8 | H170: California
A171: 2017-09-09 | B171: Yeezy | C171: Adidas-Yeezy-Boost-350-V2-Zebra | D171: 580 | E171: 220 | F171: 2017-02-25 | G171: 14 | H171: Florida
A172: 2017-09-09 | B172: Yeezy | C172: Adidas-Yeezy-Boost-350-V2-Zebra | D172: 587 | E172: 220 | F172: 2017-02-25 | G172: 9 | H172: Alabama
A173: 2017-09-09 | B173: Yeezy | C173: Adidas-Yeezy-Boost-350-V2-Zebra | D173: 580 | E173: 220 | F173: 2017-02-25 | G173: 9 | H173: Illinois
A174: 2017-09-09 | B174: Off-White | C174: Air-Jordan-1-Retro-High-Off-White-Chicago | D174: 2799 | E174: 190 | F174: 2017-09-09 | G174: 10.5 | H174: Massachusetts
A175: 2017-09-09 | B175: Off-White | C175: Air-Jordan-1-Retro-High-Off-White-Chicago | D175: 2550 | E175: 190 | F175: 2017-09-09 | G175: 10 | H175: Delaware
A176: 2017-09-09 | B176: Off-White | C176: Nike-Air-Max-90-Off-White | D176: 949 | E176: 160 | F176: 2017-09-09 | G176: 11.5 | H176: New York
A177: 2017-09-09 | B177: Off-White | C177: Nike-Air-Max-90-Off-White | D177: 1100 | E177: 160 | F177: 2017-09-09 | G177: 9.5 | H177: New Jersey
A178: 2017-09-09 | B178: Off-White | C178: Nike-Air-Max-90-Off-White | D178: 850 | E178: 160 | F178: 2017-09-09 | G178: 10 | H178: Virginia
A179: 2017-09-09 | B179: Off-White | C179: Nike-Air-Presto-Off-White | D179: 1299 | E179: 160 | F179: 2017-09-09 | G179: 10 | H179: New Jersey
A180: 2017-09-09 | B180: Off-White | C180: Nike-Blazer-Mid-Off-White | D180: 680 | E180: 130 | F180: 2017-09-09 | G180: 10 | H180: New Jersey
A181: 2017-09-10 | B181: Yeezy | C181: Adidas-Yeezy-Boost-350-Low-Pirate-Black-2016 | D181: 999 | E181: 200 | F181: 2016-02-19 | G181: 12 | H181: Kentucky
A182: 2017-09-10 | B182: Yeezy | C182: Adidas-Yeezy-Boost-350-Low-V2-Beluga | D182: 990 | E182: 220 | F182: 2016-09-24 | G182: 10.5 | H182: Michigan
A183: 2017-09-10 | B183: Yeezy | C183: Adidas-Yeezy-Boost-350-V2-Core-Black-Green | D183: 640 | E183: 220 | F183: 2016-11-23 | G183: 9.5 | H183: Oregon
A184: 2017-09-10 | B184: Yeezy | C184: Adidas-Yeezy-Boost-350-V2-Core-Black-Green | D184: 695 | E184: 220 | F184: 2016-11-23 | G184: 10.5 | H184: Colorado
A185: 2017-09-10 | B185: Yeezy | C185: Adidas-Yeezy-Boost-350-V2-Core-Black-Red-2017 | D185: 810 | E185: 220 | F185: 2017-02-11 | G185: 11 | H185: California
A186: 2017-09-10 | B186: Yeezy | C186: Adidas-Yeezy-Boost-350-V2-Core-Black-Red-2017 | D186: 800 | E186: 220 | F186: 2017-02-11 | G186: 11 | H186: California
A187: 2017-09-10 | B187: Yeezy | C187: Adidas-Yeezy-Boost-350-V2-Core-Black-White | D187: 722 | E187: 220 | F187: 2016-12-17 | G187: 9.5 | H187: California
A188: 2017-09-10 | B188: Yeezy | C188: Adidas-Yeezy-Boost-350-V2-Cream-White | D188: 500 | E188: 220 | F188: 2017-04-29 | G188: 11.5 | H188: Texas
A189: 2017-09-10 | B189: Yeezy | C189: Adidas-Yeezy-Boost-350-V2-Cream-White | D189: 485 | E189: 220 | F189: 2017-04-29 | G189: 11 | H189: Washington
A190: 2017-09-10 | B190: Yeezy | C190: Adidas-Yeezy-Boost-350-V2-Cream-White | D190: 450 | E190: 220 | F190: 2017-04-29 | G190: 11 | H190: Texas
A191: 2017-09-10 | B191: Yeezy | C191: Adidas-Yeezy-Boost-350-V2-Zebra | D191: 635 | E191: 220 | F191: 2017-02-25 | G191: 12 | H191: South Carolina
A192: 2017-09-10 | B192: Yeezy | C192: Adidas-Yeezy-Boost-350-V2-Zebra | D192: 625 | E192: 220 | F192: 2017-02-25 | G192: 10 | H192: Nevada
A193: 2017-09-10 | B193: Yeezy | C193: Adidas-Yeezy-Boost-350-V2-Zebra | D193: 665 | E193: 220 | F193: 2017-02-25 | G193: 12 | H193: California
A194: 2017-09-10 | B194: Yeezy | C194: Adidas-Yeezy-Boost-350-V2-Zebra | D194: 579 | E194: 220 | F194: 2017-02-25 | G194: 14 | H194: Florida
A195: 2017-09-10 | B195: Yeezy | C195: Adidas-Yeezy-Boost-350-V2-Zebra | D195: 620 | E195: 220 | F195: 2017-02-25 | G195: 9.5 | H195: Oregon
A196: 2017-09-10 | B196: Off-White | C196: Air-Jordan-1-Retro-High-Off-White-Chicago | D196: 2100 | E196: 190 | F196: 2017-09-09 | G196: 10 | H196: New York
A197: 2017-09-10 | B197: Off-White | C197: Nike-Air-Max-90-Off-White | D197: 965 | E197: 160 | F197: 2017-09-09 | G197: 9 | H197: California
A198: 2017-09-10 | B198: Off-White | C198: Nike-Air-Max-90-Off-White | D198: 940 | E198: 160 | F198: 2017-09-09 | G198: 8 | H198: New York
A199: 2017-09-10 | B199: Off-White | C199: Nike-Air-Presto-Off-White | D199: 1329 | E199: 160 | F199: 2017-09-09 | G199: 9 | H199: California
A200: 2017-09-10 | B200: Off-White | C200: Nike-Air-Presto-Off-White | D200: 1270 | E200: 160 | F200: 2017-09-09 | G200: 9 | H200: New York
... 4300 more rows

Sheet Project Checksheet
A1: Example Shown | B1: Example Location | C1: Requirements
A2: StockX 2019 Dataset, User Input | B2: Karen | C2:  Incorporate data from at least two different sources (e.g., annual reports, eia.gov, user input)
A3: Each Sheet | B3: Both | C3:  Workbook design – separating input and output areas, using multiple sheets effectively
A4: In Sales/Expenses Monthly Report | B4: Both | C4:  Appropriate use of relative, absolute, and mixed addressing
A5: Sumifs in Sales | B5: Nghia | C5:  Aggregate functions
A6: Vlookup in Price Comparison | B6: Nghia | C6:  Reference data functions
A7: If Reorder in Inventory | B7: Both | C7:  Logic functions
A8: Price Comparison | B8: Nghia | C8:  Error trapping functions
A9: Reorder color in Inventory | B9: Both | C9:  Spreadsheet formatting and simple validation
A10: 2019 Market Price | B10: Karen | C10:  Graphs and/or pivot table
A11: In Application | B11: Karen | C11:  VBA message boxes and input boxes
